Workbook

Sheet Inputs
A1: Note: Input Values in English Units
A2: Type of Simulation | D2: Units (Output)
A3: From Inventory Tree List | H3: =IF($J$4=1,TRUE,FALSE) -> FALSE | I3: =+IF(H3=TRUE,1,0) -> 0 | J3: 2
A4: From Inventory Summary | H4: =IF($J$4=2,TRUE,FALSE) -> TRUE | I4: =+IF(H4=TRUE,1,0) -> 1 | J4: 2
I5: =+SUM(I3:I4) -> 1
A6: Simulation Age (yr.) | B6: 120 | C6: Required
A8: Already Thinned ? | C8: Required | D8: Prescribed Burning | F8: Type of Site (for understory recovery after burning) | H8: TRUE | I8: =+IF(H8=TRUE,1,0) -> 1
A9: Age to reach DBH (yr.) | B9: 7 | C9: Required | D9: Age first prescribed fire | H9: FALSE | J9: =IF($J$12=1,TRUE,FALSE) -> FALSE
D10: Burning Frequency (years) | J10: =IF($J$12=2,TRUE,FALSE) -> FALSE
A11: Simulate Thinning? | C11: Optional | D11: Burned Before ? | H11: TRUE | I11: =+IF(H11=TRUE,1,0) -> 1 | J11: =IF($J$12=3,TRUE,FALSE) -> TRUE
J12: 3 | K12: 1
A13: Initial Data (From inventory list or from external inventory) | N13: Simulation From Planting
A14: INPUTS | B14: From Inventory Tab | C14: Enter Inventory Summary | D14: =+IF(C15<=9,"Error…Age should be >= 10 !!","") ->  | J14: =+ IF($H$3=TRUE,B15,C15) -> 35 | K14: Starting Age | N14: INPUTS | O14: (English Units)
A15: Age (ring count at DBH) | B15: =+IF(H3=FALSE,"",IF(Inventory!$Q$3="","",Inventory!$Q$3)) ->  | C15: 35 | D15: =+IF($H$4=TRUE,"Required","") -> Required | I15: warning | J15: =4.5+(('Equations - Parameters'!$F$14+(0.5*($J$18-4.5-'Equations - Parameters'!$F$14+SQRT(((($J$18-4.5)-'Equations - Parameters'!$F$14))^2+4*'Equations - Parameters'!$G$14*($J$18-4.5)*((50-$B$9)^-'Equations - Parameters'!$H$14)))))/(1+('Equations - Parameters'!$G$14/(0.5*($J$18-4.5-'Equations - Parameters'!$F$14+SQRT(((($J$18-4.5)-'Equations - Parameters'!$F$14))^2+4*'Equations - Parameters'!$G$14*($J$18-4.5)*((50-$B$9)^-'Equations - Parameters'!$H$14))))*(($J$14-$B$9)^-'Equations - Parameters'!$H$14)))) -> 56.41478273 | K15: (Hdom) | L15: =+IF(B15<>"",1,0) + IF(C15<>"",1,0) -> 1 | N15: N/acre planting | O15: 650
A16: N/acre | B16: =+IF(H3=FALSE,"",IF(Inventory!$V$4="","",Inventory!$V$4)) ->  | C16: 600 | D16: =+IF($H$4=TRUE,"Required","") -> Required | I16: =+IF($J$16>3000,1,0) -> 0 | J16: =+ IF($H$3=TRUE,B16,C16) -> 600 | K16: N | L16: =+IF(B16<>"",1,0) + IF(C16<>"",1,0) -> 1 | N16: Survival year 1 | O16: 0.95
A17: BA (ft2 / acre) | B17: =+IF(H3=FALSE,"",IF(Inventory!$V$5="","",Inventory!$V$5)) ->  | D17: =+IF($H$4=TRUE,"Optional","") -> Optional | I17: =+IF($J$18>92,1,IF(J18<45,1,0)) -> 0 | J17: =+ IF(H3=TRUE,B17,IF(C17="",EXP('Equations - Parameters'!$F$20+'Equations - Parameters'!$G$20*LN($J$15)+'Equations - Parameters'!$H$20/($J$14-$B$9) + 'Equations - Parameters'!$I$20/$J$18 + 'Equations - Parameters'!$J$20*LN(J16)),C17)) -> 101.0963525 | K17: BA | L17: =+IF(B17<>"",1,0) + IF(C17<>"",1,0) -> 0 | N17: Site Index (ft) base age =50 | O17: 79
A18: Site Index (ft) base age =50 | B18: =+IF(H3=FALSE,"",IF(Inventory!$V$7="","",Inventory!$V$7)) ->  | C18: 70 | D18: =+IF($H$4=TRUE,"Required","") -> Required | J18: =+ IF($H$3=TRUE,B18,C18) -> 70 | K18: SI | L18: =+IF(B18<>"",1,0) + IF(C18<>"",1,0) -> 1
A19: =+IF(AND($H$3=TRUE,$B$17=""),"Error…...","") ->  | B19: =+IF(AND($H$3=TRUE,$B$17=""),"Need To Fill Data List","") ->  | C19: =+IF($H$3=TRUE,"",IF(AND(L19<3,$H$4=TRUE),"Need to Enter Data","")) ->  | L19: =+SUM(L15:L18) -> 3
B20: =+IF(AND($H$3=TRUE,$B$17=""),"Go To Tab: Inventory","") -> 
A21: Thinning Type | B21: =IF($H$11=TRUE,"Select Type","") -> Select Type | C21: =+IF(AND(H11=TRUE,I24=0),"Select Thinning Method !!",IF(I24>1,"Error…..Select Only One Thinning Method !!","")) -> 
A22: Fixed Age | H22: =IF($J$22=1,TRUE,FALSE) -> FALSE | I22: =+IF(H22=TRUE,1,0) -> 0 | J22: 2
A23: Target BA | H23: =IF($J$22=2,TRUE,FALSE) -> TRUE | I23: =+IF(H23=TRUE,1,0) -> 1
I24: =+SUM(I22:I23) -> 1
A25: Removal Criteria | B25: =+IF($H$22=TRUE,"Required","Not Needed") -> Not Needed
A26: BA | H26: =IF($J$26=1,TRUE,FALSE) -> TRUE | I26: =+IF(H26=TRUE,1,0) -> 1 | J26: 1
A27: Trees | H27: =IF($J$26=2,TRUE,FALSE) -> FALSE | I27: =+IF(H27=TRUE,1,0) -> 0
I28: =+SUM(I26:I27) -> 1
A29: Fixed Age | B29: Age (years) | C29: % Removal | D29: =+IF($H$11=TRUE,"Required","Not Needed") -> Required
A30: Th1 | B30: 40 | C30: 0.33 | D30: =+IF(B30="","",IF(AND($H$22=TRUE,B30<=$J$14),"ERROR IN THINNING AGE",IF(AND($H$22=TRUE,B30>=$B$6),"ERROR IN THINNING AGE",""))) ->  | H30: Errors | I30: =+IF(C2<>"",1,0) + IF(D14<>"",1,0) + IF(B19<>"",1,0) + IF(C19<>"",1,0) + IF(C21<>"",1,0) + IF(C22<>"",1,0) + IF(C23<>"",1,0)+ IF(C26<>"",1,0)+ IF(D30<>"",1,0)+ IF(D31<>"",1,0)+ IF(D32<>"",1,0)+ IF(D33<>"",1,0) -> 0
A31: Th2 | D31: =+IF(B31="","",IF(AND($H$22=TRUE,B31<=$J$14),"ERROR IN THINNING AGE",IF(AND($H$22=TRUE,B31>=$B$6),"ERROR IN THINNING AGE",""))) -> 
A32: Th3 | D32: =+IF(B32="","",IF(AND($H$22=TRUE,B32<=$J$14),"ERROR IN THINNING AGE",IF(AND($H$22=TRUE,B32>=$B$6),"ERROR IN THINNING AGE",""))) -> 
A33: Th4 | D33: =+IF(B33="","",IF(AND($H$22=TRUE,B33<=$J$14),"ERROR IN THINNING AGE",IF(AND($H$22=TRUE,B33>=$B$6),"ERROR IN THINNING AGE",""))) -> 
A35: Target BA | B35: Residual BA | C35: =+IF($H$23=TRUE,"Required","Not Needed") -> Required
A36: (ft2 acre-1) | B36: (ft2 acre-1)
A37: 120 | B37: 75 | H37: =$A$37 -> 120 | I37: =$B$37 -> 75

Sheet Equations - Parameters (hidden)
A1: Yield prediction & Growth projection
E2: Escambia Dataset - Longleaf Pine Even-Aged Naturally Regenerated Stands
E3: Authors: Lauer and Kush 2010&2011
A4: Survival Projection Function | E4: Survival Projection Function | M4: Lauer and Kush 2010
F6: n1 | G6: n2 | H6: n3 | I6: n4
C7: SDImax = | D7: 1200 | E7: N2 | F7: -2.9703 | G7: 82.759 | H7: 0.00191 | I7: 3.9632
B9: 0.0087247 | C9: -0.0117265 | D9: 1.2543404
E10: Height Prediction | M10: Lauer and Kush 2011
F13: h1 | G13: h2 | H13: h3
E14: Hdom2 | F14: 77.08 | G14: 1723.39 | H14: 1.235
A16: Basal Area Prediction | E16: Basal Area Prediction | M16: Lauer and Kush 2011
A17: Unthinned Stands
F19: b0 | G19: b1 | H19: b2 | I19: b3 | J19: b4 | K19: RMSE
E20: BA1 | F20: -8.681 | G20: 2.189 | H20: 5.4638 | I20: 77.681 | J20: 0.4947 | K20: 2.74
B21: -4.6484039 | C21: 0.4452486 | D21: 1.6526307
A22: Removal Proportion | E22: Basal Area Projection | M22: Lauer and Kush 2011
A23: Thinned Stands
C24: -1.5476196
A25: Metric | E25: BA2 | F25: b0 | G25: b1 | H25: b2 | I25: b3 | J25: RMSE
F26: 0.2826 | G26: 0.1318 | H26: 5.509 | I26: 2.4314 | J26: 5.6
E28: Volume Prediction | M28: Lauer and Kush 2011
F31: v0 | G31: v1 | H31: v2 | I31: v3 | J31: v4 | K31: v5 | L31: v6
E32: VOB (ft3/acre)) | F32: 0.3432 | G32: 3.1264 | H32: 0.7408 | I32: -5.7865 | J32: -0.0352 | K32: -0.4912 | L32: 1.0723
E33: VIB (ft3/acre)) | F33: -0.1941 | G33: 4.2479 | H33: 0.8095 | I33: -5.0444 | J33: -0.0661 | K33: -0.7125 | L33: 1.1067
E35: Removal Proportion | M35: Lauer and Kush 2011
E36: Thinned Stands
E39: N | F39: -0.0289 | G39: 2.432 | H39: 0.0734 | I39: -0.02
E40: BA | F40: 2.3345 | G40: 10.0369 | H40: -16.1889 | I40: -51.4529 | J40: -1.2559 | K40: 0.3029
E42: Merchantable Volume for Whole Stand Volume Equations
E43: Yield Breakdown Function:
H44: Ym = | I44: Y*EXP(b1*(t/Dq)^b2 + b3*N^b4*(d/Dq)^b5) | M44: Gonzalez-Beneke et al. 2012
E45: Metric | H45: b1 | I45: b2 | J45: b3 | K45: b4 | L45: b5
E48: VOB (m3/ha)) | H48: -1.0385828 | I48: 4.252617 | J48: -0.626685 | K48: -0.1246646 | L48: 9.1649608
E49: VIB (m3/ha)) | H49: -1.0537628 | I49: 4.2527499 | J49: -0.6545719 | K49: -0.1365633 | L49: 9.3108306
E50: Where:
E51: Ym = Mechantable yield per ha for trees d inches DBH and above to a top diameter of t inches outside bark,
E52: Y = Total yield per ha (TVOB/TBIB at time i)
E53: Dq = Quadratic mean diameter dbh
E54: N = Number of trees per ha
E55: t = Top diameter (merchantability limit)
E56: d = Threshol dbh limit (minimum DBH to be included in this category)
E57: Individual Height
G58: H_m = 1.37 + exp(a + b*dbh_m**k + Age**x + BA_m**z) | M58: Gonzalez-Beneke et al. 2013
G60: a | H60: b | I60: k | J60: x | K60: z
G61: 0.05942 | H61: -10.80378 | I61: -1.1275 | J61: 0.15053 | K61: 0.12124
... 54 more rows

Sheet Inventory (hidden)
A1: INPUTS | U1: OUTPUTS | AE1: Age | AF1: 50
AE2: Plot Size | AF2: 0.1
A3: Tree Number | B3: DBH (inch) | C3: Height (ft) | D3: lnD | E3: D_1 | F3: lnH | G3: ba ft2 | H3: count | I3: Height2 (ft) | J3: count | K3: Rank | L3: Height (ft) Dom. Trees | P3: Age | R3: years | U3: Stand-Level Parameters | AE3: D | AF3: H
A4: =+IF(B4="","",1) ->  | D4: =IF(B4="","",LN(B4)) ->  | E4: =IF(B4="","",1/B4) ->  | F4: =IF(C4="","",LN(C4)) ->  | G4: =IF(B4="","",(PI()*(B4/12)^2)/4) ->  | H4: =+IF(B4=0,0,IF(B4="",0,1)) -> 0 | I4: =IF(B4="","",IF(C4<>"",C4,IF($J$6<>"",EXP($J$8+$J$6*E4),3.28084*(1.37 + EXP('Equations - Parameters'!$G$61+('Equations - Parameters'!$H$61*(B4*2.54)^'Equations - Parameters'!$I$61)+$Q$3^'Equations - Parameters'!$J$61 + ($V$5*0.229568)^'Equations - Parameters'!$K$61))))) ->  | J4: =+COUNT(C4:C1003) -> 0 | K4: =IF(B4="","",RANK(I4,ListH,0)) ->  | L4: =+IF(K4<=$M$10,I4,"") ->  | M4: percentile (top 25%) | P4: Plot Size | R4: acre | U4: N/acre | V4: =+IF(A4="","",IF(Q4="","",COUNTIF(H4:H1003,1)/$Q$4)) ->  | AE4: 16.3
A5: =+IF(B5="","",A4+1) ->  | D5: =IF(B5="","",LN(B5)) ->  | E5: =IF(B5="","",1/B5) ->  | H5: 0 | I5: =IF(B5="","",IF(C5<>"",C5,IF($J$6<>"",EXP($J$8+$J$6*E5),3.28084*(1.37 + EXP('Equations - Parameters'!$G$61+('Equations - Parameters'!$H$61*(B5*2.54)^'Equations - Parameters'!$I$61)+$Q$3^'Equations - Parameters'!$J$61 + ($V$5*0.229568)^'Equations - Parameters'!$K$61))))) ->  | J5: slope | M5: =+_xlfn.PERCENTILE.INC(I4:I1003,0.75) ->  | Q5: =+IF(Q3="","",IF(Q3<=9,"Error…Age should be >= 10 !!","")) ->  | U5: BA (ft2/acre) | V5: =+IF(A4="","",IF(Q4="","",SUM(G4:G1003)/$Q$4)) ->  | AE5: 8.9 | AF5: 72
A6: =+IF(B6="","",A5+1) ->  | H6: 0 | I6: =IF(B6="","",IF(C6<>"",C6,IF($J$6<>"",EXP($J$8+$J$6*E6),3.28084*(1.37 + EXP('Equations - Parameters'!$G$61+('Equations - Parameters'!$H$61*(B6*2.54)^'Equations - Parameters'!$I$61)+$Q$3^'Equations - Parameters'!$J$61 + ($V$5*0.229568)^'Equations - Parameters'!$K$61))))) ->  | J6: =+IF(J4<3,"",SLOPE(F4:F1003,E4:E1003)) ->  | M6: N_plot | U6: Hdom (ft) | V6: =+IF(A4="","",IF(Q4="","",AVERAGE(L4:L1003))) ->  | AE6: 10.7
H7: 0 | I7: =IF(B7="","",IF(C7<>"",C7,IF($J$6<>"",EXP($J$8+$J$6*E7),3.28084*(1.37 + EXP('Equations - Parameters'!$G$61+('Equations - Parameters'!$H$61*(B7*2.54)^'Equations - Parameters'!$I$61)+$Q$3^'Equations - Parameters'!$J$61 + ($V$5*0.229568)^'Equations - Parameters'!$K$61))))) ->  | J7: intercept | M7: =+MAX(A4:A1003) -> 0 | U7: SI (ft) base age=50 yrs. | V7: =+IF(A4="","",IF(Q4="","",4.5+(('Equations - Parameters'!$F$14+(0.5*($V$6-4.5-'Equations - Parameters'!$F$14+SQRT(((($V$6-4.5)-'Equations - Parameters'!$F$14))^2+4*'Equations - Parameters'!$G$14*($V$6-4.5)*((50-Inputs!$B$9)^-'Equations - Parameters'!$H$14)))))/(1+('Equations - Parameters'!$G$14/(0.5*($V$6-4.5-'Equations - Parameters'!$F$14+SQRT(((($V$6-4.5)-'Equations - Parameters'!$F$14))^2+4*'Equations - Parameters'!$G$14*($V$6-4.5)*(($Q$3-Inputs!$B$9)^-'Equations - Parameters'!$H$14))))*((50-Inputs!$B$9)^-'Equations - Parameters'!$H$14)))))) ->  | AE7: 8.8 | AF7: 71
H8: 0 | I8: =IF(B8="","",IF(C8<>"",C8,IF($J$6<>"",EXP($J$8+$J$6*E8),3.28084*(1.37 + EXP('Equations - Parameters'!$G$61+('Equations - Parameters'!$H$61*(B8*2.54)^'Equations - Parameters'!$I$61)+$Q$3^'Equations - Parameters'!$J$61 + ($V$5*0.229568)^'Equations - Parameters'!$K$61))))) ->  | J8: =+IF(J4<3,"",INTERCEPT(F4:F1003,E4:E1003)) ->  | AE8: 4.9
H9: 0 | I9: =IF(B9="","",IF(C9<>"",C9,IF($J$6<>"",EXP($J$8+$J$6*E9),3.28084*(1.37 + EXP('Equations - Parameters'!$G$61+('Equations - Parameters'!$H$61*(B9*2.54)^'Equations - Parameters'!$I$61)+$Q$3^'Equations - Parameters'!$J$61 + ($V$5*0.229568)^'Equations - Parameters'!$K$61))))) ->  | M9: Rank75% | AE9: 13.5 | AF9: 72
G10: =IF(B10="","",(PI()*(B10/12)^2)/4) ->  | H10: 0 | I10: =IF(B10="","",IF(C10<>"",C10,IF($J$6<>"",EXP($J$8+$J$6*E10),3.28084*(1.37 + EXP('Equations - Parameters'!$G$61+('Equations - Parameters'!$H$61*(B10*2.54)^'Equations - Parameters'!$I$61)+$Q$3^'Equations - Parameters'!$J$61 + ($V$5*0.229568)^'Equations - Parameters'!$K$61))))) ->  | L10: =+IF(K10<=$M$10,I10,"") ->  | M10: =ROUND(0.25*M7,0) -> 0 | AE10: 12.3 | AF10: 71
H11: 0 | I11: =IF(B11="","",IF(C11<>"",C11,IF($J$6<>"",EXP($J$8+$J$6*E11),3.28084*(1.37 + EXP('Equations - Parameters'!$G$61+('Equations - Parameters'!$H$61*(B11*2.54)^'Equations - Parameters'!$I$61)+$Q$3^'Equations - Parameters'!$J$61 + ($V$5*0.229568)^'Equations - Parameters'!$K$61))))) ->  | AE11: 12 | AF11: 69
H12: 0 | I12: =IF(B12="","",IF(C12<>"",C12,IF($J$6<>"",EXP($J$8+$J$6*E12),3.28084*(1.37 + EXP('Equations - Parameters'!$G$61+('Equations - Parameters'!$H$61*(B12*2.54)^'Equations - Parameters'!$I$61)+$Q$3^'Equations - Parameters'!$J$61 + ($V$5*0.229568)^'Equations - Parameters'!$K$61))))) ->  | AE12: 10.2 | AF12: 64
F13: =IF(C13="","",LN(C13)) ->  | H13: 0 | I13: =IF(B13="","",IF(C13<>"",C13,IF($J$6<>"",EXP($J$8+$J$6*E13),3.28084*(1.37 + EXP('Equations - Parameters'!$G$61+('Equations - Parameters'!$H$61*(B13*2.54)^'Equations - Parameters'!$I$61)+$Q$3^'Equations - Parameters'!$J$61 + ($V$5*0.229568)^'Equations - Parameters'!$K$61))))) ->  | AE13: 12.2 | AF13: 74
F14: =IF(C14="","",LN(C14)) ->  | H14: 0 | I14: =IF(B14="","",IF(C14<>"",C14,IF($J$6<>"",EXP($J$8+$J$6*E14),3.28084*(1.37 + EXP('Equations - Parameters'!$G$61+('Equations - Parameters'!$H$61*(B14*2.54)^'Equations - Parameters'!$I$61)+$Q$3^'Equations - Parameters'!$J$61 + ($V$5*0.229568)^'Equations - Parameters'!$K$61))))) ->  | AE14: 15.5 | AF14: 78
H15: 0 | I15: =IF(B15="","",IF(C15<>"",C15,IF($J$6<>"",EXP($J$8+$J$6*E15),3.28084*(1.37 + EXP('Equations - Parameters'!$G$61+('Equations - Parameters'!$H$61*(B15*2.54)^'Equations - Parameters'!$I$61)+$Q$3^'Equations - Parameters'!$J$61 + ($V$5*0.229568)^'Equations - Parameters'!$K$61))))) ->  | AE15: 11.5 | AF15: 73
H16: 0 | I16: =IF(B16="","",IF(C16<>"",C16,IF($J$6<>"",EXP($J$8+$J$6*E16),3.28084*(1.37 + EXP('Equations - Parameters'!$G$61+('Equations - Parameters'!$H$61*(B16*2.54)^'Equations - Parameters'!$I$61)+$Q$3^'Equations - Parameters'!$J$61 + ($V$5*0.229568)^'Equations - Parameters'!$K$61))))) -> 
H17: 0 | I17: =IF(B17="","",IF(C17<>"",C17,IF($J$6<>"",EXP($J$8+$J$6*E17),3.28084*(1.37 + EXP('Equations - Parameters'!$G$61+('Equations - Parameters'!$H$61*(B17*2.54)^'Equations - Parameters'!$I$61)+$Q$3^'Equations - Parameters'!$J$61 + ($V$5*0.229568)^'Equations - Parameters'!$K$61))))) -> 
H18: 0 | I18: =IF(B18="","",IF(C18<>"",C18,IF($J$6<>"",EXP($J$8+$J$6*E18),3.28084*(1.37 + EXP('Equations - Parameters'!$G$61+('Equations - Parameters'!$H$61*(B18*2.54)^'Equations - Parameters'!$I$61)+$Q$3^'Equations - Parameters'!$J$61 + ($V$5*0.229568)^'Equations - Parameters'!$K$61))))) -> 
H19: 0 | I19: =IF(B19="","",IF(C19<>"",C19,IF($J$6<>"",EXP($J$8+$J$6*E19),3.28084*(1.37 + EXP('Equations - Parameters'!$G$61+('Equations - Parameters'!$H$61*(B19*2.54)^'Equations - Parameters'!$I$61)+$Q$3^'Equations - Parameters'!$J$61 + ($V$5*0.229568)^'Equations - Parameters'!$K$61))))) -> 
H20: 0 | I20: =IF(B20="","",IF(C20<>"",C20,IF($J$6<>"",EXP($J$8+$J$6*E20),3.28084*(1.37 + EXP('Equations - Parameters'!$G$61+('Equations - Parameters'!$H$61*(B20*2.54)^'Equations - Parameters'!$I$61)+$Q$3^'Equations - Parameters'!$J$61 + ($V$5*0.229568)^'Equations - Parameters'!$K$61))))) -> 
H21: 0 | I21: =IF(B21="","",IF(C21<>"",C21,IF($J$6<>"",EXP($J$8+$J$6*E21),3.28084*(1.37 + EXP('Equations - Parameters'!$G$61+('Equations - Parameters'!$H$61*(B21*2.54)^'Equations - Parameters'!$I$61)+$Q$3^'Equations - Parameters'!$J$61 + ($V$5*0.229568)^'Equations - Parameters'!$K$61))))) -> 
H22: 0 | I22: =IF(B22="","",IF(C22<>"",C22,IF($J$6<>"",EXP($J$8+$J$6*E22),3.28084*(1.37 + EXP('Equations - Parameters'!$G$61+('Equations - Parameters'!$H$61*(B22*2.54)^'Equations - Parameters'!$I$61)+$Q$3^'Equations - Parameters'!$J$61 + ($V$5*0.229568)^'Equations - Parameters'!$K$61))))) -> 
H23: 0 | I23: =IF(B23="","",IF(C23<>"",C23,IF($J$6<>"",EXP($J$8+$J$6*E23),3.28084*(1.37 + EXP('Equations - Parameters'!$G$61+('Equations - Parameters'!$H$61*(B23*2.54)^'Equations - Parameters'!$I$61)+$Q$3^'Equations - Parameters'!$J$61 + ($V$5*0.229568)^'Equations - Parameters'!$K$61))))) -> 
H24: 0 | I24: =IF(B24="","",IF(C24<>"",C24,IF($J$6<>"",EXP($J$8+$J$6*E24),3.28084*(1.37 + EXP('Equations - Parameters'!$G$61+('Equations - Parameters'!$H$61*(B24*2.54)^'Equations - Parameters'!$I$61)+$Q$3^'Equations - Parameters'!$J$61 + ($V$5*0.229568)^'Equations - Parameters'!$K$61))))) -> 
H25: 0 | I25: =IF(B25="","",IF(C25<>"",C25,IF($J$6<>"",EXP($J$8+$J$6*E25),3.28084*(1.37 + EXP('Equations - Parameters'!$G$61+('Equations - Parameters'!$H$61*(B25*2.54)^'Equations - Parameters'!$I$61)+$Q$3^'Equations - Parameters'!$J$61 + ($V$5*0.229568)^'Equations - Parameters'!$K$61))))) -> 
H26: 0 | I26: =IF(B26="","",IF(C26<>"",C26,IF($J$6<>"",EXP($J$8+$J$6*E26),3.28084*(1.37 + EXP('Equations - Parameters'!$G$61+('Equations - Parameters'!$H$61*(B26*2.54)^'Equations - Parameters'!$I$61)+$Q$3^'Equations - Parameters'!$J$61 + ($V$5*0.229568)^'Equations - Parameters'!$K$61))))) -> 
H27: 0 | I27: =IF(B27="","",IF(C27<>"",C27,IF($J$6<>"",EXP($J$8+$J$6*E27),3.28084*(1.37 + EXP('Equations - Parameters'!$G$61+('Equations - Parameters'!$H$61*(B27*2.54)^'Equations - Parameters'!$I$61)+$Q$3^'Equations - Parameters'!$J$61 + ($V$5*0.229568)^'Equations - Parameters'!$K$61))))) -> 
H28: 0 | I28: =IF(B28="","",IF(C28<>"",C28,IF($J$6<>"",EXP($J$8+$J$6*E28),3.28084*(1.37 + EXP('Equations - Parameters'!$G$61+('Equations - Parameters'!$H$61*(B28*2.54)^'Equations - Parameters'!$I$61)+$Q$3^'Equations - Parameters'!$J$61 + ($V$5*0.229568)^'Equations - Parameters'!$K$61))))) -> 
H29: 0 | I29: =IF(B29="","",IF(C29<>"",C29,IF($J$6<>"",EXP($J$8+$J$6*E29),3.28084*(1.37 + EXP('Equations - Parameters'!$G$61+('Equations - Parameters'!$H$61*(B29*2.54)^'Equations - Parameters'!$I$61)+$Q$3^'Equations - Parameters'!$J$61 + ($V$5*0.229568)^'Equations - Parameters'!$K$61))))) -> 
H30: 0 | I30: =IF(B30="","",IF(C30<>"",C30,IF($J$6<>"",EXP($J$8+$J$6*E30),3.28084*(1.37 + EXP('Equations - Parameters'!$G$61+('Equations - Parameters'!$H$61*(B30*2.54)^'Equations - Parameters'!$I$61)+$Q$3^'Equations - Parameters'!$J$61 + ($V$5*0.229568)^'Equations - Parameters'!$K$61))))) -> 
H31: 0 | I31: =IF(B31="","",IF(C31<>"",C31,IF($J$6<>"",EXP($J$8+$J$6*E31),3.28084*(1.37 + EXP('Equations - Parameters'!$G$61+('Equations - Parameters'!$H$61*(B31*2.54)^'Equations - Parameters'!$I$61)+$Q$3^'Equations - Parameters'!$J$61 + ($V$5*0.229568)^'Equations - Parameters'!$K$61))))) -> 
H32: 0 | I32: =IF(B32="","",IF(C32<>"",C32,IF($J$6<>"",EXP($J$8+$J$6*E32),3.28084*(1.37 + EXP('Equations - Parameters'!$G$61+('Equations - Parameters'!$H$61*(B32*2.54)^'Equations - Parameters'!$I$61)+$Q$3^'Equations - Parameters'!$J$61 + ($V$5*0.229568)^'Equations - Parameters'!$K$61))))) -> 
H33: 0 | I33: =IF(B33="","",IF(C33<>"",C33,IF($J$6<>"",EXP($J$8+$J$6*E33),3.28084*(1.37 + EXP('Equations - Parameters'!$G$61+('Equations - Parameters'!$H$61*(B33*2.54)^'Equations - Parameters'!$I$61)+$Q$3^'Equations - Parameters'!$J$61 + ($V$5*0.229568)^'Equations - Parameters'!$K$61))))) -> 
H34: 0 | I34: =IF(B34="","",IF(C34<>"",C34,IF($J$6<>"",EXP($J$8+$J$6*E34),3.28084*(1.37 + EXP('Equations - Parameters'!$G$61+('Equations - Parameters'!$H$61*(B34*2.54)^'Equations - Parameters'!$I$61)+$Q$3^'Equations - Parameters'!$J$61 + ($V$5*0.229568)^'Equations - Parameters'!$K$61))))) -> 
H35: 0 | I35: =IF(B35="","",IF(C35<>"",C35,IF($J$6<>"",EXP($J$8+$J$6*E35),3.28084*(1.37 + EXP('Equations - Parameters'!$G$61+('Equations - Parameters'!$H$61*(B35*2.54)^'Equations - Parameters'!$I$61)+$Q$3^'Equations - Parameters'!$J$61 + ($V$5*0.229568)^'Equations - Parameters'!$K$61))))) -> 
H36: =+IF(B36=0,0,IF(B36="",0,1)) -> 0 | I36: =IF(B36="","",IF(C36<>"",C36,IF($J$6<>"",EXP($J$8+$J$6*E36),3.28084*(1.37 + EXP('Equations - Parameters'!$G$61+('Equations - Parameters'!$H$61*(B36*2.54)^'Equations - Parameters'!$I$61)+$Q$3^'Equations - Parameters'!$J$61 + ($V$5*0.229568)^'Equations - Parameters'!$K$61))))) -> 
H37: 0 | I37: =IF(B37="","",IF(C37<>"",C37,IF($J$6<>"",EXP($J$8+$J$6*E37),3.28084*(1.37 + EXP('Equations - Parameters'!$G$61+('Equations - Parameters'!$H$61*(B37*2.54)^'Equations - Parameters'!$I$61)+$Q$3^'Equations - Parameters'!$J$61 + ($V$5*0.229568)^'Equations - Parameters'!$K$61))))) -> 
H38: 0 | I38: =IF(B38="","",IF(C38<>"",C38,IF($J$6<>"",EXP($J$8+$J$6*E38),3.28084*(1.37 + EXP('Equations - Parameters'!$G$61+('Equations - Parameters'!$H$61*(B38*2.54)^'Equations - Parameters'!$I$61)+$Q$3^'Equations - Parameters'!$J$61 + ($V$5*0.229568)^'Equations - Parameters'!$K$61))))) -> 
H39: 0 | I39: =IF(B39="","",IF(C39<>"",C39,IF($J$6<>"",EXP($J$8+$J$6*E39),3.28084*(1.37 + EXP('Equations - Parameters'!$G$61+('Equations - Parameters'!$H$61*(B39*2.54)^'Equations - Parameters'!$I$61)+$Q$3^'Equations - Parameters'!$J$61 + ($V$5*0.229568)^'Equations - Parameters'!$K$61))))) -> 
H40: 0 | I40: =IF(B40="","",IF(C40<>"",C40,IF($J$6<>"",EXP($J$8+$J$6*E40),3.28084*(1.37 + EXP('Equations - Parameters'!$G$61+('Equations - Parameters'!$H$61*(B40*2.54)^'Equations - Parameters'!$I$61)+$Q$3^'Equations - Parameters'!$J$61 + ($V$5*0.229568)^'Equations - Parameters'!$K$61))))) -> 
H41: 0 | I41: =IF(B41="","",IF(C41<>"",C41,IF($J$6<>"",EXP($J$8+$J$6*E41),3.28084*(1.37 + EXP('Equations - Parameters'!$G$61+('Equations - Parameters'!$H$61*(B41*2.54)^'Equations - Parameters'!$I$61)+$Q$3^'Equations - Parameters'!$J$61 + ($V$5*0.229568)^'Equations - Parameters'!$K$61))))) -> 
H42: 0 | I42: =IF(B42="","",IF(C42<>"",C42,IF($J$6<>"",EXP($J$8+$J$6*E42),3.28084*(1.37 + EXP('Equations - Parameters'!$G$61+('Equations - Parameters'!$H$61*(B42*2.54)^'Equations - Parameters'!$I$61)+$Q$3^'Equations - Parameters'!$J$61 + ($V$5*0.229568)^'Equations - Parameters'!$K$61))))) -> 
H43: 0 | I43: =IF(B43="","",IF(C43<>"",C43,IF($J$6<>"",EXP($J$8+$J$6*E43),3.28084*(1.37 + EXP('Equations - Parameters'!$G$61+('Equations - Parameters'!$H$61*(B43*2.54)^'Equations - Parameters'!$I$61)+$Q$3^'Equations - Parameters'!$J$61 + ($V$5*0.229568)^'Equations - Parameters'!$K$61))))) -> 
H44: 0 | I44: =IF(B44="","",IF(C44<>"",C44,IF($J$6<>"",EXP($J$8+$J$6*E44),3.28084*(1.37 + EXP('Equations - Parameters'!$G$61+('Equations - Parameters'!$H$61*(B44*2.54)^'Equations - Parameters'!$I$61)+$Q$3^'Equations - Parameters'!$J$61 + ($V$5*0.229568)^'Equations - Parameters'!$K$61))))) -> 
H45: 0 | I45: =IF(B45="","",IF(C45<>"",C45,IF($J$6<>"",EXP($J$8+$J$6*E45),3.28084*(1.37 + EXP('Equations - Parameters'!$G$61+('Equations - Parameters'!$H$61*(B45*2.54)^'Equations - Parameters'!$I$61)+$Q$3^'Equations - Parameters'!$J$61 + ($V$5*0.229568)^'Equations - Parameters'!$K$61))))) -> 
H46: 0 | I46: =IF(B46="","",IF(C46<>"",C46,IF($J$6<>"",EXP($J$8+$J$6*E46),3.28084*(1.37 + EXP('Equations - Parameters'!$G$61+('Equations - Parameters'!$H$61*(B46*2.54)^'Equations - Parameters'!$I$61)+$Q$3^'Equations - Parameters'!$J$61 + ($V$5*0.229568)^'Equations - Parameters'!$K$61))))) -> 
H47: 0 | I47: =IF(B47="","",IF(C47<>"",C47,IF($J$6<>"",EXP($J$8+$J$6*E47),3.28084*(1.37 + EXP('Equations - Parameters'!$G$61+('Equations - Parameters'!$H$61*(B47*2.54)^'Equations - Parameters'!$I$61)+$Q$3^'Equations - Parameters'!$J$61 + ($V$5*0.229568)^'Equations - Parameters'!$K$61))))) -> 
H48: 0 | I48: =IF(B48="","",IF(C48<>"",C48,IF($J$6<>"",EXP($J$8+$J$6*E48),3.28084*(1.37 + EXP('Equations - Parameters'!$G$61+('Equations - Parameters'!$H$61*(B48*2.54)^'Equations - Parameters'!$I$61)+$Q$3^'Equations - Parameters'!$J$61 + ($V$5*0.229568)^'Equations - Parameters'!$K$61))))) -> 
H49: 0 | I49: =IF(B49="","",IF(C49<>"",C49,IF($J$6<>"",EXP($J$8+$J$6*E49),3.28084*(1.37 + EXP('Equations - Parameters'!$G$61+('Equations - Parameters'!$H$61*(B49*2.54)^'Equations - Parameters'!$I$61)+$Q$3^'Equations - Parameters'!$J$61 + ($V$5*0.229568)^'Equations - Parameters'!$K$61))))) -> 
H50: 0 | I50: =IF(B50="","",IF(C50<>"",C50,IF($J$6<>"",EXP($J$8+$J$6*E50),3.28084*(1.37 + EXP('Equations - Parameters'!$G$61+('Equations - Parameters'!$H$61*(B50*2.54)^'Equations - Parameters'!$I$61)+$Q$3^'Equations - Parameters'!$J$61 + ($V$5*0.229568)^'Equations - Parameters'!$K$61))))) -> 
H51: 0 | I51: =IF(B51="","",IF(C51<>"",C51,IF($J$6<>"",EXP($J$8+$J$6*E51),3.28084*(1.37 + EXP('Equations - Parameters'!$G$61+('Equations - Parameters'!$H$61*(B51*2.54)^'Equations - Parameters'!$I$61)+$Q$3^'Equations - Parameters'!$J$61 + ($V$5*0.229568)^'Equations - Parameters'!$K$61))))) -> 
H52: 0 | I52: =IF(B52="","",IF(C52<>"",C52,IF($J$6<>"",EXP($J$8+$J$6*E52),3.28084*(1.37 + EXP('Equations - Parameters'!$G$61+('Equations - Parameters'!$H$61*(B52*2.54)^'Equations - Parameters'!$I$61)+$Q$3^'Equations - Parameters'!$J$61 + ($V$5*0.229568)^'Equations - Parameters'!$K$61))))) -> 
H53: 0 | I53: =IF(B53="","",IF(C53<>"",C53,IF($J$6<>"",EXP($J$8+$J$6*E53),3.28084*(1.37 + EXP('Equations - Parameters'!$G$61+('Equations - Parameters'!$H$61*(B53*2.54)^'Equations - Parameters'!$I$61)+$Q$3^'Equations - Parameters'!$J$61 + ($V$5*0.229568)^'Equations - Parameters'!$K$61))))) -> 
H54: 0 | I54: =IF(B54="","",IF(C54<>"",C54,IF($J$6<>"",EXP($J$8+$J$6*E54),3.28084*(1.37 + EXP('Equations - Parameters'!$G$61+('Equations - Parameters'!$H$61*(B54*2.54)^'Equations - Parameters'!$I$61)+$Q$3^'Equations - Parameters'!$J$61 + ($V$5*0.229568)^'Equations - Parameters'!$K$61))))) -> 
H55: 0 | I55: =IF(B55="","",IF(C55<>"",C55,IF($J$6<>"",EXP($J$8+$J$6*E55),3.28084*(1.37 + EXP('Equations - Parameters'!$G$61+('Equations - Parameters'!$H$61*(B55*2.54)^'Equations - Parameters'!$I$61)+$Q$3^'Equations - Parameters'!$J$61 + ($V$5*0.229568)^'Equations - Parameters'!$K$61))))) -> 
H56: 0 | I56: =IF(B56="","",IF(C56<>"",C56,IF($J$6<>"",EXP($J$8+$J$6*E56),3.28084*(1.37 + EXP('Equations - Parameters'!$G$61+('Equations - Parameters'!$H$61*(B56*2.54)^'Equations - Parameters'!$I$61)+$Q$3^'Equations - Parameters'!$J$61 + ($V$5*0.229568)^'Equations - Parameters'!$K$61))))) -> 
H57: 0 | I57: =IF(B57="","",IF(C57<>"",C57,IF($J$6<>"",EXP($J$8+$J$6*E57),3.28084*(1.37 + EXP('Equations - Parameters'!$G$61+('Equations - Parameters'!$H$61*(B57*2.54)^'Equations - Parameters'!$I$61)+$Q$3^'Equations - Parameters'!$J$61 + ($V$5*0.229568)^'Equations - Parameters'!$K$61))))) -> 
H58: 0 | I58: =IF(B58="","",IF(C58<>"",C58,IF($J$6<>"",EXP($J$8+$J$6*E58),3.28084*(1.37 + EXP('Equations - Parameters'!$G$61+('Equations - Parameters'!$H$61*(B58*2.54)^'Equations - Parameters'!$I$61)+$Q$3^'Equations - Parameters'!$J$61 + ($V$5*0.229568)^'Equations - Parameters'!$K$61))))) -> 
H59: 0 | I59: =IF(B59="","",IF(C59<>"",C59,IF($J$6<>"",EXP($J$8+$J$6*E59),3.28084*(1.37 + EXP('Equations - Parameters'!$G$61+('Equations - Parameters'!$H$61*(B59*2.54)^'Equations - Parameters'!$I$61)+$Q$3^'Equations - Parameters'!$J$61 + ($V$5*0.229568)^'Equations - Parameters'!$K$61))))) -> 
H60: 0 | I60: =IF(B60="","",IF(C60<>"",C60,IF($J$6<>"",EXP($J$8+$J$6*E60),3.28084*(1.37 + EXP('Equations - Parameters'!$G$61+('Equations - Parameters'!$H$61*(B60*2.54)^'Equations - Parameters'!$I$61)+$Q$3^'Equations - Parameters'!$J$61 + ($V$5*0.229568)^'Equations - Parameters'!$K$61))))) -> 
H61: 0 | I61: =IF(B61="","",IF(C61<>"",C61,IF($J$6<>"",EXP($J$8+$J$6*E61),3.28084*(1.37 + EXP('Equations - Parameters'!$G$61+('Equations - Parameters'!$H$61*(B61*2.54)^'Equations - Parameters'!$I$61)+$Q$3^'Equations - Parameters'!$J$61 + ($V$5*0.229568)^'Equations - Parameters'!$K$61))))) -> 
H62: 0 | I62: =IF(B62="","",IF(C62<>"",C62,IF($J$6<>"",EXP($J$8+$J$6*E62),3.28084*(1.37 + EXP('Equations - Parameters'!$G$61+('Equations - Parameters'!$H$61*(B62*2.54)^'Equations - Parameters'!$I$61)+$Q$3^'Equations - Parameters'!$J$61 + ($V$5*0.229568)^'Equations - Parameters'!$K$61))))) -> 
... 77 more rows

Sheet Growth&Yield (hidden)
D1: Unthinned | H1: N/acre - Thinning at Fixed Age | M1: BA - Thinning at Fixed Age | R1: BA removed - Thinning at Fixed Age | W1: BA removed | X1: BA residual | Y1: QMD - Thinning at Fixed Age | AD1: SDI - Thinning at Fixed Age | AI1: Thinning % BA | BI1: N/ha - Thinning at Target BA | BN1: N/acre - Thinning at Target BA | BS1: BA - Thinning at Target BA | BX1: QMD - Thinning at Target BA | CC1: SDI - Thinning at Target BA | CH1: Thinning - Target BA | FH1: N/acre | FM1: BA | FR1: QMD | FW1: SDI | GB1: D24 (cm) | GF1: Volume Over Bark | GK1: Volume Inside Bark | GP1: Thinning ID | GU1: Age of Thinning | GZ1: BA Removed | HE1: BA Before Thinning | HJ1: BA After Thinning | HO1: N Removed | HT1: N Before Thinning | HY1: N After Thinning | ID1: Vol (OB) Removed | II1: Vol (OB) Before Thinning | IN1: Vol (OB) After Thinning | IS1: Vol (IB) Removed | IX1: Vol (IB) Before Thinning | JC1: Vol (IB) After Thinning | JH1: QMD Removed | JM1: Merchantable Volume 0B Unthinned | JP1: Merchantable Volume OB Thinning1 | JS1: Merchantable Volume OB Thinning2 | JV1: Merchantable Volume OB Thinning3 | JY1: Merchantable Volume OB Thinning4 | KB1: Removed Merchantable Volume OB Unthinned | KE1: Removed Merchantable Volume OB Thinning 1 | KH1: Removed Merchantable Volume OB Thinning 2 | KK1: Removed Merchantable Volume OB Thinning 3 | KN1: Removed Merchantable Volume OB Thinning 4 | KQ1: Merchantable Volume IB Unthinned | KT1: Merchantable Volume IB Thinning1 | KW1: Merchantable Volume IB Thinning2 | KZ1: Merchantable Volume IB Thinning3 | LC1: Merchantable Volume IB Thinning4 | LF1: Removed Merchantable Volume IB Unthinned | LI1: Removed Merchantable Volume IB Thinning 1 | LL1: Removed Merchantable Volume IB Thinning 2 | LO1: Removed Merchantable Volume IB Thinning 3 | LR1: Removed Merchantable Volume IB Thinning 4
A2: Year | B2: Age | C2: Hdom (ft) | D2: N/acre | E2: BA | F2: QMD | G2: SDI | H2: Unthinned | I2: Thinning 1 | J2: Thinning 2 | K2: Thinning 3 | L2: Thinning 4 | M2: Unthinned | N2: Thinning 1 | O2: Thinning 2 | P2: Thinning 3 | Q2: Thinning 4 | R2: Unthinned | S2: Thinning 1 | T2: Thinning 2 | U2: Thinning 3 | V2: Thinning 4 | Y2: Unthinned | Z2: Thinning 1 | AA2: Thinning 2 | AB2: Thinning 3 | AC2: Thinning 4 | AD2: Unthinned | AE2: Thinning 1 | AF2: Thinning 2 | AG2: Thinning 3 | AH2: Thinning 4 | AI2: BA unthinned counterpart Th3_1 | AJ2: BA unthinned | AK2: BA removed at Th4_1 | AL2: Age at Th1 | AM2: BA unthinned counterpart Th2 | AN2: BA removed at Th2 | AO2: Age at Th2 | AP2: BA unthinned counterpart Th3 | AQ2: BA removed at Th3 | AR2: Age at Th3 | AS2: BA unthinned counterpart Th4 | AT2: BA removed at Th4 | AU2: Age at Th4 | AV2: BA_Th1 | AW2: Th2 ID | AX2: C I Th4_1 | AY2: BA_Th2 | AZ2: Th2 ID | BA2: C I Th4_2 | BB2: BA_Th3 | BC2: Th3 ID | BD2: C I Th3 | BE2: BA_Th4 | BF2: Th4 ID | BG2: C I Th4 | BH2: BA Residual | BI2: Unthinned | BJ2: Thinning 1 | BK2: Thinning 2 | BL2: Thinning 3 | BM2: Thinning 4 | BN2: Unthinned | BO2: Thinning 1 | BP2: Thinning 2 | BQ2: Thinning 3 | BR2: Thinning 4 | BS2: Unthinned | BT2: Thinning 1 | BU2: Thinning 2 | BV2: Thinning 3 | BW2: Thinning 4 | BX2: Unthinned | BY2: Thinning 1 | BZ2: Thinning 2 | CA2: Thinning 3 | CB2: Thinning 4 | CC2: Unthinned | CD2: Thinning 1 | CE2: Thinning 2 | CF2: Thinning 3 | CG2: Thinning 4 | CH2: BA unthinned counterpart Th1 | CI2: BA unthinned | CJ2: BA Th1 | CK2: Th1 ID | CL2: BA residual at Th1 | CM2: BA removed at Th1 | CN2: Age at Th1 | CO2: C I Th1 | CP2: BA unthinned counterpart Th2 | CQ2: BA Th2 | CR2: Th2 ID | CS2: BA residual at Th2 | CT2: BA removed at Th2 | CU2: Age at Th2 | CV2: C I Th2 | CW2: BA unthinned counterpart Th3 | CX2: BA Th3 | CY2: Th3 ID | CZ2: BA residual at Th3 | DA2: BA removed at Th3 | DB2: Age at Th3 | DC2: C I Th3 | DD2: BA unthinned counterpart Th4 | DE2: BA Th4 | DF2: Th4 ID | DG2: BA residual at Th4 | DH2: BA removed at Th4 | DI2: Age at Th4 | DJ2: C I Th4 | FF2: Age | FG2: Hdom (m) | FH2: Unthinned | FI2: Thinning 1 | FJ2: Thinning 2 | FK2: Thinning 3 | FL2: Thinning 4 | FM2: Unthinned | FN2: Thinning 1 | FO2: Thinning 2 | FP2: Thinning 3 | FQ2: Thinning 4 | FR2: Unthinned | FS2: Thinning 1 | FT2: Thinning 2 | FU2: Thinning 3 | FV2: Thinning 4 | FW2: Unthinned | FX2: Thinning 1 | FY2: Thinning 2 | FZ2: Thinning 3 | GA2: Thinning 4 | GB2: Unthinned | GC2: Thinning 1 | GD2: Thinning 2 | GE2: Thinning 3 | GF2: Unthinned | GG2: Thinning 1 | GH2: Thinning 2 | GI2: Thinning 3 | GJ2: Thinning 4 | GK2: Unthinned | GL2: Thinning 1 | GM2: Thinning 2 | GN2: Thinning 3 | GO2: Thinning 4 | GP2: Unthinned | GQ2: Thinning 1 | GR2: Thinning 2 | GS2: Thinning 3 | GT2: Thinning 4 | GU2: Unthinned | GV2: Thinning 1 | GW2: Thinning 2 | GX2: Thinning 3 | GY2: Thinning 4 | GZ2: Unthinned | HA2: Thinning 1 | HB2: Thinning 2 | HC2: Thinning 3 | HD2: Thinning 4 | HE2: Unthinned | HF2: Thinning 1 | HG2: Thinning 2 | HH2: Thinning 3 | HI2: Thinning 4 | HJ2: Unthinned | HK2: Thinning 1 | HL2: Thinning 2 | HM2: Thinning 3 | HN2: Thinning 4 | HO2: Unthinned | HP2: Thinning 1 | HQ2: Thinning 2 | HR2: Thinning 3 | HS2: Thinning 4 | HT2: Unthinned | HU2: Thinning 1 | HV2: Thinning 2 | HW2: Thinning 3 | HX2: Thinning 4 | HY2: Unthinned | HZ2: Thinning 1 | IA2: Thinning 2 | IB2: Thinning 3 | IC2: Thinning 4 | ID2: Unthinned | IE2: Thinning 1 | IF2: Thinning 2 | IG2: Thinning 3 | IH2: Thinning 4 | II2: Unthinned | IJ2: Thinning 1 | IK2: Thinning 2 | IL2: Thinning 3 | IM2: Thinning 4 | IN2: Unthinned | IO2: Thinning 1 | IP2: Thinning 2 | IQ2: Thinning 3 | IR2: Thinning 4 | IS2: Unthinned | IT2: Thinning 1 | IU2: Thinning 2 | IV2: Thinning 3 | IW2: Thinning 4 | IX2: Unthinned | IY2: Thinning 1 | IZ2: Thinning 2 | JA2: Thinning 3 | JB2: Thinning 4 | JC2: Unthinned | JD2: Thinning 1 | JE2: Thinning 2 | JF2: Thinning 3 | JG2: Thinning 4 | JH2: Unthinned | JI2: Thinning 1 | JJ2: Thinning 2 | JK2: Thinning 3 | JL2: Thinning 4 | JM2: Sawtimber | JN2: CNS | JO2: Pulpwood | JP2: Sawtimber | JQ2: CNS | JR2: Pulpwood | JS2: Sawtimber | JT2: CNS | JU2: Pulpwood | JV2: Sawtimber | JW2: CNS | JX2: Pulpwood | JY2: Sawtimber | JZ2: CNS | KA2: Pulpwood | KB2: Sawtimber | KC2: CNS | KD2: Pulpwood | KE2: Sawtimber | KF2: CNS | KG2: Pulpwood | KH2: Sawtimber | KI2: CNS | KJ2: Pulpwood | KK2: Sawtimber | KL2: CNS | KM2: Pulpwood | KN2: Sawtimber | KO2: CNS | KP2: Pulpwood | KQ2: Sawtimber | KR2: CNS | KS2: Pulpwood | KT2: Sawtimber | KU2: CNS | KV2: Pulpwood | KW2: Sawtimber | KX2: CNS | KY2: Pulpwood | KZ2: Sawtimber | LA2: CNS | LB2: Pulpwood | LC2: Sawtimber | LD2: CNS | LE2: Pulpwood | LF2: Sawtimber | LG2: CNS | LH2: Pulpwood | LI2: Sawtimber | LJ2: CNS | LK2: Pulpwood | LL2: Sawtimber | LM2: CNS | LN2: Pulpwood | LO2: Sawtimber | LP2: CNS | LQ2: Pulpwood | LR2: Sawtimber | LS2: CNS | LT2: Pulpwood
D3: trees acre-1 | E3: ft2 acre-1 | F3: inch | G3: trees acre-1 | H3: (trees acre-1) | M3: (ft2 acre-1) | R3: (ft2 acre-1) | Y3: (inch) | AD3: (trees acre-1) | AV3: m2 ha-1 | AY3: m2 ha-1 | BB3: m2 ha-1 | BE3: m2 ha-1 | BH3: Thining 4 | BI3: (trees acre-1) | BN3: (trees acre-1) | BS3: (ft2 acre-1) | BX3: (inch) | CC3: (trees acre-1) | FH3: (trees acre-1) | FM3: (ft2 acre-1) | FR3: (inch) | FW3: (trees acre-1) | GB3: (cm) | GF3: (ft3 acre-1) | GK3: (ft3 acre-1) | GU3: (year) | GZ3: (ft2 acre-1) | HE3: (ft2 acre-1) | HJ3: (ft2 acre-1) | HO3: (trees acre-1) | HT3: (trees acre-1) | HY3: (trees acre-1) | ID3: (ft3 acre-1) | II3: (ft3 acre-1) | IN3: (ft3 acre-1) | IS3: (ft3 acre-1) | IX3: (ft3 acre-1) | JC3: (ft3 acre-1) | JH3: (inch) | JM3: (ft3 acre-1) | JP3: (ft3 acre-1) | JS3: (ft3 acre-1) | JV3: (ft3 acre-1) | JY3: (ft3 acre-1) | KB3: (ft3 acre-1) | KE3: (ft3 acre-1) | KH3: (ft3 acre-1) | KK3: (ft3 acre-1) | KN3: (ft3 acre-1) | KQ3: (ft3 acre-1) | KT3: (ft3 acre-1) | KW3: (ft3 acre-1) | KZ3: (ft3 acre-1) | LC3: (ft3 acre-1) | LF3: (ft3 acre-1) | LI3: (ft3 acre-1) | LL3: (ft3 acre-1) | LO3: (ft3 acre-1) | LR3: (ft3 acre-1)
A4: 0 | B4: =+IF($A4+Inputs!$J$14-1>Inputs!$B$6,"",IF($B3=Inputs!$B$6, "",IF($A4=0,Inputs!$J$14,IF(B3=Inputs!$B$6,0,B3+1)))) -> 35 | C4: =+IF($B4="","",IF($B4=Inputs!$B$15,Inputs!$J$15,4.5+(('Equations - Parameters'!$F$14+(0.5*(Inputs!$J$18-4.5-'Equations - Parameters'!$F$14+SQRT((((Inputs!$J$18-4.5)-'Equations - Parameters'!$F$14))^2+4*'Equations - Parameters'!$G$14*(Inputs!$J$18-4.5)*((50-Inputs!$B$9)^-'Equations - Parameters'!$H$14)))))/(1+('Equations - Parameters'!$G$14/(0.5*(Inputs!$J$18-4.5-'Equations - Parameters'!$F$14+SQRT((((Inputs!$J$18-4.5)-'Equations - Parameters'!$F$14))^2+4*'Equations - Parameters'!$G$14*(Inputs!$J$18-4.5)*((50-Inputs!$B$9)^-'Equations - Parameters'!$H$14))))*(($B4-Inputs!$B$9)^-'Equations - Parameters'!$H$14)))))) -> 56.41478273 | D4: =+IF($B4="","",IF(Inputs!$H$11=TRUE,0,IF($B4=Inputs!$J$14,Inputs!$J$16,(D3^('Equations - Parameters'!$F$7+'Equations - Parameters'!$G$7/Inputs!$J$18)+'Equations - Parameters'!$H$7*((($B4-Inputs!$B$9)/200)^'Equations - Parameters'!$I$7-(($B3-Inputs!$B$9)/200)^'Equations - Parameters'!$I$7))^(1/('Equations - Parameters'!$F$7+'Equations - Parameters'!$G$7/Inputs!$J$18))))) -> 0 | E4: =+IF($B4="","",IF(Inputs!$H$11=TRUE,0,IF($B4=Inputs!$J$14,Inputs!$J$17,(E3^(((B3-Inputs!$B$9+'Equations - Parameters'!$I$26)^('Equations - Parameters'!$F$26+'Equations - Parameters'!$G$26*LN(D3)))/((B4-Inputs!$B$9+'Equations - Parameters'!$I$26)^('Equations - Parameters'!$F$26+'Equations - Parameters'!$G$26*LN(D4))))*EXP('Equations - Parameters'!$H$26*(1-(((B3-Inputs!$B$9+'Equations - Parameters'!$I$26)^('Equations - Parameters'!$F$26+'Equations - Parameters'!$G$26*LN(D3)))/((B4-Inputs!$B$9+'Equations - Parameters'!$I$26)^('Equations - Parameters'!$F$26+'Equations - Parameters'!$G$26*LN(D4)))))))))) -> 0 | F4: =+IF($B4="","",IF(Inputs!$H$11=TRUE,0,SQRT((E4/D4)/0.005454))) -> 0 | G4: =+IF($B4>Inputs!$B$6,"",D4*(F4/10)^1.605) -> 0 | H4: =+IF($B4="","",IF(Inputs!$H$22=FALSE,0,IF(AND(Inputs!$H$22=TRUE,$B4=Inputs!$J$14),Inputs!$J$16,(H3^('Equations - Parameters'!$F$7+'Equations - Parameters'!$G$7/Inputs!$J$18)+'Equations - Parameters'!$H$7*((($B4-Inputs!$B$9)/200)^'Equations - Parameters'!$I$7-(($B3-Inputs!$B$9)/200)^'Equations - Parameters'!$I$7))^(1/('Equations - Parameters'!$F$7+'Equations - Parameters'!$G$7/Inputs!$J$18))))) -> 0 | I4: =+IF(B4="","",IF(Inputs!$H$11=FALSE,0,IF(Inputs!$H$22=FALSE,0,IF(Inputs!$B$30="",0,IF(B4<Inputs!$B$30,H4,IF(AND(B4=Inputs!$B$30,Inputs!$H$27=TRUE),(H4-(Inputs!$C$30*H4)),IF(AND(B4=Inputs!$B$30,Inputs!$H$27=FALSE),(H4*(1-Inputs!$C$30)^('Equations - Parameters'!$F$39*(C4/Y4)+'Equations - Parameters'!$G$39/Y4+'Equations - Parameters'!$H$39*Y4+'Equations - Parameters'!$I$39*Y4*IF(Inputs!$H$8=TRUE,0,1))),(I3^('Equations - Parameters'!$F$7+'Equations - Parameters'!$G$7/Inputs!$J$18)+'Equations - Parameters'!$H$7*(((B4-Inputs!$B$9)/200)^'Equations - Parameters'!$I$7-((B3-Inputs!$B$9)/200)^'Equations - Parameters'!$I$7))^(1/('Equations - Parameters'!$F$7+'Equations - Parameters'!$G$7/Inputs!$J$18))))))))) -> 0 | J4: =+IF(B4="","",IF(Inputs!$H$11=FALSE,0,IF(Inputs!$H$22=FALSE,0,IF(Inputs!$B$31="",0,IF(B4<Inputs!$B$31,I4,IF(AND(B4=Inputs!$B$31,Inputs!$H$27=TRUE),(I4-(Inputs!$C$31*I4)),IF(AND(B4=Inputs!$B$31,Inputs!$H$27=FALSE),(I4*(1-Inputs!$C$31)^('Equations - Parameters'!$F$39*(C4/Z4)+'Equations - Parameters'!$G$39/Z4+'Equations - Parameters'!$H$39*Z4+'Equations - Parameters'!$I$39*Z4*IF(Inputs!$H$8=TRUE,0,1))),(J3^('Equations - Parameters'!$F$7+'Equations - Parameters'!$G$7/Inputs!$J$18)+'Equations - Parameters'!$H$7*(((B4-Inputs!$B$9)/200)^'Equations - Parameters'!$I$7-((B3-Inputs!$B$9)/200)^'Equations - Parameters'!$I$7))^(1/('Equations - Parameters'!$F$7+'Equations - Parameters'!$G$7/Inputs!$J$18))))))))) -> 0 | K4: =+IF(B4="","",IF(Inputs!$H$11=FALSE,0,IF(Inputs!$H$22=FALSE,0,IF(Inputs!$B$32="",0,IF(B4<Inputs!$B$32,J4,IF(AND(B4=Inputs!$B$32,Inputs!$H$27=TRUE),(J4-(Inputs!$C$32*J4)),IF(AND(B4=Inputs!$B$32,Inputs!$H$27=FALSE),(J4*(1-Inputs!$C$32)^('Equations - Parameters'!$F$39*(C4/AA4)+'Equations - Parameters'!$G$39/AA4+'Equations - Parameters'!$H$39*AA4+'Equations - Parameters'!$I$39*AA4*IF(Inputs!$H$8=TRUE,0,1))),(K3^('Equations - Parameters'!$F$7+'Equations - Parameters'!$G$7/Inputs!$J$18)+'Equations - Parameters'!$H$7*(((B4-Inputs!$B$9)/200)^'Equations - Parameters'!$I$7-((B3-Inputs!$B$9)/200)^'Equations - Parameters'!$I$7))^(1/('Equations - Parameters'!$F$7+'Equations - Parameters'!$G$7/Inputs!$J$18))))))))) -> 0 | L4: =+IF(B4="","",IF(Inputs!$H$11=FALSE,0,IF(Inputs!$H$22=FALSE,0,IF(Inputs!$B$33="",0,IF(B4<Inputs!$B$33,K4,IF(AND(B4=Inputs!$B$33,Inputs!$H$27=TRUE),(K4-(Inputs!$C$33*K4)),IF(AND(B4=Inputs!$B$33,Inputs!$H$27=FALSE),(K4*(1-Inputs!$C$33)^('Equations - Parameters'!$F$39*(C4/AB4)+'Equations - Parameters'!$G$39/AB4+'Equations - Parameters'!$H$39*AB4+'Equations - Parameters'!$I$39*AB4*IF(Inputs!$H$8=TRUE,0,1))),(L3^('Equations - Parameters'!$F$7+'Equations - Parameters'!$G$7/Inputs!$J$18)+'Equations - Parameters'!$H$7*(((B4-Inputs!$B$9)/200)^'Equations - Parameters'!$I$7-((B3-Inputs!$B$9)/200)^'Equations - Parameters'!$I$7))^(1/('Equations - Parameters'!$F$7+'Equations - Parameters'!$G$7/Inputs!$J$18))))))))) -> 0 | M4: =+IF($B4>Inputs!$B$6,"",IF(Inputs!$H$22=FALSE,0,IF(AND(Inputs!$H$22=TRUE,$B4=Inputs!$J$14),Inputs!$J$17,IF(AND(Inputs!$H$22=TRUE,$B4<>Inputs!$J$14),(M3^(((B3-Inputs!$B$9+'Equations - Parameters'!$I$26)^('Equations - Parameters'!$F$26+'Equations - Parameters'!$G$26*LN(H3)))/((B4-Inputs!$B$9+'Equations - Parameters'!$I$26)^('Equations - Parameters'!$F$26+'Equations - Parameters'!$G$26*LN(H4))))*EXP('Equations - Parameters'!$H$26*(1-(((B3-Inputs!$B$9+'Equations - Parameters'!$I$26)^('Equations - Parameters'!$F$26+'Equations - Parameters'!$G$26*LN(H3)))/((B4-Inputs!$B$9+'Equations - Parameters'!$I$26)^('Equations - Parameters'!$F$26+'Equations - Parameters'!$G$26*LN(H4))))))))))) -> 0 | N4: =+IF(B4="","",IF(Inputs!$H$11=FALSE,0,IF(Inputs!$H$22=FALSE,0,IF(Inputs!$B$30="",0,IF(B4<Inputs!$B$30,M4,IF(AND(B4=Inputs!$B$30,Inputs!$H$27=FALSE),(M4-(Inputs!$C$30*M4)),IF(AND(B4=Inputs!$B$30,Inputs!$H$27=TRUE),(M4*(1-(Inputs!$C$30)^('Equations - Parameters'!$F$40+'Equations - Parameters'!$G$40/Y4+'Equations - Parameters'!$H$40/B4+'Equations - Parameters'!$I$40/C4+'Equations - Parameters'!$J$40*(H4/I4)+'Equations - Parameters'!$K$40*(H4/I4)*IF(Inputs!$H$8=TRUE,0,1)))),(N3^(((B3+'Equations - Parameters'!$I$26)^('Equations - Parameters'!$F$26+'Equations - Parameters'!$G$26*LN(I3)))/((B4+'Equations - Parameters'!$I$26)^('Equations - Parameters'!$F$26+'Equations - Parameters'!$G$26*LN(I4))))*EXP('Equations - Parameters'!$H$26*(1-(((B3+'Equations - Parameters'!$I$26)^('Equations - Parameters'!$F$26+'Equations - Parameters'!$G$26*LN(I3)))/((B4+'Equations - Parameters'!$I$26)^('Equations - Parameters'!$F$26+'Equations - Parameters'!$G$26*LN(I4)))))))))))))) -> 0 | O4: =+IF(B4="","",IF(Inputs!$H$11=FALSE,0,IF(Inputs!$H$22=FALSE,0,IF(Inputs!$B$31="",0,IF(B4<Inputs!$B$31,N4,IF(AND(B4=Inputs!$B$31,Inputs!$H$27=FALSE),(N4-(Inputs!$C$31*N4)),IF(AND(B4=Inputs!$B$31,Inputs!$H$27=TRUE),(N4*(1-(Inputs!$C$31)^('Equations - Parameters'!$F$40+'Equations - Parameters'!$G$40/Z4+'Equations - Parameters'!$H$40/B4+'Equations - Parameters'!$I$40/C4+'Equations - Parameters'!$J$40*(I4/J4)+'Equations - Parameters'!$K$40*(I4/J4)*IF(Inputs!$H$8=TRUE,0,1)))),(O3^(((B3+'Equations - Parameters'!$I$26)^('Equations - Parameters'!$F$26+'Equations - Parameters'!$G$26*LN(J3)))/((B4+'Equations - Parameters'!$I$26)^('Equations - Parameters'!$F$26+'Equations - Parameters'!$G$26*LN(J4))))*EXP('Equations - Parameters'!$H$26*(1-(((B3+'Equations - Parameters'!$I$26)^('Equations - Parameters'!$F$26+'Equations - Parameters'!$G$26*LN(J3)))/((B4+'Equations - Parameters'!$I$26)^('Equations - Parameters'!$F$26+'Equations - Parameters'!$G$26*LN(J4)))))))))))))) -> 0 | P4: =+IF(B4="","",IF(Inputs!$H$11=FALSE,0,IF(Inputs!$H$22=FALSE,0,IF(Inputs!$B$32="",0,IF(B4<Inputs!$B$32,O4,IF(AND(B4=Inputs!$B$32,Inputs!$H$27=FALSE),(O4-(Inputs!$C$32*O4)),IF(AND(B4=Inputs!$B$32,Inputs!$H$27=TRUE),(O4*(1-(Inputs!$C$32)^('Equations - Parameters'!$F$40+'Equations - Parameters'!$G$40/AA4+'Equations - Parameters'!$H$40/B4+'Equations - Parameters'!$I$40/C4+'Equations - Parameters'!$J$40*(J4/K4)+'Equations - Parameters'!$K$40*(J4/K4)*IF(Inputs!$H$8=TRUE,0,1)))),(P3^(((B3+'Equations - Parameters'!$I$26)^('Equations - Parameters'!$F$26+'Equations - Parameters'!$G$26*LN(K3)))/((B4+'Equations - Parameters'!$I$26)^('Equations - Parameters'!$F$26+'Equations - Parameters'!$G$26*LN(K4))))*EXP('Equations - Parameters'!$H$26*(1-(((B3+'Equations - Parameters'!$I$26)^('Equations - Parameters'!$F$26+'Equations - Parameters'!$G$26*LN(K3)))/((B4+'Equations - Parameters'!$I$26)^('Equations - Parameters'!$F$26+'Equations - Parameters'!$G$26*LN(K4)))))))))))))) -> 0 | Q4: =+IF(B4="","",IF(Inputs!$H$11=FALSE,0,IF(Inputs!$H$22=FALSE,0,IF(Inputs!$B$33="",0,IF(B4<Inputs!$B$33,P4,IF(AND(B4=Inputs!$B$33,Inputs!$H$27=FALSE),(P4-(Inputs!$C$33*P4)),IF(AND(B4=Inputs!$B$33,Inputs!$H$27=TRUE),(P4*(1-(Inputs!$C$33)^('Equations - Parameters'!$F$40+'Equations - Parameters'!$G$40/AB4+'Equations - Parameters'!$H$40/B4+'Equations - Parameters'!$I$40/C4+'Equations - Parameters'!$J$40*(K4/L4)+'Equations - Parameters'!$K$40*(K4/L4)*IF(Inputs!$H$8=TRUE,0,1)))),(Q3^(((B3+'Equations - Parameters'!$I$26)^('Equations - Parameters'!$F$26+'Equations - Parameters'!$G$26*LN(L3)))/((B4+'Equations - Parameters'!$I$26)^('Equations - Parameters'!$F$26+'Equations - Parameters'!$G$26*LN(L4))))*EXP('Equations - Parameters'!$H$26*(1-(((B3+'Equations - Parameters'!$I$26)^('Equations - Parameters'!$F$26+'Equations - Parameters'!$G$26*LN(L3)))/((B4+'Equations - Parameters'!$I$26)^('Equations - Parameters'!$F$26+'Equations - Parameters'!$G$26*LN(L4)))))))))))))) -> 0 | R4: =+IF($B4="","",0) -> 0 | S4: =+IF($B4="","",IF(Inputs!$B$30="",0,IF($B4=Inputs!$B$30,M4-N4,0))) -> 0 | T4: =+IF($B4="","",IF(Inputs!$B$31="",0,IF($B4=Inputs!$B$31,N4-O4,0))) -> 0 | U4: =+IF($B4="","",IF(Inputs!$B$32="",0,IF($B4=Inputs!$B$32,O4-P4,0))) -> 0 | V4: =+IF($B4="","",IF(Inputs!$B$33="",0,IF($B4=Inputs!$B$33,P4-Q4,0))) -> 0 | W4: =+IF($B4>Inputs!$B$6,"",R4+S4+T4+U4+V4) -> 0 | X4: =+IF($B4>Inputs!$B$6,"",IF(B4=Inputs!$B$30,N4*(1-Inputs!$C$30),IF(B4=Inputs!$B$31,O4*(1-Inputs!$C$31),IF(B4=Inputs!$B$32,P4*(1-Inputs!$C$32),IF(B4=Inputs!$B$33,Q4*(1-Inputs!$C$33),0))))) -> 0 | Y4: =+IF($B4>Inputs!$B$6,"",IF(M4=0,0,SQRT((M4/H4)/0.005454))) -> 0 | Z4: =+IF($B4>Inputs!$B$6,"",IF(N4=0,0,SQRT((N4/I4)/0.005454))) -> 0 | AA4: =+IF($B4>Inputs!$B$6,"",IF(O4=0,0,SQRT((O4/J4)/0.005454))) -> 0 | AB4: =+IF($B4>Inputs!$B$6,"",IF(P4=0,0,SQRT((P4/K4)/0.005454))) -> 0 | AC4: =+IF($B4>Inputs!$B$6,"",IF(Q4=0,0,SQRT((Q4/L4)/0.005454))) -> 0 | AD4: =+IF($B4>Inputs!$B$6,"",H4*(Y4/10)^1.605) -> 0 | AE4: =+IF($B4>Inputs!$B$6,"",I4*(Z4/10)^1.605) -> 0 | AF4: =+IF($B4>Inputs!$B$6,"",J4*(AA4/10)^1.605) -> 0 | AG4: =+IF($B4>Inputs!$B$6,"",K4*(AB4/10)^1.605) -> 0 | AH4: =+IF($B4>Inputs!$B$6,"",L4*(AC4/10)^1.605) -> 0 | AI4: =+IF($B4>Inputs!$B$6,"",IF(Inputs!$B$30="",0,IF(B4<Inputs!$B$30,0,EXP('Equations - Parameters'!$B$21+'Equations - Parameters'!$C$21*LN(I4)+'Equations - Parameters'!$D$21*LN(C4))))) -> 0 | AJ4: =+IF($B4>Inputs!$B$6,"",IF($B4=0,0,IF(AND(Inputs!$H$4=TRUE,$B4=Inputs!$J$14),Inputs!$J$17,IF(AND(Inputs!$H$4=TRUE,$B4<>Inputs!$J$14),AJ3*((H4/H3)^('Equations - Parameters'!$C$21))*((C4/C3)^('Equations - Parameters'!$D$21)),EXP('Equations - Parameters'!$B$21+'Equations - Parameters'!$C$21*LN(H4)+'Equations - Parameters'!$D$21*LN(C4)))))) -> 101.0963525 | AK4: =+IF($B4>Inputs!$B$6,"",IF(Inputs!$B$30="",0,IF($B4=Inputs!$B$30,AJ4-BH4,0))) -> 0 | AL4: =+IF($B4>Inputs!$B$6,"",IF(Inputs!$B$30="",0,IF($B4=Inputs!$B$30,$B4,0))) -> 0 | AM4: =+IF($B4>Inputs!$B$6,"",IF(Inputs!$B$31="",0,IF(B4<Inputs!$B$31,0,EXP('Equations - Parameters'!$B$21+'Equations - Parameters'!$C$21*LN(J4)+'Equations - Parameters'!$D$21*LN(C4))))) -> 0 | AN4: =+IF($B4>Inputs!$B$6,"",IF(Inputs!$B$31="",0,IF($B4=Inputs!$B$31,AV4-$BH4,0))) -> 0 | AO4: =+IF($B4>Inputs!$B$6,"",IF(Inputs!$B$31="",0,IF($B4=Inputs!$B$31,$B4,0))) -> 0 | AP4: =+IF($B4>Inputs!$B$6,"",IF(Inputs!$B$32="",0,IF($B4<Inputs!$B$32,0,EXP('Equations - Parameters'!$B$21+'Equations - Parameters'!$C$21*LN(K4)+'Equations - Parameters'!$D$21*LN(C4))))) -> 0 | AQ4: =+IF($B4>Inputs!$B$6,"",IF(Inputs!$B$32="",0,IF($B4=Inputs!$B$32,AY4-$BH4,0))) -> 0 | AR4: =+IF($B4>Inputs!$B$6,"",IF(Inputs!$B$32="",0,IF($B4=Inputs!$B$32,$B4,0))) -> 0 | AS4: =+IF($B4>Inputs!$B$6,"",IF(Inputs!$B$33="",0,IF($B4<Inputs!$B$33,0,EXP('Equations - Parameters'!$B$21+'Equations - Parameters'!$C$21*LN(L4)+'Equations - Parameters'!$D$21*LN(C4))))) -> 0 | AT4: =+IF($B4>Inputs!$B$6,"",IF(Inputs!$B$33="",0,IF($B4=Inputs!$B$33,BB4-$BH4,0))) -> 0 | AU4: =+IF($B4>Inputs!$B$6,"",IF(Inputs!$B$33="",0,IF($B4=Inputs!$B$33,$B4,0))) -> 0 | AV4: =+IF(A4+Inputs!$J$14-1>Inputs!$B$6,"",IF(Inputs!$B$30="",0,IF($B4<Inputs!$B$30,AJ4,IF(B4=Inputs!$B$30,BH4,AI4*(1-AX4))))) -> 101.0963525 | AW4: =+IF(A4+Inputs!$J$14-1>Inputs!$B$6,"",+IF(SUM($AK$4:$AK$504)>0,1,0)) ->  | AX4: =+IF(A4+Inputs!$J$14-1>Inputs!$B$6,"",IF(Inputs!$B$30="",0,IF(B4<Inputs!$B$30,0,IF(B4=Inputs!$B$30,1-(AV4/AI4),AX3*EXP(('Equations - Parameters'!$C$24/B4)*(B4-B3)))))) -> 0 | AY4: =+IF(A4+Inputs!$J$14-1>Inputs!$B$6,"",IF(Inputs!$B$31="",0,IF($B4<Inputs!$B$31,AV4,IF($B4=Inputs!$B$31,BH4,AM4*(1-BA4))))) -> 0 | AZ4: =+IF(A4+Inputs!$J$14-1>Inputs!$B$6,"",IF(SUM($AN$4:$AN$504)>0,1,0)) -> 0 | BA4: =+IF(A4+Inputs!$J$14-1>Inputs!$B$6,"",IF(Inputs!$B$31="",0,IF($B4<Inputs!$B$31,0,IF($B4=Inputs!$B$31,1-(AY4/AM4),BA3*EXP(('Equations - Parameters'!$C$24/B4)*($B4-$B3)))))) -> 0 | BB4: =+IF(A4+Inputs!$J$14-1>Inputs!$B$6,"",IF(Inputs!$B$32="",0,IF($B4<Inputs!$B$32,AY4,IF($B4=Inputs!$B$32,BH4,AP4*(1-BD4))))) -> 0 | BC4: =+IF(A4+Inputs!$J$14-1>Inputs!$B$6,"",IF(SUM($AQ$4:$AQ$504)>0,1,0)) -> 0 | BD4: =+IF(A4+Inputs!$J$14-1>Inputs!$B$6,"",IF(Inputs!$B$32="",0,IF($B4<Inputs!$B$32,0,IF($B4=Inputs!$B$32,1-(BB4/AP4),BD3*EXP(('Equations - Parameters'!$C$24/B4)*($B4-$B3)))))) -> 0 | BE4: =+IF(A4+Inputs!$J$14-1>Inputs!$B$6,"",IF(Inputs!$B$33="",0,IF($B4<Inputs!$B$33,BB4,IF($B4=Inputs!$B$33,BH4,AS4*(1-BG4))))) -> 0 | BF4: =+IF(A4+Inputs!$J$14-1>Inputs!$B$6,"",IF(SUM($AT$4:$AT$504)>0,1,0)) -> 0 | BG4: =+IF(A4+Inputs!$J$14-1>Inputs!$B$6,"",IF(Inputs!$B$33="",0,IF($B4<Inputs!$B$33,0,IF($B4=Inputs!$B$33,1-(BE4/AS4),BG3*EXP(('Equations - Parameters'!$C$24/B4)*($B4-$B3)))))) -> 0 | BH4: =+IF(A4+Inputs!$J$14-1>Inputs!$B$6,"",IF(B4=Inputs!$B$30,AJ4*(1-Inputs!$C$30),IF(B4=Inputs!$B$31,AV4*(1-Inputs!$C$31),IF(B4=Inputs!$B$32,AY4*(1-Inputs!$C$32),IF(B4=Inputs!$B$33,BB4*(1-Inputs!$C$33),0))))) -> 0 | BI4: =+IF(B4="","",IF(AND(Inputs!$H$23=TRUE,B4=Inputs!$J$14),Inputs!$J$16,(BI3^('Equations - Parameters'!$F$7+'Equations - Parameters'!$G$7/Inputs!$J$18) + 'Equations - Parameters'!$H$7*((B4/200)^'Equations - Parameters'!$I$7 - (B3/200)^'Equations - Parameters'!$I$7 ))^(1/('Equations - Parameters'!$F$7+'Equations - Parameters'!$G$7/Inputs!$J$18) ))) -> 600 | BJ4: =+IF(A4+Inputs!$J$14-1>Inputs!$B$6,"",IF(CL4=0,BI4,IF(CM4<>0,BI4*(1-CM4/CI4),BJ3*EXP(('Equations - Parameters'!$B$9*C3/100+'Equations - Parameters'!$C$9*CD3/'Equations - Parameters'!$D$7)*(B4^'Equations - Parameters'!$D$9-B3^'Equations - Parameters'!$D$9))))) -> 600 | BK4: =+IF(A4+Inputs!$J$14-1>Inputs!$B$6,"",IF(CS4=0,BJ4,IF(CT4<>0,BJ4*(1-CT4/CJ4),BK3*EXP(('Equations - Parameters'!$B$9*C3/100+'Equations - Parameters'!$C$9*CE3/'Equations - Parameters'!$D$7)*(B4^'Equations - Parameters'!$D$9-B3^'Equations - Parameters'!$D$9))))) -> 600 | BL4: =+IF(A4+Inputs!$J$14-1>Inputs!$B$6,"",IF(CZ4=0,BK4,IF(DA4<>0,BK4*(1-DA4/CQ4),BL3*EXP(('Equations - Parameters'!$B$9*C3/100+'Equations - Parameters'!$C$9*CF3/'Equations - Parameters'!$D$7)*(B4^'Equations - Parameters'!$D$9-B3^'Equations - Parameters'!$D$9))))) -> 600 | BM4: =+IF(A4+Inputs!$J$14-1>Inputs!$B$6,"",IF(DG4=0,BL4,IF(DH4<>0,BL4*(1-DH4/CX4),BM3*EXP(('Equations - Parameters'!$B$9*C3/100+'Equations - Parameters'!$C$9*CG3/'Equations - Parameters'!$D$7)*(B4^'Equations - Parameters'!$D$9-B3^'Equations - Parameters'!$D$9))))) -> 600 | BN4: =+IF(B4="","",IF(AND(Inputs!$H$23=TRUE,B4=Inputs!$J$14),Inputs!$J$16,(BN3^('Equations - Parameters'!$F$7+'Equations - Parameters'!$G$7/Inputs!$J$18) + 'Equations - Parameters'!$H$7*(((B4-Inputs!$B$9)/200)^'Equations - Parameters'!$I$7 - ((B3-Inputs!$B$9)/200)^'Equations - Parameters'!$I$7 ))^(1/('Equations - Parameters'!$F$7+'Equations - Parameters'!$G$7/Inputs!$J$18) ))) -> 600 | BO4: =+IF($B4="","",IF(Inputs!$H$23=FALSE,0,IF(BS4<Inputs!$A$37,BN4,IF(BS3<Inputs!$A$37,(BN4-BN4*((BS4-Inputs!$B$37)/Inputs!$A$37)^('Equations - Parameters'!$F$39*(C4/BX4)+'Equations - Parameters'!$G$39/BX4+'Equations - Parameters'!$H$39*BX4+'Equations - Parameters'!$I$39*BX4*IF(Inputs!$H$8=TRUE,0,1))),(BO3^('Equations - Parameters'!$F$7+'Equations - Parameters'!$G$7/Inputs!$J$18)+'Equations - Parameters'!$H$7*((($B4-Inputs!$B$9)/200)^'Equations - Parameters'!$I$7-(($B3-Inputs!$B$9)/200)^'Equations - Parameters'!$I$7))^(1/('Equations - Parameters'!$F$7+'Equations - Parameters'!$G$7/Inputs!$J$18)))))) -> 600 | BP4: =+IF($B4="","",IF(Inputs!$H$23=FALSE,0,IF(BT4<Inputs!$A$37,BO4,IF(BT3<Inputs!$A$37,(BO4-BO4*((BT4-Inputs!$B$37)/Inputs!$A$37)^('Equations - Parameters'!$F$39*($C4/BY4)+'Equations - Parameters'!$G$39/BY4+'Equations - Parameters'!$H$39*BY4)),(BP3^('Equations - Parameters'!$F$7+'Equations - Parameters'!$G$7/Inputs!$J$18)+'Equations - Parameters'!$H$7*(($B4/200)^'Equations - Parameters'!$I$7-($B3/200)^'Equations - Parameters'!$I$7))^(1/('Equations - Parameters'!$F$7+'Equations - Parameters'!$G$7/Inputs!$J$18)))))) -> 600 | BQ4: =+IF($B4="","",IF(Inputs!$H$23=FALSE,0,IF(BU4<Inputs!$A$37,BP4,IF(BU3<Inputs!$A$37,(BP4-BP4*((BU4-Inputs!$B$37)/Inputs!$A$37)^('Equations - Parameters'!$F$39*($C4/BZ4)+'Equations - Parameters'!$G$39/BZ4+'Equations - Parameters'!$H$39*BZ4)),(BQ3^('Equations - Parameters'!$F$7+'Equations - Parameters'!$G$7/Inputs!$J$18)+'Equations - Parameters'!$H$7*((($B4-Inputs!$B$9)/200)^'Equations - Parameters'!$I$7-(($B3-Inputs!$B$9)/200)^'Equations - Parameters'!$I$7))^(1/('Equations - Parameters'!$F$7+'Equations - Parameters'!$G$7/Inputs!$J$18)))))) -> 600 | BR4: =+IF($B4="","",IF(Inputs!$H$23=FALSE,0,IF(BV4<Inputs!$A$37,BQ4,IF(BV3<Inputs!$A$37,(BQ4-BQ4*((BV4-Inputs!$B$37)/Inputs!$A$37)^('Equations - Parameters'!$F$39*($C4/CA4)+'Equations - Parameters'!$G$39/CA4+'Equations - Parameters'!$H$39*CA4)),(BR3^('Equations - Parameters'!$F$7+'Equations - Parameters'!$G$7/Inputs!$J$18)+'Equations - Parameters'!$H$7*((($B4-Inputs!$B$9)/200)^'Equations - Parameters'!$I$7-(($B3-Inputs!$B$9)/200)^'Equations - Parameters'!$I$7))^(1/('Equations - Parameters'!$F$7+'Equations - Parameters'!$G$7/Inputs!$J$18)))))) -> 600 | BS4: =+IF($B4="","",IF(AND(Inputs!$H$23=TRUE,$B4=Inputs!$J$14),Inputs!$J$17,IF(AND(Inputs!$H$23=TRUE,$B4<>Inputs!$J$14),(BS3^((($B3-Inputs!$B$9+'Equations - Parameters'!$I$26)^('Equations - Parameters'!$F$26+'Equations - Parameters'!$G$26*LN(BN3)))/(($B4-Inputs!$B$9+'Equations - Parameters'!$I$26)^('Equations - Parameters'!$F$26+'Equations - Parameters'!$G$26*LN(BN4))))*EXP('Equations - Parameters'!$H$26*(1-((($B3-Inputs!$B$9+'Equations - Parameters'!$I$26)^('Equations - Parameters'!$F$26+'Equations - Parameters'!$G$26*LN(BN3)))/(($B4-Inputs!$B$9+'Equations - Parameters'!$I$26)^('Equations - Parameters'!$F$26+'Equations - Parameters'!$G$26*LN(BN4)))))))))) -> 101.0963525 | BT4: =+IF($B4="","",IF(Inputs!$H$23=FALSE,0,IF(BS4<Inputs!$A$37,BS4,IF(AND(BS3<Inputs!$A$37,BS4>Inputs!$A$37),Inputs!$B$37,(BT3^((($B3-Inputs!$B$9+'Equations - Parameters'!$I$26)^('Equations - Parameters'!$F$26+'Equations - Parameters'!$G$26*LN(BO3)))/(($B4-Inputs!$B$9+'Equations - Parameters'!$I$26)^('Equations - Parameters'!$F$26+'Equations - Parameters'!$G$26*LN(BO4))))*EXP('Equations - Parameters'!$H$26*(1-((($B3-Inputs!$B$9+'Equations - Parameters'!$I$26)^('Equations - Parameters'!$F$26+'Equations - Parameters'!$G$26*LN(BO3)))/(($B4-Inputs!$B$9+'Equations - Parameters'!$I$26)^('Equations - Parameters'!$F$26+'Equations - Parameters'!$G$26*LN(BO4))))))))))) -> 101.0963525 | BU4: =+IF($B4="","",IF(Inputs!$H$23=FALSE,0,IF(BT4<Inputs!$A$37,BT4,IF(AND(BT3<Inputs!$A$37,BT4>Inputs!$A$37),Inputs!$B$37,(BU3^((($B3-Inputs!$B$9+'Equations - Parameters'!$I$26)^('Equations - Parameters'!$F$26+'Equations - Parameters'!$G$26*LN(BP3)))/(($B4-Inputs!$B$9+'Equations - Parameters'!$I$26)^('Equations - Parameters'!$F$26+'Equations - Parameters'!$G$26*LN(BP4))))*EXP('Equations - Parameters'!$H$26*(1-((($B3-Inputs!$B$9+'Equations - Parameters'!$I$26)^('Equations - Parameters'!$F$26+'Equations - Parameters'!$G$26*LN(BP3)))/(($B4-Inputs!$B$9+'Equations - Parameters'!$I$26)^('Equations - Parameters'!$F$26+'Equations - Parameters'!$G$26*LN(BP4))))))))))) -> 101.0963525 | BV4: =+IF($B4="","",IF(Inputs!$H$23=FALSE,0,IF(BU4<Inputs!$A$37,BU4,IF(AND(BU3<Inputs!$A$37,BU4>Inputs!$A$37),Inputs!$B$37,(BV3^((($B3-Inputs!$B$9+'Equations - Parameters'!$I$26)^('Equations - Parameters'!$F$26+'Equations - Parameters'!$G$26*LN(BQ3)))/(($B4-Inputs!$B$9+'Equations - Parameters'!$I$26)^('Equations - Parameters'!$F$26+'Equations - Parameters'!$G$26*LN(BQ4))))*EXP('Equations - Parameters'!$H$26*(1-((($B3-Inputs!$B$9+'Equations - Parameters'!$I$26)^('Equations - Parameters'!$F$26+'Equations - Parameters'!$G$26*LN(BQ3)))/(($B4-Inputs!$B$9+'Equations - Parameters'!$I$26)^('Equations - Parameters'!$F$26+'Equations - Parameters'!$G$26*LN(BQ4))))))))))) -> 101.0963525 | BW4: =+IF($B4="","",IF(Inputs!$H$23=FALSE,0,IF(BV4<Inputs!$A$37,BV4,IF(AND(BV3<Inputs!$A$37,BV4>Inputs!$A$37),Inputs!$B$37,(BW3^((($B3-Inputs!$B$9+'Equations - Parameters'!$I$26)^('Equations - Parameters'!$F$26+'Equations - Parameters'!$G$26*LN(BR3)))/(($B4-Inputs!$B$9+'Equations - Parameters'!$I$26)^('Equations - Parameters'!$F$26+'Equations - Parameters'!$G$26*LN(BR4))))*EXP('Equations - Parameters'!$H$26*(1-((($B3-Inputs!$B$9+'Equations - Parameters'!$I$26)^('Equations - Parameters'!$F$26+'Equations - Parameters'!$G$26*LN(BR3)))/(($B4-Inputs!$B$9+'Equations - Parameters'!$I$26)^('Equations - Parameters'!$F$26+'Equations - Parameters'!$G$26*LN(BR4))))))))))) -> 101.0963525 | BX4: =+IF($B4="","",IF(BS4=0,0,SQRT((BS4/BN4)/0.005454))) -> 5.558204882 | BY4: =+IF($B4="","",IF(BT4=0,0,SQRT((BT4/BO4)/0.005454))) -> 5.558204882 | BZ4: =+IF($B4="","",IF(BU4=0,0,SQRT((BU4/BP4)/0.005454))) -> 5.558204882 | CA4: =+IF($B4="","",IF(BV4=0,0,SQRT((BV4/BQ4)/0.005454))) -> 5.558204882 | CB4: =+IF($B4="","",IF(BW4=0,0,SQRT((BW4/BR4)/0.005454))) -> 5.558204882 | CC4: =+IF($B4="","",BN4*(BX4/10)^1.605) -> 233.7605418 | CD4: =+IF($B4="","",BO4*(BY4/10)^1.605) -> 233.7605418 | CE4: =+IF($B4="","",BP4*(BZ4/10)^1.605) -> 233.7605418 | CF4: =+IF($B4="","",BQ4*(CA4/10)^1.605) -> 233.7605418 | CG4: =+IF($B4="","",BR4*(CB4/10)^1.605) -> 233.7605418 | CH4: =+IF($B4="","",IF(CL4=0,0,EXP('Equations - Parameters'!$B$21+'Equations - Parameters'!$C$21*LN(BJ4)+'Equations - Parameters'!$D$21*LN($C4)))) -> 0 | CI4: =+IF($B4="","",BS4) -> 101.0963525 | CJ4: =+IF($B4="","",IF(CL4=0,CI4,IF((CL4-CL3)>0,CL4,BT4))) -> 101.0963525 | CK4: =+IF($B4="","",IF(SUM($CM$4:$CM$504)>0,1,0)) -> 1 | CL4: =+IF($B4="","",IF(BS4>Inputs!$A$37,Inputs!$B$37,0)) -> 0 | CM4: =+IF($B4="","",IF((CL4-CL3)=0,0,BS4-CL4)) -> 0 | CN4: =+IF($B4="","",IF((CL4-CL3)=0,0,B4)) -> 0 | CO4: =+IF($B4="","",IF(CL4=0,0,IF(CM4<>0,1-(CJ4/CH4),CO3*EXP(('Equations - Parameters'!$C$24/B4)*($B4-$B3))))) -> 0 | CP4: =+IF($B4="","",IF(CS4=0,0,EXP('Equations - Parameters'!$B$21+'Equations - Parameters'!$C$21*LN(BK4)+'Equations - Parameters'!$D$21*LN(C4)))) -> 0 | CQ4: =+IF($B4="","",IF(CS4=0,CJ4,IF((CS4-CS3)>0,CS4,CP4*(1-CV4)))) -> 101.0963525 | CR4: =+IF($B4="","",IF(SUM($CT$4:$CT$504)>0,1,0)) -> 1 | CS4: =+IF($B4="","",IF(B4=0,0,IF(BT4>Inputs!$H$37,Inputs!$I$37,IF(CS3>0,Inputs!$I$37,0)))) -> 0 | CT4: =+IF($B4="","",IF((CS4-CS3)=0,0,BT4-CS4)) -> 0 | CU4: =+IF($B4="","",IF((CS4-CS3)=0,0,B4)) -> 0 | CV4: =+IF($B4="","",IF(CS4=0,0,IF(CT4<>0,1-(CQ4/CP4),CV3*EXP(('Equations - Parameters'!$C$24/B4)*($B4-$B3))))) -> 0 | CW4: =+IF($B4="","",IF(CZ4=0,0,EXP('Equations - Parameters'!$B$21+'Equations - Parameters'!$C$21*LN(BL4)+'Equations - Parameters'!$D$21*LN(C4)))) -> 0 | CX4: =+IF($B4="","",IF(CZ4=0,CQ4,IF((CZ4-CZ3)>0,CZ4,CW4*(1-DC4)))) -> 101.0963525 | CY4: =+IF($B4="","",IF(SUM($DA$4:$DA$504)>0,1,0)) -> 0 | CZ4: =+IF($B4="","",IF(B4=0,0,IF(BU4>Inputs!$H$37,Inputs!$I$37,IF(CZ3>0,Inputs!$I$37,0)))) -> 0 | DA4: =+IF($B4="","",IF((CZ4-CZ3)=0,0,BU4-CZ4)) -> 0 | DB4: =+IF($B4="","",IF((CZ4-CZ3)=0,0,B4)) -> 0 | DC4: =+IF($B4="","",IF(CZ4=0,0,IF(DA4<>0,1-(CX4/CW4),DC3*EXP('Equations - Parameters'!$C$24/B4)*($B4-$B3)))) -> 0 | DD4: =+IF($B4="","",IF(DG4=0,0,EXP('Equations - Parameters'!$B$21+'Equations - Parameters'!$C$21*LN(BM4)+'Equations - Parameters'!$D$21*LN(C4)))) -> 0 | DE4: =+IF($B4="","",IF(DG4=0,CX4,IF((DG4-DG3)>0,DG4,DD4*(1-DJ4)))) -> 101.0963525 | DF4: =+IF($B4="","",IF(SUM($DH$4:$DH$504)>0,1,0)) -> 0 | DG4: =+IF($B4="","",IF(B4=0,0,IF(BV4>Inputs!$H$37,Inputs!$I$37,IF(DG3>0,Inputs!$I$37,0)))) -> 0 | DH4: =+IF($B4="","",IF((DG4-DG3)=0,0,BV4-DG4)) -> 0 | DI4: =+IF($B4="","",IF((DG4-DG3)=0,0,B4)) -> 0 | DJ4: =+IF($B4="","",IF(DG4=0,0,IF(DH4<>0,1-(DE4/DD4),DJ3*EXP('Equations - Parameters'!$C$24/C4)*($B4-$B3)))) -> 0 | FF4: =+IF($A4+Inputs!$J$14-1>Inputs!$B$6,"",IF($B3=Inputs!$B$6, "",IF($A4=0,Inputs!$J$14,IF(B3=Inputs!$B$6,0,B3+1)))) -> 35 | FG4: =+IF($B4="","",IF($B4=Inputs!$B$15,Inputs!$J$15,4.5+(('Equations - Parameters'!$F$14+(0.5*(Inputs!$J$18-4.5-'Equations - Parameters'!$F$14+SQRT((((Inputs!$J$18-4.5)-'Equations - Parameters'!$F$14))^2+4*'Equations - Parameters'!$G$14*(Inputs!$J$18-4.5)*((50-Inputs!$B$9)^-'Equations - Parameters'!$H$14)))))/(1+('Equations - Parameters'!$G$14/(0.5*(Inputs!$J$18-4.5-'Equations - Parameters'!$F$14+SQRT((((Inputs!$J$18-4.5)-'Equations - Parameters'!$F$14))^2+4*'Equations - Parameters'!$G$14*(Inputs!$J$18-4.5)*((50-Inputs!$B$9)^-'Equations - Parameters'!$H$14))))*(($B4-Inputs!$B$9)^-'Equations - Parameters'!$H$14)))))) -> 56.41478273 | FH4: =+IF($B4="","",IF(Inputs!$H$11=FALSE,D4,IF(Inputs!$H$23=TRUE,BN4,H4))) -> 600 | FI4: =+IF($B4="","",IF(Inputs!$H$11=FALSE,0,IF(Inputs!$H$23=TRUE,BO4,I4))) -> 600 | FJ4: =+IF($B4="","",IF(Inputs!$H$11=FALSE,0,IF(Inputs!$H$23=TRUE,BP4,J4))) -> 600 | FK4: =+IF($B4="","",IF(Inputs!$H$11=FALSE,0,IF(Inputs!$H$23=TRUE,BQ4,K4))) -> 600 | FL4: =+IF($B4="","",IF(Inputs!$H$11=FALSE,0,IF(Inputs!$H$23=TRUE,BR4,L4))) -> 600 | FM4: =+IF($B4="","",IF(Inputs!$H$11=FALSE,E4,IF(Inputs!$H$23=TRUE,BS4,M4))) -> 101.0963525 | FN4: =+IF($B4="","",IF(Inputs!$H$11=FALSE,0,IF(Inputs!$H$23=TRUE,BT4,N4))) -> 101.0963525 | FO4: =+IF($B4="","",IF(Inputs!$H$11=FALSE,0,IF(Inputs!$H$23=TRUE,BU4,O4))) -> 101.0963525 | FP4: =+IF($B4="","",IF(Inputs!$H$11=FALSE,0,IF(Inputs!$H$23=TRUE,BV4,P4))) -> 101.0963525 | FQ4: =+IF($B4="","",IF(Inputs!$H$11=FALSE,0,IF(Inputs!$H$23=TRUE,BW4,Q4))) -> 101.0963525 | FR4: =+IF($B4="","",IF(Inputs!$H$11=FALSE,F4,IF(Inputs!$H$23=TRUE,BX4,Y4))) -> 5.558204882 | FS4: =+IF($B4="","",IF(Inputs!$H$11=FALSE,0,IF(Inputs!$H$23=TRUE,BY4,Z4))) -> 5.558204882 | FT4: =+IF($B4="","",IF(Inputs!$H$11=FALSE,0,IF(Inputs!$H$23=TRUE,BZ4,AA4))) -> 5.558204882 | FU4: =+IF($B4="","",IF(Inputs!$H$11=FALSE,0,IF(Inputs!$H$23=TRUE,CA4,AB4))) -> 5.558204882 | FV4: =+IF($B4="","",IF(Inputs!$H$11=FALSE,0,IF(Inputs!$H$23=TRUE,CB4,AC4))) -> 5.558204882 | FW4: =+IF($B4="","",IF(Inputs!$H$11=FALSE,G4,IF(Inputs!$H$23=TRUE,CC4,AD4))) -> 233.7605418 | FX4: =+IF($B4="","",IF(Inputs!$H$11=FALSE,0,IF(Inputs!$H$23=TRUE,CD4,AE4))) -> 233.7605418 | FY4: =+IF($B4="","",IF(Inputs!$H$11=FALSE,0,IF(Inputs!$H$23=TRUE,CE4,AF4))) -> 233.7605418 | FZ4: =+IF($B4="","",IF(Inputs!$H$11=FALSE,0,IF(Inputs!$H$23=TRUE,CF4,AG4))) -> 233.7605418 | GA4: =+IF($B4="","",IF(Inputs!$H$11=FALSE,0,IF(Inputs!$H$23=TRUE,CG4,AH4))) -> 233.7605418 | GF4: =+IF($B4="","",IF(FM4=0,0,IF($B4<3,0,EXP('Equations - Parameters'!$F$32+'Equations - Parameters'!$G$32/$B4 + 'Equations - Parameters'!$H$32*LN($C4)+'Equations - Parameters'!$I$32/Inputs!$J$18 + 'Equations - Parameters'!$J$32*LN(FH4) + 'Equations - Parameters'!$K$32*LN(FH4)/$B4 + 'Equations - Parameters'!$L$32*LN(FM4))))) -> 2899.160993 | GG4: =+IF($B4="","",IF(Inputs!$H$11=FALSE,0,IF(FN4=0,0,IF($B4<3,0,EXP('Equations - Parameters'!$F$32+'Equations - Parameters'!$G$32/$B4+'Equations - Parameters'!$H$32*LN($C4)+'Equations - Parameters'!$I$32/Inputs!$J$18+'Equations - Parameters'!$J$32*LN(FI4)+'Equations - Parameters'!$K$32*LN(FI4)/$B4+'Equations - Parameters'!$L$32*LN(FN4)))))) -> 2899.160993 | GH4: =+IF($B4="","",IF(Inputs!$H$11=FALSE,0,IF(FO4=0,0,IF($B4<3,0,EXP('Equations - Parameters'!$F$32+'Equations - Parameters'!$G$32/$B4+'Equations - Parameters'!$H$32*LN($C4)+'Equations - Parameters'!$I$32/Inputs!$J$18+'Equations - Parameters'!$J$32*LN(FJ4)+'Equations - Parameters'!$K$32*LN(FJ4)/$B4+'Equations - Parameters'!$L$32*LN(FO4)))))) -> 2899.160993 | GI4: =+IF($B4="","",IF(Inputs!$H$11=FALSE,0,IF(FP4=0,0,IF($B4<3,0,EXP('Equations - Parameters'!$F$32+'Equations - Parameters'!$G$32/$B4+'Equations - Parameters'!$H$32*LN($C4)+'Equations - Parameters'!$I$32/Inputs!$J$18+'Equations - Parameters'!$J$32*LN(FK4)+'Equations - Parameters'!$K$32*LN(FK4)/$B4+'Equations - Parameters'!$L$32*LN(FP4)))))) -> 2899.160993 | GJ4: =+IF($B4="","",IF(Inputs!$H$11=FALSE,0,IF(FQ4=0,0,IF($B4<3,0,EXP('Equations - Parameters'!$F$32+'Equations - Parameters'!$G$32/$B4+'Equations - Parameters'!$H$32*LN($C4)+'Equations - Parameters'!$I$32/Inputs!$J$18+'Equations - Parameters'!$J$32*LN(FL4)+'Equations - Parameters'!$K$32*LN(FL4)/$B4+'Equations - Parameters'!$L$32*LN(FQ4)))))) -> 2899.160993 | GK4: =+IF($B4="","",IF(FM4=0,0,IF($B4<3,0,EXP('Equations - Parameters'!$F$33+'Equations - Parameters'!$G$33/$B4 + 'Equations - Parameters'!$H$33*LN($C4)+'Equations - Parameters'!$I$33/Inputs!$J$18 + 'Equations - Parameters'!$J$33*LN(FH4) + 'Equations - Parameters'!$K$33*LN(FH4)/$B4 + 'Equations - Parameters'!$L$33*LN(FM4))))) -> 2154.363353 | GL4: =+IF($B4="","",IF(Inputs!$H$11=FALSE,0,IF(FN4=0,0,IF($B4<3,0,EXP('Equations - Parameters'!$F$33+'Equations - Parameters'!$G$33/$B4+'Equations - Parameters'!$H$33*LN($C4)+'Equations - Parameters'!$I$33/Inputs!$J$18+'Equations - Parameters'!$J$33*LN(FI4)+'Equations - Parameters'!$K$33*LN(FI4)/$B4+'Equations - Parameters'!$L$33*LN(FN4)))))) -> 2154.363353 | GM4: =+IF($B4="","",IF(Inputs!$H$11=FALSE,0,IF(FO4=0,0,IF($B4<3,0,EXP('Equations - Parameters'!$F$33+'Equations - Parameters'!$G$33/$B4+'Equations - Parameters'!$H$33*LN($C4)+'Equations - Parameters'!$I$33/Inputs!$J$18+'Equations - Parameters'!$J$33*LN(FJ4)+'Equations - Parameters'!$K$33*LN(FJ4)/$B4+'Equations - Parameters'!$L$33*LN(FO4)))))) -> 2154.363353 | GN4: =+IF($B4="","",IF(Inputs!$H$11=FALSE,0,IF(FP4=0,0,IF($B4<3,0,EXP('Equations - Parameters'!$F$33+'Equations - Parameters'!$G$33/$B4+'Equations - Parameters'!$H$33*LN($C4)+'Equations - Parameters'!$I$33/Inputs!$J$18+'Equations - Parameters'!$J$33*LN(FK4)+'Equations - Parameters'!$K$33*LN(FK4)/$B4+'Equations - Parameters'!$L$33*LN(FP4)))))) -> 2154.363353 | GO4: =+IF($B4="","",IF(Inputs!$H$11=FALSE,0,IF(FQ4=0,0,IF($B4<3,0,EXP('Equations - Parameters'!$F$33+'Equations - Parameters'!$G$33/$B4+'Equations - Parameters'!$H$33*LN($C4)+'Equations - Parameters'!$I$33/Inputs!$J$18+'Equations - Parameters'!$J$33*LN(FL4)+'Equations - Parameters'!$K$33*LN(FL4)/$B4+'Equations - Parameters'!$L$33*LN(FQ4)))))) -> 2154.363353 | GP4: =+IF($B4="","",0) -> 0 | GQ4: =+IF($B4="","",IF(HF4<>0,1,0)) -> 0 | GR4: =+IF($B4="","",IF(HG4<>0,1,0)) -> 0 | GS4: =+IF($B4="","",IF(HH4<>0,1,0)) -> 0 | GT4: =+IF($B4="","",IF(HI4<>0,1,0)) -> 0 | GU4: =+IF($B4="","",0) -> 0 | GV4: =+IF($B4="","",IF(Inputs!$H$11=FALSE,0,IF(AND(Inputs!$H$22=TRUE,$B4=Inputs!$B$30),$B4,IF(AND(Inputs!$H$23=TRUE,$B4<>Inputs!$B$6),CN4,0)))) -> 0 | GW4: =+IF($B4="","",IF(Inputs!$H$11=FALSE,0,IF(AND(Inputs!$H$22=TRUE,$B4<>Inputs!$B$6),GV4+AO4,IF(AND(Inputs!$H$23=TRUE,$B4<>Inputs!$B$6),GV4+CU4,0)))) -> 0 | GX4: =+IF($B4="","",IF(Inputs!$H$11=FALSE,0,IF(AND(Inputs!$H$22=TRUE,$B4<>Inputs!$B$6),GW4+AR4,IF(AND(Inputs!$H$23=TRUE,$B4<>Inputs!$B$6),GW4+DB4,0)))) -> 0 | GY4: =+IF($B4="","",IF(Inputs!$H$11=FALSE,0,IF(AND(Inputs!$H$22=TRUE,$B4<>Inputs!$B$6),GX4+AU4,IF(AND(Inputs!$H$23=TRUE,$B4<>Inputs!$B$6),GX4+DI4,0)))) -> 0 | GZ4: =+IF($B4="","",IF(B4=Inputs!$B$6,FM4,0)) -> 0 | HA4: =+IF($B4="","",IF(FN4=0,0,IF(B4=Inputs!$B$6,FN4,IF(AND(Inputs!$H$22=TRUE,B4<>Inputs!$B$6),S4,IF(AND(Inputs!$H$23=TRUE,B4<>Inputs!$B$6),CM4,0))))) -> 0 | HB4: =+IF($B4="","",IF(FO4=0,0,IF(B4=Inputs!$B$6,FO4,IF(AND(Inputs!$H$22=TRUE,B4<>Inputs!$B$6),HA4+T4,IF(AND(Inputs!$H$23=TRUE,B4<>Inputs!$B$6),HA4+CT4,0))))) -> 0 | HC4: =+IF($B4="","",IF(FP4=0,0,IF(B4=Inputs!$B$6,FP4,IF(AND(Inputs!$H$22=TRUE,B4<>Inputs!$B$6),HB4+U4,IF(AND(Inputs!$H$23=TRUE,B4<>Inputs!$B$6),HB4+DA4,0))))) -> 0 | HD4: =+IF($B4="","",IF(FQ4=0,0,IF(B4=Inputs!$B$6,FQ4,IF(AND(Inputs!$H$22=TRUE,B4<>Inputs!$B$6),HC4+V4,IF(AND(Inputs!$H$23=TRUE,B4<>Inputs!$B$6),HC4+DH4,0))))) -> 0 | HE4: =+IF($B4="","",0) -> 0 | HF4: =+IF($B4="","",IF(GV4=0,0,FM4)) -> 0 | HG4: =+IF($B4="","",IF(AND(GW4<>0,GV4=0),FN4,0)) -> 0 | HH4: =+IF($B4="","",IF(AND(GX4<>0,GW4=0),FO4,0)) -> 0 | HI4: =+IF($B4="","",IF(AND(GY4<>0,GX4=0),FP4,0)) -> 0 | HJ4: =+IF($B4="","",0) -> 0 | HK4: =+IF($B4="","",IF(HF4=0,0,HF4-HA4)) -> 0 | HL4: =+IF($B4="","",IF(HG4=0,0,HG4-HB4)) -> 0 | HM4: =+IF($B4="","",IF(HH4=0,0,HH4-HC4)) -> 0 | HN4: =+IF($B4="","",IF(HI4=0,0,HI4-HD4)) -> 0 | HO4: =+IF($B4="","",IF(B4=Inputs!$B$6,FH4,0)) -> 0 | HP4: =+IF($B4="","",IF(B4=Inputs!$B$6,FI4,IF(HA4=0,0,FH4-FI4))) -> 0 | HQ4: =+IF($B4="","",IF(B4=Inputs!$B$6,FJ4,IF(HB4=0,0,HP4+FI4-FJ4))) -> 0 | HR4: =+IF($B4="","",IF(B4=Inputs!$B$6,FK4,IF(HC4=0,0,HQ4+FJ4-FK4))) -> 0 | HS4: =+IF($B4="","",IF(B4=Inputs!$B$6,FL4,IF(HD4=0,0,HR4+FK4-FL4))) -> 0 | HT4: =+IF($B4="","",0) -> 0 | HU4: =+IF($B4="","",IF(GV4=0,0,FH4)) -> 0 | HV4: =+IF($B4="","",IF(AND(GW4<>0,GV4=0),FI4,0)) -> 0 | HW4: =+IF($B4="","",IF(AND(GX4<>0,GW4=0),FJ4,0)) -> 0 | HX4: =+IF($B4="","",IF(AND(GY4<>0,GX4=0),FK4,0)) -> 0 | HY4: =+IF($B4="","",0) -> 0 | HZ4: =+IF($B4="","",IF(HU4=0,0,HU4-HP4)) -> 0 | IA4: =+IF($B4="","",IF(HV4=0,0,HV4-HQ4)) -> 0 | IB4: =+IF($B4="","",IF(HW4=0,0,HW4-HR4)) -> 0 | IC4: =+IF($B4="","",IF(HX4=0,0,HX4-HS4)) -> 0 | ID4: =+IF($B4="","",IF($B4=Inputs!$B$6,GF4,0)) -> 0 | IE4: =+IF($B4="","",IF($B4=Inputs!$B$6,GG4,IF(HA4=0,0,GF4-GG4))) -> 0 | IF4: =+IF($B4="","",IF($B4=Inputs!$B$6,GH4,IF(HB4=0,0,IE4+GG4-GH4))) -> 0 | IG4: =+IF($B4="","",IF($B4=Inputs!$B$6,GI4,IF(HC4=0,0,IF4+GH4-GI4))) -> 0 | IH4: =+IF($B4="","",IF($B4=Inputs!$B$6,GJ4,IF(HD4=0,0,IG4+GI4-GJ4))) -> 0 | II4: =+IF($B4="","",0) -> 0 | IJ4: =+IF($B4="","",IF(GV4=0,0,GF4)) -> 0 | IK4: =+IF($B4="","",IF(AND(GW4<>0,GV4=0),GG4,0)) -> 0 | IL4: =+IF($B4="","",IF(AND(GX4<>0,GW4=0),GH4,0)) -> 0 | IM4: =+IF($B4="","",IF(AND(GY4<>0,GX4=0),GI4,0)) -> 0 | IN4: =+IF($B4="","",0) -> 0 | IO4: =+IF($B4="","",IF(IJ4=0,0,IJ4-IE4)) -> 0 | IP4: 0 | IQ4: 0 | IR4: 0 | IS4: =+IF($B4="","",IF($B4=Inputs!$B$6,GK4,0)) -> 0 | IT4: =+IF($B4="","",IF($B4=Inputs!$B$6,GL4,IF(HP4=0,0,GK4-GL4))) -> 0 | IU4: =+IF($B4="","",IF($B4=Inputs!$B$6,GM4,IF(HQ4=0,0,IT4+GL4-GM4))) -> 0 | IV4: =+IF($B4="","",IF($B4=Inputs!$B$6,GN4,IF(HR4=0,0,IU4+GM4-GN4))) -> 0 | IW4: =+IF($B4="","",IF($B4=Inputs!$B$6,GO4,IF(HS4=0,0,IV4+GN4-GO4))) -> 0 | IX4: =+IF($B4="","",0) -> 0 | IY4: =+IF($B4="","",IF(GV4=0,0,GK4)) -> 0 | IZ4: =+IF($B4="","",IF(AND(GW4<>0,GV4=0),GL4,0)) -> 0 | JA4: =+IF($B4="","",IF(AND(GX4<>0,GW4=0),GM4,0)) -> 0 | JB4: =+IF($B4="","",IF(AND(GY4<>0,GX4=0),GN4,0)) -> 0 | JC4: =+IF($B4="","",0) -> 0 | JD4: =+IF($B4="","",IF(IY4=0,0,IY4-IT4)) -> 0 | JE4: =+IF($B4="","",IF(IZ4=0,0,IZ4-IU4)) -> 0 | JF4: =+IF($B4="","",IF(JA4=0,0,JA4-IV4)) -> 0 | JG4: =+IF($B4="","",IF(JB4=0,0,JB4-IW4)) -> 0 | JH4: =+IF($B4="","",IF(GZ4=0,0,SQRT((GZ4/HO4)/0.005454))) -> 0 | JI4: =+IF($B4="","",IF(HA4=0,0,SQRT((HA4/HP4)/0.005454))) -> 0 | JJ4: =+IF($B4="","",IF(HB4=0,0,SQRT((HB4/HQ4)/0.005454))) -> 0 | JK4: =+IF($B4="","",IF(HC4=0,0,SQRT((HC4/HR4)/0.005454))) -> 0 | JL4: =+IF($B4="","",IF(HD4=0,0,SQRT((HD4/HS4)/0.005454))) -> 0 | JM4: =+IF($B4="","",IF($B4<2,0,GF4*EXP(('Equations - Parameters'!$H$48*('Equations - Parameters'!$F$155*2.54/(FR4*2.54))^'Equations - Parameters'!$I$48)+('Equations - Parameters'!$J$48*((FH4*2.47109)^'Equations - Parameters'!$K$48)*(('Equations - Parameters'!$G$155*2.54)/(FR4*2.54))^'Equations - Parameters'!$L$48)))) -> 2.994050878e-12 | JN4: =+IF($B4="","",IF($B4<2,0,GK4*EXP(('Equations - Parameters'!$H$48*('Equations - Parameters'!$F$156*2.54/(FR4*2.54))^'Equations - Parameters'!$I$48)+('Equations - Parameters'!$J$48*((FH4*2.47109)^'Equations - Parameters'!$K$48)*(('Equations - Parameters'!$G$156*2.54)/(FR4*2.54))^'Equations - Parameters'!$L$48))-KQ4)) -> 9.7786497 | JO4: =+IF($B4="","",IF($B4<2,0,GK4*EXP(('Equations - Parameters'!$H$48*('Equations - Parameters'!$F$157*2.54/(FR4*2.54))^'Equations - Parameters'!$I$48)+('Equations - Parameters'!$J$48*((FH4*2.47109)^'Equations - Parameters'!$K$48)*(('Equations - Parameters'!$G$157*2.54)/(FR4*2.54))^'Equations - Parameters'!$L$48))-KR4-KQ4)) -> 502.2905801 | JP4: =+IF($B4="","",IF(GG4=0,0,IF($B4<2,0,IF(Inputs!$H$11=FALSE,0,GG4*EXP(('Equations - Parameters'!$H$48*('Equations - Parameters'!$F$155*2.54/(FS4*2.54))^'Equations - Parameters'!$I$48)+('Equations - Parameters'!$J$48*((FI4*2.47109)^'Equations - Parameters'!$K$48)*(('Equations - Parameters'!$G$155*2.54)/(FS4*2.54))^'Equations - Parameters'!$L$48)))))) -> 2.994050878e-12 | JQ4: =+IF($B4="","",IF(GG4=0,0,IF($B4<2,0,IF(Inputs!$H$11=FALSE,0,GL4*EXP(('Equations - Parameters'!$H$48*('Equations - Parameters'!$F$156*2.54/(FS4*2.54))^'Equations - Parameters'!$I$48)+('Equations - Parameters'!$J$48*((FI4*2.47109)^'Equations - Parameters'!$K$48)*(('Equations - Parameters'!$G$156*2.54)/(FS4*2.54))^'Equations - Parameters'!$L$48))-JP4)))) -> 9.7786497 | JR4: =+IF($B4="","",IF(GG4=0,0,IF($B4<2,0,IF(Inputs!$H$11=FALSE,0,GL4*EXP(('Equations - Parameters'!$H$48*('Equations - Parameters'!$F$157*2.54/(FS4*2.54))^'Equations - Parameters'!$I$48)+('Equations - Parameters'!$J$48*((FI4*2.47109)^'Equations - Parameters'!$K$48)*(('Equations - Parameters'!$G$157*2.54)/(FS4*2.54))^'Equations - Parameters'!$L$48))-JP4-JQ4)))) -> 501.7620637 | JS4: =+IF($B4="","",IF(GH4=0,0,IF($B4<2,0,IF(Inputs!$H$11=FALSE,0,GH4*EXP(('Equations - Parameters'!$H$48*('Equations - Parameters'!$F$155*2.54/(FT4*2.54))^'Equations - Parameters'!$I$48)+('Equations - Parameters'!$J$48*((FJ4*2.47109)^'Equations - Parameters'!$K$48)*(('Equations - Parameters'!$G$155*2.54)/(FT4*2.54))^'Equations - Parameters'!$L$48)))))) -> 2.994050878e-12 | JT4: =+IF($B4="","",IF(GH4=0,0,IF($B4<2,0,IF(Inputs!$H$11=FALSE,0,GM4*EXP(('Equations - Parameters'!$H$48*('Equations - Parameters'!$F$156*2.54/(FT4*2.54))^'Equations - Parameters'!$I$48)+('Equations - Parameters'!$J$48*((FJ4*2.47109)^'Equations - Parameters'!$K$48)*(('Equations - Parameters'!$G$156*2.54)/(FT4*2.54))^'Equations - Parameters'!$L$48))-JS4)))) -> 9.7786497 | JU4: =+IF($B4="","",IF(GH4=0,0,IF($B4<2,0,IF(Inputs!$H$11=FALSE,0,GM4*EXP(('Equations - Parameters'!$H$48*('Equations - Parameters'!$F$157*2.54/(FT4*2.54))^'Equations - Parameters'!$I$48)+('Equations - Parameters'!$J$48*((FJ4*2.47109)^'Equations - Parameters'!$K$48)*(('Equations - Parameters'!$G$157*2.54)/(FT4*2.54))^'Equations - Parameters'!$L$48))-JS4-JT4)))) -> 501.7620637 | JV4: =+IF($B4="","",IF(GI4=0,0,IF($B4<2,0,IF(Inputs!$H$11=FALSE,0,GI4*EXP(('Equations - Parameters'!$H$48*('Equations - Parameters'!$F$155*2.54/(FU4*2.54))^'Equations - Parameters'!$I$48)+('Equations - Parameters'!$J$48*((FK4*2.47109)^'Equations - Parameters'!$K$48)*(('Equations - Parameters'!$G$155*2.54)/(FU4*2.54))^'Equations - Parameters'!$L$48)))))) -> 2.994050878e-12 | JW4: =+IF($B4="","",IF(GI4=0,0,IF($B4<2,0,IF(Inputs!$H$11=FALSE,0,GN4*EXP(('Equations - Parameters'!$H$48*('Equations - Parameters'!$F$156*2.54/(FU4*2.54))^'Equations - Parameters'!$I$48)+('Equations - Parameters'!$J$48*((FK4*2.47109)^'Equations - Parameters'!$K$48)*(('Equations - Parameters'!$G$156*2.54)/(FU4*2.54))^'Equations - Parameters'!$L$48))-JV4)))) -> 9.7786497 | JX4: =+IF($B4="","",IF(GI4=0,0,IF($B4<2,0,IF(Inputs!$H$11=FALSE,0,GN4*EXP(('Equations - Parameters'!$H$48*('Equations - Parameters'!$F$157*2.54/(FU4*2.54))^'Equations - Parameters'!$I$48)+('Equations - Parameters'!$J$48*((FK4*2.47109)^'Equations - Parameters'!$K$48)*(('Equations - Parameters'!$G$157*2.54)/(FU4*2.54))^'Equations - Parameters'!$L$48))-JV4-JW4)))) -> 501.7620637 | JY4: =+IF($B4="","",IF(GJ4=0,0,IF($B4<2,0,IF(Inputs!$H$11=FALSE,0,GJ4*EXP(('Equations - Parameters'!$H$48*('Equations - Parameters'!$F$155*2.54/(FV4*2.54))^'Equations - Parameters'!$I$48)+('Equations - Parameters'!$J$48*((FL4*2.47109)^'Equations - Parameters'!$K$48)*(('Equations - Parameters'!$G$155*2.54)/(FV4*2.54))^'Equations - Parameters'!$L$48)))))) -> 2.994050878e-12 | JZ4: =+IF($B4="","",IF(GJ4=0,0,IF($B4<2,0,IF(Inputs!$H$11=FALSE,0,GO4*EXP(('Equations - Parameters'!$H$48*('Equations - Parameters'!$F$156*2.54/(FV4*2.54))^'Equations - Parameters'!$I$48)+('Equations - Parameters'!$J$48*((FL4*2.47109)^'Equations - Parameters'!$K$48)*(('Equations - Parameters'!$G$156*2.54)/(FV4*2.54))^'Equations - Parameters'!$L$48))-JY4)))) -> 9.7786497 | KA4: =+IF($B4="","",IF(GJ4=0,0,IF($B4<2,0,IF(Inputs!$H$11=FALSE,0,GO4*EXP(('Equations - Parameters'!$H$48*('Equations - Parameters'!$F$157*2.54/(FV4*2.54))^'Equations - Parameters'!$I$48)+('Equations - Parameters'!$J$48*((FL4*2.47109)^'Equations - Parameters'!$K$48)*(('Equations - Parameters'!$G$157*2.54)/(FV4*2.54))^'Equations - Parameters'!$L$48))-JY4-JZ4)))) -> 501.7620637 | KB4: =+IF($B4="","",IF(ID4=0,0,ID4*EXP('Equations - Parameters'!$H$48*('Equations - Parameters'!$F$155/(JH4))^'Equations - Parameters'!$I$48+'Equations - Parameters'!$J$48*(HO4*2.47105)^'Equations - Parameters'!$K$48*('Equations - Parameters'!$G$155/(JH4))^'Equations - Parameters'!$L$48))) -> 0 | KC4: =+IF($B4="","",IF(ID4=0,0,ID4*EXP('Equations - Parameters'!$H$48*('Equations - Parameters'!$F$156/(JH4))^'Equations - Parameters'!$I$48+'Equations - Parameters'!$J$48*(HO4*2.47105)^'Equations - Parameters'!$K$48*('Equations - Parameters'!$G$156/(JH4))^'Equations - Parameters'!$L$48)-KB4)) -> 0 | KD4: =+IF($B4="","",IF(ID4=0,0,ID4*EXP('Equations - Parameters'!$H$48*('Equations - Parameters'!$F$157/(JH4))^'Equations - Parameters'!$I$48+'Equations - Parameters'!$J$48*(HO4*2.47105)^'Equations - Parameters'!$K$48*('Equations - Parameters'!$G$157/(JH4))^'Equations - Parameters'!$L$48)-KB4-KC4)) -> 0 | KE4: =+IF($B4="","",IF(IE4=0,0,IE4*EXP('Equations - Parameters'!$H$48*('Equations - Parameters'!$F$155/(JI4))^'Equations - Parameters'!$I$48+'Equations - Parameters'!$J$48*(HP4*2.47105)^'Equations - Parameters'!$K$48*('Equations - Parameters'!$G$155/(JI4))^'Equations - Parameters'!$L$48))) -> 0 | KF4: =+IF($B4="","",IF(IE4=0,0,IE4*EXP('Equations - Parameters'!$H$48*('Equations - Parameters'!$F$156/(JI4))^'Equations - Parameters'!$I$48+'Equations - Parameters'!$J$48*(HP4*2.47105)^'Equations - Parameters'!$K$48*('Equations - Parameters'!$G$156/(JI4))^'Equations - Parameters'!$L$48)-KE4)) -> 0 | KG4: =+IF($B4="","",IF(IE4=0,0,IE4*EXP('Equations - Parameters'!$H$48*('Equations - Parameters'!$F$157/(JI4))^'Equations - Parameters'!$I$48+'Equations - Parameters'!$J$48*(HP4*2.47105)^'Equations - Parameters'!$K$48*('Equations - Parameters'!$G$157/(JI4))^'Equations - Parameters'!$L$48)-KE4-KF4)) -> 0 | KH4: =+IF($B4="","",IF(IF4=0,0,IF4*EXP('Equations - Parameters'!$H$48*('Equations - Parameters'!$F$155/(JJ4))^'Equations - Parameters'!$I$48+'Equations - Parameters'!$J$48*(HQ4*2.47105)^'Equations - Parameters'!$K$48*('Equations - Parameters'!$G$155/(JJ4))^'Equations - Parameters'!$L$48))) -> 0 | KI4: =+IF($B4="","",IF(IF4=0,0,IF4*EXP('Equations - Parameters'!$H$48*('Equations - Parameters'!$F$156/(JJ4))^'Equations - Parameters'!$I$48+'Equations - Parameters'!$J$48*(HQ4*2.47105)^'Equations - Parameters'!$K$48*('Equations - Parameters'!$G$156/(JJ4))^'Equations - Parameters'!$L$48)-KH4)) -> 0 | KJ4: =+IF($B4="","",IF(IF4=0,0,IF4*EXP('Equations - Parameters'!$H$48*('Equations - Parameters'!$F$157/(JJ4))^'Equations - Parameters'!$I$48+'Equations - Parameters'!$J$48*(HQ4*2.47105)^'Equations - Parameters'!$K$48*('Equations - Parameters'!$G$157/(JJ4))^'Equations - Parameters'!$L$48)-KH4-KI4)) -> 0 | KK4: =+IF($B4="","",IF(IG4=0,0,IG4*EXP('Equations - Parameters'!$H$48*('Equations - Parameters'!$F$155/(JK4))^'Equations - Parameters'!$I$48+'Equations - Parameters'!$J$48*(HR4*2.47105)^'Equations - Parameters'!$K$48*('Equations - Parameters'!$G$155/(JK4))^'Equations - Parameters'!$L$48))) -> 0 | KL4: =+IF($B4="","",IF(IG4=0,0,IG4*EXP('Equations - Parameters'!$H$48*('Equations - Parameters'!$F$156/(JK4))^'Equations - Parameters'!$I$48+'Equations - Parameters'!$J$48*(HR4*2.47105)^'Equations - Parameters'!$K$48*('Equations - Parameters'!$G$156/(JK4))^'Equations - Parameters'!$L$48)-KK4)) -> 0 | KM4: =+IF($B4="","",IF(IG4=0,0,IG4*EXP('Equations - Parameters'!$H$48*('Equations - Parameters'!$F$157/(JK4))^'Equations - Parameters'!$I$48+'Equations - Parameters'!$J$48*(HR4*2.47105)^'Equations - Parameters'!$K$48*('Equations - Parameters'!$G$157/(JK4))^'Equations - Parameters'!$L$48)-KK4-KL4)) -> 0 | KN4: =+IF($B4="","",IF(IH4=0,0,IH4*EXP('Equations - Parameters'!$H$48*('Equations - Parameters'!$F$155/(JL4))^'Equations - Parameters'!$I$48+'Equations - Parameters'!$J$48*(HS4*2.47105)^'Equations - Parameters'!$K$48*('Equations - Parameters'!$G$155/(JL4))^'Equations - Parameters'!$L$48))) -> 0 | KO4: =+IF($B4="","",IF(IH4=0,0,IH4*EXP('Equations - Parameters'!$H$48*('Equations - Parameters'!$F$156/(JL4))^'Equations - Parameters'!$I$48+'Equations - Parameters'!$J$48*(HS4*2.47105)^'Equations - Parameters'!$K$48*('Equations - Parameters'!$G$156/(JL4))^'Equations - Parameters'!$L$48)-KN4)) -> 0 | KP4: =+IF($B4="","",IF(IH4=0,0,IH4*EXP('Equations - Parameters'!$H$48*('Equations - Parameters'!$F$157/(JL4))^'Equations - Parameters'!$I$48+'Equations - Parameters'!$J$48*(HS4*2.47105)^'Equations - Parameters'!$K$48*('Equations - Parameters'!$G$157/(JL4))^'Equations - Parameters'!$L$48)-KN4-KO4)) -> 0 | KQ4: =+IF($B4="","",IF($B4<2,0,GK4*EXP(('Equations - Parameters'!$H$49*('Equations - Parameters'!$F$155*2.54/(FR4*2.54))^'Equations - Parameters'!$I$49)+('Equations - Parameters'!$J$49*((FH4*2.47109)^'Equations - Parameters'!$K$49)*(('Equations - Parameters'!$G$155*2.54)/(FR4*2.54))^'Equations - Parameters'!$L$49)))) -> 1.386117795e-12 | KR4: =+IF($B4="","",IF($B4<2,0,GK4*EXP(('Equations - Parameters'!$H$49*('Equations - Parameters'!$F$156*2.54/(FR4*2.54))^'Equations - Parameters'!$I$49)+('Equations - Parameters'!$J$49*((FH4*2.47109)^'Equations - Parameters'!$K$49)*(('Equations - Parameters'!$G$156*2.54)/(FR4*2.54))^'Equations - Parameters'!$L$49))-KQ4)) -> 9.250133356 | KS4: =+IF($B4="","",IF($B4<2,0,GK4*EXP(('Equations - Parameters'!$H$49*('Equations - Parameters'!$F$157*2.54/(FR4*2.54))^'Equations - Parameters'!$I$49)+('Equations - Parameters'!$J$49*((FH4*2.47109)^'Equations - Parameters'!$K$49)*(('Equations - Parameters'!$G$157*2.54)/(FR4*2.54))^'Equations - Parameters'!$L$49))-KR4-KQ4)) -> 491.6471757 | KT4: =+IF($B4="","",IF(GL4=0,0,IF(Inputs!$H$11=FALSE,0,IF($B4<2,0,GL4*EXP(('Equations - Parameters'!$H$49*('Equations - Parameters'!$F$155/(FS4))^'Equations - Parameters'!$I$49)+('Equations - Parameters'!$J$49*((FI4*2.47109)^'Equations - Parameters'!$K$49)*('Equations - Parameters'!$G$155/(FS4))^'Equations - Parameters'!$L$49)))))) -> 1.386117795e-12 | KU4: =+IF($B4="","",IF(GL4=0,0,IF(Inputs!$H$11=FALSE,0,IF($B4<2,0,GL4*EXP('Equations - Parameters'!$H$49*('Equations - Parameters'!$F$156/(FS4))^'Equations - Parameters'!$I$49+'Equations - Parameters'!$J$49*((FI4*2.47109)^'Equations - Parameters'!$K$49)*('Equations - Parameters'!$G$156/(FS4))^'Equations - Parameters'!$L$49)-KT4)))) -> 9.250133356 | KV4: =+IF($B4="","",IF(GL4=0,0,IF(Inputs!$H$11=FALSE,0,IF(B4<2,0,GL4*EXP('Equations - Parameters'!$H$49*('Equations - Parameters'!$F$157/(FS4))^'Equations - Parameters'!$I$49+'Equations - Parameters'!$J$49*((FI4*2.47109)^'Equations - Parameters'!$K$49)*('Equations - Parameters'!$G$157/(FS4))^'Equations - Parameters'!$L$49)-KU4-KT4)))) -> 491.6471757 | KW4: =+IF($B4="","",IF(GM4=0,0,IF(Inputs!$H$11=FALSE,0,IF($B4<2,0,GM4*EXP(('Equations - Parameters'!$H$49*('Equations - Parameters'!$F$155/(FT4))^'Equations - Parameters'!$I$49)+('Equations - Parameters'!$J$49*((FJ4*2.47109)^'Equations - Parameters'!$K$49)*('Equations - Parameters'!$G$155/(FT4))^'Equations - Parameters'!$L$49)))))) -> 1.386117795e-12 | KX4: =+IF($B4="","",IF(GM4=0,0,IF(Inputs!$H$11=FALSE,0,IF($B4<2,0,GM4*EXP('Equations - Parameters'!$H$49*('Equations - Parameters'!$F$156/(FT4))^'Equations - Parameters'!$I$49+'Equations - Parameters'!$J$49*((FJ4*2.47109)^'Equations - Parameters'!$K$49)*('Equations - Parameters'!$G$156/(FT4))^'Equations - Parameters'!$L$49)-KW4)))) -> 9.250133356 | KY4: =+IF($B4="","",IF(GM4=0,0,IF(Inputs!$H$11=FALSE,0,IF(B4<2,0,GM4*EXP('Equations - Parameters'!$H$49*('Equations - Parameters'!$F$157/(FT4))^'Equations - Parameters'!$I$49+'Equations - Parameters'!$J$49*((FJ4*2.47109)^'Equations - Parameters'!$K$49)*('Equations - Parameters'!$G$157/(FT4))^'Equations - Parameters'!$L$49)-KX4-KW4)))) -> 491.6471757 | KZ4: =+IF($B4="","",IF(GN4=0,0,IF(Inputs!$H$11=FALSE,0,IF($B4<2,0,GN4*EXP(('Equations - Parameters'!$H$49*('Equations - Parameters'!$F$155/(FU4))^'Equations - Parameters'!$I$49)+('Equations - Parameters'!$J$49*((FK4*2.47109)^'Equations - Parameters'!$K$49)*('Equations - Parameters'!$G$155/(FU4))^'Equations - Parameters'!$L$49)))))) -> 1.386117795e-12 | LA4: =+IF($B4="","",IF(GN4=0,0,IF(Inputs!$H$11=FALSE,0,IF($B4<2,0,GN4*EXP('Equations - Parameters'!$H$49*('Equations - Parameters'!$F$156/(FU4))^'Equations - Parameters'!$I$49+'Equations - Parameters'!$J$49*((FK4*2.47109)^'Equations - Parameters'!$K$49)*('Equations - Parameters'!$G$156/(FU4))^'Equations - Parameters'!$L$49)-KZ4)))) -> 9.250133356 | LB4: =+IF($B4="","",IF(GN4=0,0,IF(Inputs!$H$11=FALSE,0,IF(B4<2,0,GN4*EXP('Equations - Parameters'!$H$49*('Equations - Parameters'!$F$157/(FU4))^'Equations - Parameters'!$I$49+'Equations - Parameters'!$J$49*((FK4*2.47109)^'Equations - Parameters'!$K$49)*('Equations - Parameters'!$G$157/(FU4))^'Equations - Parameters'!$L$49)-LA4-KZ4)))) -> 491.6471757 | LC4: =+IF($B4="","",IF(GO4=0,0,IF(Inputs!$H$11=FALSE,0,IF($B4<2,0,GO4*EXP(('Equations - Parameters'!$H$49*('Equations - Parameters'!$F$155/(FV4))^'Equations - Parameters'!$I$49)+('Equations - Parameters'!$J$49*((FL4*2.47109)^'Equations - Parameters'!$K$49)*('Equations - Parameters'!$G$155/(FV4))^'Equations - Parameters'!$L$49)))))) -> 1.386117795e-12 | LD4: =+IF($B4="","",IF(GO4=0,0,IF(Inputs!$H$11=FALSE,0,IF($B4<2,0,GO4*EXP('Equations - Parameters'!$H$49*('Equations - Parameters'!$F$156/(FV4))^'Equations - Parameters'!$I$49+'Equations - Parameters'!$J$49*((FL4*2.47109)^'Equations - Parameters'!$K$49)*('Equations - Parameters'!$G$156/(FV4))^'Equations - Parameters'!$L$49)-LC4)))) -> 9.250133356 | LE4: =+IF($B4="","",IF(GO4=0,0,IF(Inputs!$H$11=FALSE,0,IF(B4<2,0,GO4*EXP('Equations - Parameters'!$H$49*('Equations - Parameters'!$F$157/(FV4))^'Equations - Parameters'!$I$49+'Equations - Parameters'!$J$49*((FL4*2.47109)^'Equations - Parameters'!$K$49)*('Equations - Parameters'!$G$157/(FV4))^'Equations - Parameters'!$L$49)-LD4-LC4)))) -> 491.6471757 | LF4: =+IF($B4="","",IF(IS4=0,0,IS4*EXP('Equations - Parameters'!$H$49*('Equations - Parameters'!$F$155/(JH4))^'Equations - Parameters'!$I$49+'Equations - Parameters'!$J$49*(HO4*2.47105)^'Equations - Parameters'!$K$49*('Equations - Parameters'!$G$155/(JH4))^'Equations - Parameters'!$L$49))) -> 0 | LG4: =+IF($B4="","",IF(IS4=0,0,IS4*EXP('Equations - Parameters'!$H$49*('Equations - Parameters'!$F$156/(JH4))^'Equations - Parameters'!$I$49+'Equations - Parameters'!$J$49*(HO4*2.47105)^'Equations - Parameters'!$K$49*('Equations - Parameters'!$G$156/(JH4))^'Equations - Parameters'!$L$49)-LF4)) -> 0 | LH4: =+IF($B4="","",IF(IS4=0,0,IS4*EXP('Equations - Parameters'!$H$49*('Equations - Parameters'!$F$157/(JH4))^'Equations - Parameters'!$I$49+'Equations - Parameters'!$J$49*(HO4*2.47105)^'Equations - Parameters'!$K$49*('Equations - Parameters'!$G$157/(JH4))^'Equations - Parameters'!$L$49)-LG4-LF4)) -> 0 | LI4: =+IF($B4="","",IF(IT4=0,0,IT4*EXP('Equations - Parameters'!$H$49*('Equations - Parameters'!$F$155/(JI4))^'Equations - Parameters'!$I$49+'Equations - Parameters'!$J$49*(HP4*2.47105)^'Equations - Parameters'!$K$49*('Equations - Parameters'!$G$155/(JI4))^'Equations - Parameters'!$L$49))) -> 0 | LJ4: =+IF($B4="","",IF(IT4=0,0,IT4*EXP('Equations - Parameters'!$H$49*('Equations - Parameters'!$F$156/(JI4))^'Equations - Parameters'!$I$49+'Equations - Parameters'!$J$49*(HP4*2.47105)^'Equations - Parameters'!$K$49*('Equations - Parameters'!$G$156/(JI4))^'Equations - Parameters'!$L$49)-LI4)) -> 0 | LK4: =+IF($B4="","",IF(IT4=0,0,IT4*EXP('Equations - Parameters'!$H$49*('Equations - Parameters'!$F$157/(JI4))^'Equations - Parameters'!$I$49+'Equations - Parameters'!$J$49*(HP4*2.47105)^'Equations - Parameters'!$K$49*('Equations - Parameters'!$G$157/(JI4))^'Equations - Parameters'!$L$49)-LJ4-LI4)) -> 0 | LL4: =+IF($B4="","",IF(IU4=0,0,IU4*EXP('Equations - Parameters'!$H$49*('Equations - Parameters'!$F$155/(JJ4))^'Equations - Parameters'!$I$49+'Equations - Parameters'!$J$49*(HQ4*2.47105)^'Equations - Parameters'!$K$49*('Equations - Parameters'!$G$155/(JJ4))^'Equations - Parameters'!$L$49))) -> 0 | LM4: =+IF($B4="","",IF(IU4=0,0,IU4*EXP('Equations - Parameters'!$H$49*('Equations - Parameters'!$F$156/(JJ4))^'Equations - Parameters'!$I$49+'Equations - Parameters'!$J$49*(HQ4*2.47105)^'Equations - Parameters'!$K$49*('Equations - Parameters'!$G$156/(JJ4))^'Equations - Parameters'!$L$49)-LL4)) -> 0 | LN4: =+IF($B4="","",IF(IU4=0,0,IU4*EXP('Equations - Parameters'!$H$49*('Equations - Parameters'!$F$157/(JJ4))^'Equations - Parameters'!$I$49+'Equations - Parameters'!$J$49*(HQ4*2.47105)^'Equations - Parameters'!$K$49*('Equations - Parameters'!$G$157/(JJ4))^'Equations - Parameters'!$L$49)-LM4-LL4)) -> 0 | LO4: =+IF($B4="","",IF(IV4=0,0,IV4*EXP('Equations - Parameters'!$H$49*('Equations - Parameters'!$F$155/(JK4))^'Equations - Parameters'!$I$49+'Equations - Parameters'!$J$49*(HR4*2.47105)^'Equations - Parameters'!$K$49*('Equations - Parameters'!$G$155/(JK4))^'Equations - Parameters'!$L$49))) -> 0 | LP4: =+IF($B4="","",IF(IV4=0,0,IV4*EXP('Equations - Parameters'!$H$49*('Equations - Parameters'!$F$156/(JK4))^'Equations - Parameters'!$I$49+'Equations - Parameters'!$J$49*(HR4*2.47105)^'Equations - Parameters'!$K$49*('Equations - Parameters'!$G$156/(JK4))^'Equations - Parameters'!$L$49)-LO4)) -> 0 | LQ4: =+IF($B4="","",IF(IV4=0,0,IV4*EXP('Equations - Parameters'!$H$49*('Equations - Parameters'!$F$157/(JK4))^'Equations - Parameters'!$I$49+'Equations - Parameters'!$J$49*(HR4*2.47105)^'Equations - Parameters'!$K$49*('Equations - Parameters'!$G$157/(JK4))^'Equations - Parameters'!$L$49)-LP4-LO4)) -> 0 | LR4: =+IF($B4="","",IF(IW4=0,0,IW4*EXP('Equations - Parameters'!$H$49*('Equations - Parameters'!$F$155/(JL4))^'Equations - Parameters'!$I$49+'Equations - Parameters'!$J$49*(HS4*2.47105)^'Equations - Parameters'!$K$49*('Equations - Parameters'!$G$155/(JL4))^'Equations - Parameters'!$L$49))) -> 0 | LS4: =+IF($B4="","",IF(IW4=0,0,IW4*EXP('Equations - Parameters'!$H$49*('Equations - Parameters'!$F$156/(JL4))^'Equations - Parameters'!$I$49+'Equations - Parameters'!$J$49*(HS4*2.47105)^'Equations - Parameters'!$K$49*('Equations - Parameters'!$G$156/(JL4))^'Equations - Parameters'!$L$49)-LR4)) -> 0 | LT4: =+IF($B4="","",IF(IW4=0,0,IW4*EXP('Equations - Parameters'!$H$49*('Equations - Parameters'!$F$157/(JL4))^'Equations - Parameters'!$I$49+'Equations - Parameters'!$J$49*(HS4*2.47105)^'Equations - Parameters'!$K$49*('Equations - Parameters'!$G$157/(JL4))^'Equations - Parameters'!$L$49)-LS4-LR4)) -> 0
A5: 1 | B5: =+IF($A5+Inputs!$J$14-1>Inputs!$B$6,"",IF($B4=Inputs!$B$6, "",IF($A5=0,Inputs!$J$14,IF(B4=Inputs!$B$6,0,B4+1)))) -> 36 | C5: =+IF($B5="","",IF($B5=Inputs!$B$15,Inputs!$J$15,4.5+(('Equations - Parameters'!$F$14+(0.5*(Inputs!$J$18-4.5-'Equations - Parameters'!$F$14+SQRT((((Inputs!$J$18-4.5)-'Equations - Parameters'!$F$14))^2+4*'Equations - Parameters'!$G$14*(Inputs!$J$18-4.5)*((50-Inputs!$B$9)^-'Equations - Parameters'!$H$14)))))/(1+('Equations - Parameters'!$G$14/(0.5*(Inputs!$J$18-4.5-'Equations - Parameters'!$F$14+SQRT((((Inputs!$J$18-4.5)-'Equations - Parameters'!$F$14))^2+4*'Equations - Parameters'!$G$14*(Inputs!$J$18-4.5)*((50-Inputs!$B$9)^-'Equations - Parameters'!$H$14))))*(($B5-Inputs!$B$9)^-'Equations - Parameters'!$H$14)))))) -> 57.54941509 | D5: =+IF($B5="","",IF(Inputs!$H$11=TRUE,0,IF($B5=Inputs!$J$14,Inputs!$J$16,(D4^('Equations - Parameters'!$F$7+'Equations - Parameters'!$G$7/Inputs!$J$18)+'Equations - Parameters'!$H$7*((($B5-Inputs!$B$9)/200)^'Equations - Parameters'!$I$7-(($B4-Inputs!$B$9)/200)^'Equations - Parameters'!$I$7))^(1/('Equations - Parameters'!$F$7+'Equations - Parameters'!$G$7/Inputs!$J$18))))) -> 0 | E5: =+IF($B5="","",IF(Inputs!$H$11=TRUE,0,IF($B5=Inputs!$J$14,Inputs!$J$17,(E4^(((B4-Inputs!$B$9+'Equations - Parameters'!$I$26)^('Equations - Parameters'!$F$26+'Equations - Parameters'!$G$26*LN(D4)))/((B5-Inputs!$B$9+'Equations - Parameters'!$I$26)^('Equations - Parameters'!$F$26+'Equations - Parameters'!$G$26*LN(D5))))*EXP('Equations - Parameters'!$H$26*(1-(((B4-Inputs!$B$9+'Equations - Parameters'!$I$26)^('Equations - Parameters'!$F$26+'Equations - Parameters'!$G$26*LN(D4)))/((B5-Inputs!$B$9+'Equations - Parameters'!$I$26)^('Equations - Parameters'!$F$26+'Equations - Parameters'!$G$26*LN(D5)))))))))) -> 0 | F5: =+IF($B5="","",IF(Inputs!$H$11=TRUE,0,SQRT((E5/D5)/0.005454))) -> 0 | G5: =+IF($B5>Inputs!$B$6,"",D5*(F5/10)^1.605) -> 0 | H5: =+IF($B5="","",IF(Inputs!$H$22=FALSE,0,IF(AND(Inputs!$H$22=TRUE,$B5=Inputs!$J$14),Inputs!$J$16,(H4^('Equations - Parameters'!$F$7+'Equations - Parameters'!$G$7/Inputs!$J$18)+'Equations - Parameters'!$H$7*((($B5-Inputs!$B$9)/200)^'Equations - Parameters'!$I$7-(($B4-Inputs!$B$9)/200)^'Equations - Parameters'!$I$7))^(1/('Equations - Parameters'!$F$7+'Equations - Parameters'!$G$7/Inputs!$J$18))))) -> 0 | I5: =+IF(B5="","",IF(Inputs!$H$11=FALSE,0,IF(Inputs!$H$22=FALSE,0,IF(Inputs!$B$30="",0,IF(B5<Inputs!$B$30,H5,IF(AND(B5=Inputs!$B$30,Inputs!$H$27=TRUE),(H5-(Inputs!$C$30*H5)),IF(AND(B5=Inputs!$B$30,Inputs!$H$27=FALSE),(H5*(1-Inputs!$C$30)^('Equations - Parameters'!$F$39*(C5/Y5)+'Equations - Parameters'!$G$39/Y5+'Equations - Parameters'!$H$39*Y5+'Equations - Parameters'!$I$39*Y5*IF(Inputs!$H$8=TRUE,0,1))),(I4^('Equations - Parameters'!$F$7+'Equations - Parameters'!$G$7/Inputs!$J$18)+'Equations - Parameters'!$H$7*(((B5-Inputs!$B$9)/200)^'Equations - Parameters'!$I$7-((B4-Inputs!$B$9)/200)^'Equations - Parameters'!$I$7))^(1/('Equations - Parameters'!$F$7+'Equations - Parameters'!$G$7/Inputs!$J$18))))))))) -> 0 | J5: =+IF(B5="","",IF(Inputs!$H$11=FALSE,0,IF(Inputs!$H$22=FALSE,0,IF(Inputs!$B$31="",0,IF(B5<Inputs!$B$31,I5,IF(AND(B5=Inputs!$B$31,Inputs!$H$27=TRUE),(I5-(Inputs!$C$31*I5)),IF(AND(B5=Inputs!$B$31,Inputs!$H$27=FALSE),(I5*(1-Inputs!$C$31)^('Equations - Parameters'!$F$39*(C5/Z5)+'Equations - Parameters'!$G$39/Z5+'Equations - Parameters'!$H$39*Z5+'Equations - Parameters'!$I$39*Z5*IF(Inputs!$H$8=TRUE,0,1))),(J4^('Equations - Parameters'!$F$7+'Equations - Parameters'!$G$7/Inputs!$J$18)+'Equations - Parameters'!$H$7*(((B5-Inputs!$B$9)/200)^'Equations - Parameters'!$I$7-((B4-Inputs!$B$9)/200)^'Equations - Parameters'!$I$7))^(1/('Equations - Parameters'!$F$7+'Equations - Parameters'!$G$7/Inputs!$J$18))))))))) -> 0 | K5: =+IF(B5="","",IF(Inputs!$H$11=FALSE,0,IF(Inputs!$H$22=FALSE,0,IF(Inputs!$B$32="",0,IF(B5<Inputs!$B$32,J5,IF(AND(B5=Inputs!$B$32,Inputs!$H$27=TRUE),(J5-(Inputs!$C$32*J5)),IF(AND(B5=Inputs!$B$32,Inputs!$H$27=FALSE),(J5*(1-Inputs!$C$32)^('Equations - Parameters'!$F$39*(C5/AA5)+'Equations - Parameters'!$G$39/AA5+'Equations - Parameters'!$H$39*AA5+'Equations - Parameters'!$I$39*AA5*IF(Inputs!$H$8=TRUE,0,1))),(K4^('Equations - Parameters'!$F$7+'Equations - Parameters'!$G$7/Inputs!$J$18)+'Equations - Parameters'!$H$7*(((B5-Inputs!$B$9)/200)^'Equations - Parameters'!$I$7-((B4-Inputs!$B$9)/200)^'Equations - Parameters'!$I$7))^(1/('Equations - Parameters'!$F$7+'Equations - Parameters'!$G$7/Inputs!$J$18))))))))) -> 0 | L5: =+IF(B5="","",IF(Inputs!$H$11=FALSE,0,IF(Inputs!$H$22=FALSE,0,IF(Inputs!$B$33="",0,IF(B5<Inputs!$B$33,K5,IF(AND(B5=Inputs!$B$33,Inputs!$H$27=TRUE),(K5-(Inputs!$C$33*K5)),IF(AND(B5=Inputs!$B$33,Inputs!$H$27=FALSE),(K5*(1-Inputs!$C$33)^('Equations - Parameters'!$F$39*(C5/AB5)+'Equations - Parameters'!$G$39/AB5+'Equations - Parameters'!$H$39*AB5+'Equations - Parameters'!$I$39*AB5*IF(Inputs!$H$8=TRUE,0,1))),(L4^('Equations - Parameters'!$F$7+'Equations - Parameters'!$G$7/Inputs!$J$18)+'Equations - Parameters'!$H$7*(((B5-Inputs!$B$9)/200)^'Equations - Parameters'!$I$7-((B4-Inputs!$B$9)/200)^'Equations - Parameters'!$I$7))^(1/('Equations - Parameters'!$F$7+'Equations - Parameters'!$G$7/Inputs!$J$18))))))))) -> 0 | M5: =+IF($B5>Inputs!$B$6,"",IF(Inputs!$H$22=FALSE,0,IF(AND(Inputs!$H$22=TRUE,$B5=Inputs!$J$14),Inputs!$J$17,IF(AND(Inputs!$H$22=TRUE,$B5<>Inputs!$J$14),(M4^(((B4-Inputs!$B$9+'Equations - Parameters'!$I$26)^('Equations - Parameters'!$F$26+'Equations - Parameters'!$G$26*LN(H4)))/((B5-Inputs!$B$9+'Equations - Parameters'!$I$26)^('Equations - Parameters'!$F$26+'Equations - Parameters'!$G$26*LN(H5))))*EXP('Equations - Parameters'!$H$26*(1-(((B4-Inputs!$B$9+'Equations - Parameters'!$I$26)^('Equations - Parameters'!$F$26+'Equations - Parameters'!$G$26*LN(H4)))/((B5-Inputs!$B$9+'Equations - Parameters'!$I$26)^('Equations - Parameters'!$F$26+'Equations - Parameters'!$G$26*LN(H5))))))))))) -> 0 | N5: =+IF(B5="","",IF(Inputs!$H$11=FALSE,0,IF(Inputs!$H$22=FALSE,0,IF(Inputs!$B$30="",0,IF(B5<Inputs!$B$30,M5,IF(AND(B5=Inputs!$B$30,Inputs!$H$27=FALSE),(M5-(Inputs!$C$30*M5)),IF(AND(B5=Inputs!$B$30,Inputs!$H$27=TRUE),(M5*(1-(Inputs!$C$30)^('Equations - Parameters'!$F$40+'Equations - Parameters'!$G$40/Y5+'Equations - Parameters'!$H$40/B5+'Equations - Parameters'!$I$40/C5+'Equations - Parameters'!$J$40*(H5/I5)+'Equations - Parameters'!$K$40*(H5/I5)*IF(Inputs!$H$8=TRUE,0,1)))),(N4^(((B4+'Equations - Parameters'!$I$26)^('Equations - Parameters'!$F$26+'Equations - Parameters'!$G$26*LN(I4)))/((B5+'Equations - Parameters'!$I$26)^('Equations - Parameters'!$F$26+'Equations - Parameters'!$G$26*LN(I5))))*EXP('Equations - Parameters'!$H$26*(1-(((B4+'Equations - Parameters'!$I$26)^('Equations - Parameters'!$F$26+'Equations - Parameters'!$G$26*LN(I4)))/((B5+'Equations - Parameters'!$I$26)^('Equations - Parameters'!$F$26+'Equations - Parameters'!$G$26*LN(I5)))))))))))))) -> 0 | O5: =+IF(B5="","",IF(Inputs!$H$11=FALSE,0,IF(Inputs!$H$22=FALSE,0,IF(Inputs!$B$31="",0,IF(B5<Inputs!$B$31,N5,IF(AND(B5=Inputs!$B$31,Inputs!$H$27=FALSE),(N5-(Inputs!$C$31*N5)),IF(AND(B5=Inputs!$B$31,Inputs!$H$27=TRUE),(N5*(1-(Inputs!$C$31)^('Equations - Parameters'!$F$40+'Equations - Parameters'!$G$40/Z5+'Equations - Parameters'!$H$40/B5+'Equations - Parameters'!$I$40/C5+'Equations - Parameters'!$J$40*(I5/J5)+'Equations - Parameters'!$K$40*(I5/J5)*IF(Inputs!$H$8=TRUE,0,1)))),(O4^(((B4+'Equations - Parameters'!$I$26)^('Equations - Parameters'!$F$26+'Equations - Parameters'!$G$26*LN(J4)))/((B5+'Equations - Parameters'!$I$26)^('Equations - Parameters'!$F$26+'Equations - Parameters'!$G$26*LN(J5))))*EXP('Equations - Parameters'!$H$26*(1-(((B4+'Equations - Parameters'!$I$26)^('Equations - Parameters'!$F$26+'Equations - Parameters'!$G$26*LN(J4)))/((B5+'Equations - Parameters'!$I$26)^('Equations - Parameters'!$F$26+'Equations - Parameters'!$G$26*LN(J5)))))))))))))) -> 0 | P5: =+IF(B5="","",IF(Inputs!$H$11=FALSE,0,IF(Inputs!$H$22=FALSE,0,IF(Inputs!$B$32="",0,IF(B5<Inputs!$B$32,O5,IF(AND(B5=Inputs!$B$32,Inputs!$H$27=FALSE),(O5-(Inputs!$C$32*O5)),IF(AND(B5=Inputs!$B$32,Inputs!$H$27=TRUE),(O5*(1-(Inputs!$C$32)^('Equations - Parameters'!$F$40+'Equations - Parameters'!$G$40/AA5+'Equations - Parameters'!$H$40/B5+'Equations - Parameters'!$I$40/C5+'Equations - Parameters'!$J$40*(J5/K5)+'Equations - Parameters'!$K$40*(J5/K5)*IF(Inputs!$H$8=TRUE,0,1)))),(P4^(((B4+'Equations - Parameters'!$I$26)^('Equations - Parameters'!$F$26+'Equations - Parameters'!$G$26*LN(K4)))/((B5+'Equations - Parameters'!$I$26)^('Equations - Parameters'!$F$26+'Equations - Parameters'!$G$26*LN(K5))))*EXP('Equations - Parameters'!$H$26*(1-(((B4+'Equations - Parameters'!$I$26)^('Equations - Parameters'!$F$26+'Equations - Parameters'!$G$26*LN(K4)))/((B5+'Equations - Parameters'!$I$26)^('Equations - Parameters'!$F$26+'Equations - Parameters'!$G$26*LN(K5)))))))))))))) -> 0 | Q5: =+IF(B5="","",IF(Inputs!$H$11=FALSE,0,IF(Inputs!$H$22=FALSE,0,IF(Inputs!$B$33="",0,IF(B5<Inputs!$B$33,P5,IF(AND(B5=Inputs!$B$33,Inputs!$H$27=FALSE),(P5-(Inputs!$C$33*P5)),IF(AND(B5=Inputs!$B$33,Inputs!$H$27=TRUE),(P5*(1-(Inputs!$C$33)^('Equations - Parameters'!$F$40+'Equations - Parameters'!$G$40/AB5+'Equations - Parameters'!$H$40/B5+'Equations - Parameters'!$I$40/C5+'Equations - Parameters'!$J$40*(K5/L5)+'Equations - Parameters'!$K$40*(K5/L5)*IF(Inputs!$H$8=TRUE,0,1)))),(Q4^(((B4+'Equations - Parameters'!$I$26)^('Equations - Parameters'!$F$26+'Equations - Parameters'!$G$26*LN(L4)))/((B5+'Equations - Parameters'!$I$26)^('Equations - Parameters'!$F$26+'Equations - Parameters'!$G$26*LN(L5))))*EXP('Equations - Parameters'!$H$26*(1-(((B4+'Equations - Parameters'!$I$26)^('Equations - Parameters'!$F$26+'Equations - Parameters'!$G$26*LN(L4)))/((B5+'Equations - Parameters'!$I$26)^('Equations - Parameters'!$F$26+'Equations - Parameters'!$G$26*LN(L5)))))))))))))) -> 0 | R5: 0 | S5: =+IF($B5="","",IF(Inputs!$B$30="",0,IF($B5=Inputs!$B$30,M5-N5,0))) -> 0 | T5: =+IF($B5="","",IF(Inputs!$B$31="",0,IF($B5=Inputs!$B$31,N5-O5,0))) -> 0 | U5: =+IF($B5="","",IF(Inputs!$B$32="",0,IF($B5=Inputs!$B$32,O5-P5,0))) -> 0 | V5: =+IF($B5="","",IF(Inputs!$B$33="",0,IF($B5=Inputs!$B$33,P5-Q5,0))) -> 0 | W5: =+IF($B5>Inputs!$B$6,"",R5+S5+T5+U5+V5) -> 0 | X5: =+IF($B5>Inputs!$B$6,"",IF(B5=Inputs!$B$30,N5*(1-Inputs!$C$30),IF(B5=Inputs!$B$31,O5*(1-Inputs!$C$31),IF(B5=Inputs!$B$32,P5*(1-Inputs!$C$32),IF(B5=Inputs!$B$33,Q5*(1-Inputs!$C$33),0))))) -> 0 | Y5: =+IF($B5>Inputs!$B$6,"",IF(M5=0,0,SQRT((M5/H5)/0.005454))) -> 0 | Z5: =+IF($B5>Inputs!$B$6,"",IF(N5=0,0,SQRT((N5/I5)/0.005454))) -> 0 | AA5: =+IF($B5>Inputs!$B$6,"",IF(O5=0,0,SQRT((O5/J5)/0.005454))) -> 0 | AB5: =+IF($B5>Inputs!$B$6,"",IF(P5=0,0,SQRT((P5/K5)/0.005454))) -> 0 | AC5: =+IF($B5>Inputs!$B$6,"",IF(Q5=0,0,SQRT((Q5/L5)/0.005454))) -> 0 | AD5: =+IF($B5>Inputs!$B$6,"",H5*(Y5/10)^1.605) -> 0 | AE5: =+IF($B5>Inputs!$B$6,"",I5*(Z5/10)^1.605) -> 0 | AF5: =+IF($B5>Inputs!$B$6,"",J5*(AA5/10)^1.605) -> 0 | AG5: =+IF($B5>Inputs!$B$6,"",K5*(AB5/10)^1.605) -> 0 | AH5: =+IF($B5>Inputs!$B$6,"",L5*(AC5/10)^1.605) -> 0 | AI5: =+IF($B5>Inputs!$B$6,"",IF(Inputs!$B$30="",0,IF(B5<Inputs!$B$30,0,EXP('Equations - Parameters'!$B$21+'Equations - Parameters'!$C$21*LN(I5)+'Equations - Parameters'!$D$21*LN(C5))))) -> 0 | AJ5: =+IF($B5>Inputs!$B$6,"",IF($B5=0,0,IF(AND(Inputs!$H$4=TRUE,$B5=Inputs!$J$14),Inputs!$J$17,IF(AND(Inputs!$H$4=TRUE,$B5<>Inputs!$J$14),AJ4*((H5/H4)^('Equations - Parameters'!$C$21))*((C5/C4)^('Equations - Parameters'!$D$21)),EXP('Equations - Parameters'!$B$21+'Equations - Parameters'!$C$21*LN(H5)+'Equations - Parameters'!$D$21*LN(C5)))))) ->  | AK5: =+IF($B5>Inputs!$B$6,"",IF(Inputs!$B$30="",0,IF($B5=Inputs!$B$30,AJ5-BH5,0))) -> 0 | AL5: =+IF($B5>Inputs!$B$6,"",IF(Inputs!$B$30="",0,IF($B5=Inputs!$B$30,$B5,0))) -> 0 | AM5: =+IF($B5>Inputs!$B$6,"",IF(Inputs!$B$31="",0,IF(B5<Inputs!$B$31,0,EXP('Equations - Parameters'!$B$21+'Equations - Parameters'!$C$21*LN(J5)+'Equations - Parameters'!$D$21*LN(C5))))) -> 0 | AN5: =+IF($B5>Inputs!$B$6,"",IF(Inputs!$B$31="",0,IF($B5=Inputs!$B$31,AV5-$BH5,0))) -> 0 | AO5: =+IF($B5>Inputs!$B$6,"",IF(Inputs!$B$31="",0,IF($B5=Inputs!$B$31,$B5,0))) -> 0 | AP5: =+IF($B5>Inputs!$B$6,"",IF(Inputs!$B$32="",0,IF($B5<Inputs!$B$32,0,EXP('Equations - Parameters'!$B$21+'Equations - Parameters'!$C$21*LN(K5)+'Equations - Parameters'!$D$21*LN(C5))))) -> 0 | AQ5: =+IF($B5>Inputs!$B$6,"",IF(Inputs!$B$32="",0,IF($B5=Inputs!$B$32,AY5-$BH5,0))) -> 0 | AR5: =+IF($B5>Inputs!$B$6,"",IF(Inputs!$B$32="",0,IF($B5=Inputs!$B$32,$B5,0))) -> 0 | AS5: =+IF($B5>Inputs!$B$6,"",IF(Inputs!$B$33="",0,IF($B5<Inputs!$B$33,0,EXP('Equations - Parameters'!$B$21+'Equations - Parameters'!$C$21*LN(L5)+'Equations - Parameters'!$D$21*LN(C5))))) -> 0 | AT5: =+IF($B5>Inputs!$B$6,"",IF(Inputs!$B$33="",0,IF($B5=Inputs!$B$33,BB5-$BH5,0))) -> 0 | AU5: =+IF($B5>Inputs!$B$6,"",IF(Inputs!$B$33="",0,IF($B5=Inputs!$B$33,$B5,0))) -> 0 | AV5: =+IF(A5+Inputs!$J$14-1>Inputs!$B$6,"",IF(Inputs!$B$30="",0,IF($B5<Inputs!$B$30,AJ5,IF(B5=Inputs!$B$30,BH5,AI5*(1-AX5))))) ->  | AW5: =+IF(A5+Inputs!$J$14-1>Inputs!$B$6,"",+IF(SUM($AK$4:$AK$504)>0,1,0)) ->  | AX5: =+IF(A5+Inputs!$J$14-1>Inputs!$B$6,"",IF(Inputs!$B$30="",0,IF(B5<Inputs!$B$30,0,IF(B5=Inputs!$B$30,1-(AV5/AI5),AX4*EXP(('Equations - Parameters'!$C$24/B5)*(B5-B4)))))) -> 0 | AY5: =+IF(A5+Inputs!$J$14-1>Inputs!$B$6,"",IF(Inputs!$B$31="",0,IF($B5<Inputs!$B$31,AV5,IF($B5=Inputs!$B$31,BH5,AM5*(1-BA5))))) -> 0 | AZ5: =+IF(A5+Inputs!$J$14-1>Inputs!$B$6,"",IF(SUM($AN$4:$AN$504)>0,1,0)) -> 0 | BA5: =+IF(A5+Inputs!$J$14-1>Inputs!$B$6,"",IF(Inputs!$B$31="",0,IF($B5<Inputs!$B$31,0,IF($B5=Inputs!$B$31,1-(AY5/AM5),BA4*EXP(('Equations - Parameters'!$C$24/B5)*($B5-$B4)))))) -> 0 | BB5: =+IF(A5+Inputs!$J$14-1>Inputs!$B$6,"",IF(Inputs!$B$32="",0,IF($B5<Inputs!$B$32,AY5,IF($B5=Inputs!$B$32,BH5,AP5*(1-BD5))))) -> 0 | BC5: =+IF(A5+Inputs!$J$14-1>Inputs!$B$6,"",IF(SUM($AQ$4:$AQ$504)>0,1,0)) -> 0 | BD5: =+IF(A5+Inputs!$J$14-1>Inputs!$B$6,"",IF(Inputs!$B$32="",0,IF($B5<Inputs!$B$32,0,IF($B5=Inputs!$B$32,1-(BB5/AP5),BD4*EXP(('Equations - Parameters'!$C$24/B5)*($B5-$B4)))))) -> 0 | BE5: =+IF(A5+Inputs!$J$14-1>Inputs!$B$6,"",IF(Inputs!$B$33="",0,IF($B5<Inputs!$B$33,BB5,IF($B5=Inputs!$B$33,BH5,AS5*(1-BG5))))) -> 0 | BF5: =+IF(A5+Inputs!$J$14-1>Inputs!$B$6,"",IF(SUM($AT$4:$AT$504)>0,1,0)) -> 0 | BG5: =+IF(A5+Inputs!$J$14-1>Inputs!$B$6,"",IF(Inputs!$B$33="",0,IF($B5<Inputs!$B$33,0,IF($B5=Inputs!$B$33,1-(BE5/AS5),BG4*EXP(('Equations - Parameters'!$C$24/B5)*($B5-$B4)))))) -> 0 | BH5: =+IF(A5+Inputs!$J$14-1>Inputs!$B$6,"",IF(B5=Inputs!$B$30,AJ5*(1-Inputs!$C$30),IF(B5=Inputs!$B$31,AV5*(1-Inputs!$C$31),IF(B5=Inputs!$B$32,AY5*(1-Inputs!$C$32),IF(B5=Inputs!$B$33,BB5*(1-Inputs!$C$33),0))))) -> 0 | BI5: =+IF(B5="","",IF(AND(Inputs!$H$23=TRUE,B5=Inputs!$J$14),Inputs!$J$16,(BI4^('Equations - Parameters'!$F$7+'Equations - Parameters'!$G$7/Inputs!$J$18) + 'Equations - Parameters'!$H$7*((B5/200)^'Equations - Parameters'!$I$7 - (B4/200)^'Equations - Parameters'!$I$7 ))^(1/('Equations - Parameters'!$F$7+'Equations - Parameters'!$G$7/Inputs!$J$18) ))) -> 593.0891876 | BJ5: =+IF(A5+Inputs!$J$14-1>Inputs!$B$6,"",IF(CL5=0,BI5,IF(CM5<>0,BI5*(1-CM5/CI5),BJ4*EXP(('Equations - Parameters'!$B$9*C4/100+'Equations - Parameters'!$C$9*CD4/'Equations - Parameters'!$D$7)*(B5^'Equations - Parameters'!$D$9-B4^'Equations - Parameters'!$D$9))))) -> 593.0891876 | BK5: =+IF(A5+Inputs!$J$14-1>Inputs!$B$6,"",IF(CS5=0,BJ5,IF(CT5<>0,BJ5*(1-CT5/CJ5),BK4*EXP(('Equations - Parameters'!$B$9*C4/100+'Equations - Parameters'!$C$9*CE4/'Equations - Parameters'!$D$7)*(B5^'Equations - Parameters'!$D$9-B4^'Equations - Parameters'!$D$9))))) -> 593.0891876 | BL5: =+IF(A5+Inputs!$J$14-1>Inputs!$B$6,"",IF(CZ5=0,BK5,IF(DA5<>0,BK5*(1-DA5/CQ5),BL4*EXP(('Equations - Parameters'!$B$9*C4/100+'Equations - Parameters'!$C$9*CF4/'Equations - Parameters'!$D$7)*(B5^'Equations - Parameters'!$D$9-B4^'Equations - Parameters'!$D$9))))) -> 593.0891876 | BM5: =+IF(A5+Inputs!$J$14-1>Inputs!$B$6,"",IF(DG5=0,BL5,IF(DH5<>0,BL5*(1-DH5/CX5),BM4*EXP(('Equations - Parameters'!$B$9*C4/100+'Equations - Parameters'!$C$9*CG4/'Equations - Parameters'!$D$7)*(B5^'Equations - Parameters'!$D$9-B4^'Equations - Parameters'!$D$9))))) -> 593.0891876 | BN5: =+IF(B5="","",IF(AND(Inputs!$H$23=TRUE,B5=Inputs!$J$14),Inputs!$J$16,(BN4^('Equations - Parameters'!$F$7+'Equations - Parameters'!$G$7/Inputs!$J$18) + 'Equations - Parameters'!$H$7*(((B5-Inputs!$B$9)/200)^'Equations - Parameters'!$I$7 - ((B4-Inputs!$B$9)/200)^'Equations - Parameters'!$I$7 ))^(1/('Equations - Parameters'!$F$7+'Equations - Parameters'!$G$7/Inputs!$J$18) ))) -> 596.3669173 | BO5: =+IF($B5="","",IF(Inputs!$H$23=FALSE,0,IF(BS5<Inputs!$A$37,BN5,IF(BS4<Inputs!$A$37,(BN5-BN5*((BS5-Inputs!$B$37)/Inputs!$A$37)^('Equations - Parameters'!$F$39*(C5/BX5)+'Equations - Parameters'!$G$39/BX5+'Equations - Parameters'!$H$39*BX5+'Equations - Parameters'!$I$39*BX5*IF(Inputs!$H$8=TRUE,0,1))),(BO4^('Equations - Parameters'!$F$7+'Equations - Parameters'!$G$7/Inputs!$J$18)+'Equations - Parameters'!$H$7*((($B5-Inputs!$B$9)/200)^'Equations - Parameters'!$I$7-(($B4-Inputs!$B$9)/200)^'Equations - Parameters'!$I$7))^(1/('Equations - Parameters'!$F$7+'Equations - Parameters'!$G$7/Inputs!$J$18)))))) -> 596.3669173 | BP5: =+IF($B5="","",IF(Inputs!$H$23=FALSE,0,IF(BT5<Inputs!$A$37,BO5,IF(BT4<Inputs!$A$37,(BO5-BO5*((BT5-Inputs!$B$37)/Inputs!$A$37)^('Equations - Parameters'!$F$39*($C5/BY5)+'Equations - Parameters'!$G$39/BY5+'Equations - Parameters'!$H$39*BY5)),(BP4^('Equations - Parameters'!$F$7+'Equations - Parameters'!$G$7/Inputs!$J$18)+'Equations - Parameters'!$H$7*(($B5/200)^'Equations - Parameters'!$I$7-($B4/200)^'Equations - Parameters'!$I$7))^(1/('Equations - Parameters'!$F$7+'Equations - Parameters'!$G$7/Inputs!$J$18)))))) -> 596.3669173 | BQ5: =+IF($B5="","",IF(Inputs!$H$23=FALSE,0,IF(BU5<Inputs!$A$37,BP5,IF(BU4<Inputs!$A$37,(BP5-BP5*((BU5-Inputs!$B$37)/Inputs!$A$37)^('Equations - Parameters'!$F$39*($C5/BZ5)+'Equations - Parameters'!$G$39/BZ5+'Equations - Parameters'!$H$39*BZ5)),(BQ4^('Equations - Parameters'!$F$7+'Equations - Parameters'!$G$7/Inputs!$J$18)+'Equations - Parameters'!$H$7*((($B5-Inputs!$B$9)/200)^'Equations - Parameters'!$I$7-(($B4-Inputs!$B$9)/200)^'Equations - Parameters'!$I$7))^(1/('Equations - Parameters'!$F$7+'Equations - Parameters'!$G$7/Inputs!$J$18)))))) -> 596.3669173 | BR5: =+IF($B5="","",IF(Inputs!$H$23=FALSE,0,IF(BV5<Inputs!$A$37,BQ5,IF(BV4<Inputs!$A$37,(BQ5-BQ5*((BV5-Inputs!$B$37)/Inputs!$A$37)^('Equations - Parameters'!$F$39*($C5/CA5)+'Equations - Parameters'!$G$39/CA5+'Equations - Parameters'!$H$39*CA5)),(BR4^('Equations - Parameters'!$F$7+'Equations - Parameters'!$G$7/Inputs!$J$18)+'Equations - Parameters'!$H$7*((($B5-Inputs!$B$9)/200)^'Equations - Parameters'!$I$7-(($B4-Inputs!$B$9)/200)^'Equations - Parameters'!$I$7))^(1/('Equations - Parameters'!$F$7+'Equations - Parameters'!$G$7/Inputs!$J$18)))))) -> 596.3669173 | BS5: =+IF($B5="","",IF(AND(Inputs!$H$23=TRUE,$B5=Inputs!$J$14),Inputs!$J$17,IF(AND(Inputs!$H$23=TRUE,$B5<>Inputs!$J$14),(BS4^((($B4-Inputs!$B$9+'Equations - Parameters'!$I$26)^('Equations - Parameters'!$F$26+'Equations - Parameters'!$G$26*LN(BN4)))/(($B5-Inputs!$B$9+'Equations - Parameters'!$I$26)^('Equations - Parameters'!$F$26+'Equations - Parameters'!$G$26*LN(BN5))))*EXP('Equations - Parameters'!$H$26*(1-((($B4-Inputs!$B$9+'Equations - Parameters'!$I$26)^('Equations - Parameters'!$F$26+'Equations - Parameters'!$G$26*LN(BN4)))/(($B5-Inputs!$B$9+'Equations - Parameters'!$I$26)^('Equations - Parameters'!$F$26+'Equations - Parameters'!$G$26*LN(BN5)))))))))) -> 104.1268639 | BT5: =+IF($B5="","",IF(Inputs!$H$23=FALSE,0,IF(BS5<Inputs!$A$37,BS5,IF(AND(BS4<Inputs!$A$37,BS5>Inputs!$A$37),Inputs!$B$37,(BT4^((($B4-Inputs!$B$9+'Equations - Parameters'!$I$26)^('Equations - Parameters'!$F$26+'Equations - Parameters'!$G$26*LN(BO4)))/(($B5-Inputs!$B$9+'Equations - Parameters'!$I$26)^('Equations - Parameters'!$F$26+'Equations - Parameters'!$G$26*LN(BO5))))*EXP('Equations - Parameters'!$H$26*(1-((($B4-Inputs!$B$9+'Equations - Parameters'!$I$26)^('Equations - Parameters'!$F$26+'Equations - Parameters'!$G$26*LN(BO4)))/(($B5-Inputs!$B$9+'Equations - Parameters'!$I$26)^('Equations - Parameters'!$F$26+'Equations - Parameters'!$G$26*LN(BO5))))))))))) -> 104.1268639 | BU5: =+IF($B5="","",IF(Inputs!$H$23=FALSE,0,IF(BT5<Inputs!$A$37,BT5,IF(AND(BT4<Inputs!$A$37,BT5>Inputs!$A$37),Inputs!$B$37,(BU4^((($B4-Inputs!$B$9+'Equations - Parameters'!$I$26)^('Equations - Parameters'!$F$26+'Equations - Parameters'!$G$26*LN(BP4)))/(($B5-Inputs!$B$9+'Equations - Parameters'!$I$26)^('Equations - Parameters'!$F$26+'Equations - Parameters'!$G$26*LN(BP5))))*EXP('Equations - Parameters'!$H$26*(1-((($B4-Inputs!$B$9+'Equations - Parameters'!$I$26)^('Equations - Parameters'!$F$26+'Equations - Parameters'!$G$26*LN(BP4)))/(($B5-Inputs!$B$9+'Equations - Parameters'!$I$26)^('Equations - Parameters'!$F$26+'Equations - Parameters'!$G$26*LN(BP5))))))))))) -> 104.1268639 | BV5: =+IF($B5="","",IF(Inputs!$H$23=FALSE,0,IF(BU5<Inputs!$A$37,BU5,IF(AND(BU4<Inputs!$A$37,BU5>Inputs!$A$37),Inputs!$B$37,(BV4^((($B4-Inputs!$B$9+'Equations - Parameters'!$I$26)^('Equations - Parameters'!$F$26+'Equations - Parameters'!$G$26*LN(BQ4)))/(($B5-Inputs!$B$9+'Equations - Parameters'!$I$26)^('Equations - Parameters'!$F$26+'Equations - Parameters'!$G$26*LN(BQ5))))*EXP('Equations - Parameters'!$H$26*(1-((($B4-Inputs!$B$9+'Equations - Parameters'!$I$26)^('Equations - Parameters'!$F$26+'Equations - Parameters'!$G$26*LN(BQ4)))/(($B5-Inputs!$B$9+'Equations - Parameters'!$I$26)^('Equations - Parameters'!$F$26+'Equations - Parameters'!$G$26*LN(BQ5))))))))))) -> 104.1268639 | BW5: =+IF($B5="","",IF(Inputs!$H$23=FALSE,0,IF(BV5<Inputs!$A$37,BV5,IF(AND(BV4<Inputs!$A$37,BV5>Inputs!$A$37),Inputs!$B$37,(BW4^((($B4-Inputs!$B$9+'Equations - Parameters'!$I$26)^('Equations - Parameters'!$F$26+'Equations - Parameters'!$G$26*LN(BR4)))/(($B5-Inputs!$B$9+'Equations - Parameters'!$I$26)^('Equations - Parameters'!$F$26+'Equations - Parameters'!$G$26*LN(BR5))))*EXP('Equations - Parameters'!$H$26*(1-((($B4-Inputs!$B$9+'Equations - Parameters'!$I$26)^('Equations - Parameters'!$F$26+'Equations - Parameters'!$G$26*LN(BR4)))/(($B5-Inputs!$B$9+'Equations - Parameters'!$I$26)^('Equations - Parameters'!$F$26+'Equations - Parameters'!$G$26*LN(BR5))))))))))) -> 104.1268639 | BX5: 5.658053579 | BY5: 5.658053579 | BZ5: 5.658053579 | CA5: 5.658053579 | CB5: 5.658053579 | CC5: 239.0805068 | CD5: 239.0805068 | CE5: 239.0805068 | CF5: 239.0805068 | CG5: 239.0805068 | CH5: =+IF($B5="","",IF(CL5=0,0,EXP('Equations - Parameters'!$B$21+'Equations - Parameters'!$C$21*LN(BJ5)+'Equations - Parameters'!$D$21*LN($C5)))) -> 0 | CI5: =+IF($B5="","",BS5) -> 104.1268639 | CJ5: =+IF($B5="","",IF(CL5=0,CI5,IF((CL5-CL4)>0,CL5,BT5))) -> 104.1268639 | CK5: 1 | CL5: =+IF($B5="","",IF(BS5>Inputs!$A$37,Inputs!$B$37,0)) -> 0 | CM5: 0 | CN5: =+IF($B5="","",IF((CL5-CL4)=0,0,B5)) -> 0 | CO5: =+IF($B5="","",IF(CL5=0,0,IF(CM5<>0,1-(CJ5/CH5),CO4*EXP(('Equations - Parameters'!$C$24/B5)*($B5-$B4))))) -> 0 | CP5: =+IF($B5="","",IF(CS5=0,0,EXP('Equations - Parameters'!$B$21+'Equations - Parameters'!$C$21*LN(BK5)+'Equations - Parameters'!$D$21*LN(C5)))) -> 0 | CQ5: =+IF($B5="","",IF(CS5=0,CJ5,IF((CS5-CS4)>0,CS5,CP5*(1-CV5)))) -> 104.1268639 | CR5: 1 | CS5: =+IF($B5="","",IF(B5=0,0,IF(BT5>Inputs!$H$37,Inputs!$I$37,IF(CS4>0,Inputs!$I$37,0)))) -> 0 | CT5: 0 | CU5: 0 | CV5: =+IF($B5="","",IF(CS5=0,0,IF(CT5<>0,1-(CQ5/CP5),CV4*EXP(('Equations - Parameters'!$C$24/B5)*($B5-$B4))))) -> 0 | CW5: =+IF($B5="","",IF(CZ5=0,0,EXP('Equations - Parameters'!$B$21+'Equations - Parameters'!$C$21*LN(BL5)+'Equations - Parameters'!$D$21*LN(C5)))) -> 0 | CX5: =+IF($B5="","",IF(CZ5=0,CQ5,IF((CZ5-CZ4)>0,CZ5,CW5*(1-DC5)))) -> 104.1268639 | CY5: 0 | CZ5: =+IF($B5="","",IF(B5=0,0,IF(BU5>Inputs!$H$37,Inputs!$I$37,IF(CZ4>0,Inputs!$I$37,0)))) -> 0 | DA5: 0 | DB5: 0 | DC5: =+IF($B5="","",IF(CZ5=0,0,IF(DA5<>0,1-(CX5/CW5),DC4*EXP('Equations - Parameters'!$C$24/B5)*($B5-$B4)))) -> 0 | DD5: =+IF($B5="","",IF(DG5=0,0,EXP('Equations - Parameters'!$B$21+'Equations - Parameters'!$C$21*LN(BM5)+'Equations - Parameters'!$D$21*LN(C5)))) -> 0 | DE5: 104.1268639 | DF5: 0 | DG5: =+IF($B5="","",IF(B5=0,0,IF(BV5>Inputs!$H$37,Inputs!$I$37,IF(DG4>0,Inputs!$I$37,0)))) -> 0 | DH5: 0 | DI5: 0 | DJ5: =+IF($B5="","",IF(DG5=0,0,IF(DH5<>0,1-(DE5/DD5),DJ4*EXP('Equations - Parameters'!$C$24/C5)*($B5-$B4)))) -> 0 | FF5: =+IF($A5+Inputs!$J$14-1>Inputs!$B$6,"",IF($B4=Inputs!$B$6, "",IF($A5=0,Inputs!$J$14,IF(B4=Inputs!$B$6,0,B4+1)))) -> 36 | FG5: =+IF($B5="","",IF($B5=Inputs!$B$15,Inputs!$J$15,4.5+(('Equations - Parameters'!$F$14+(0.5*(Inputs!$J$18-4.5-'Equations - Parameters'!$F$14+SQRT((((Inputs!$J$18-4.5)-'Equations - Parameters'!$F$14))^2+4*'Equations - Parameters'!$G$14*(Inputs!$J$18-4.5)*((50-Inputs!$B$9)^-'Equations - Parameters'!$H$14)))))/(1+('Equations - Parameters'!$G$14/(0.5*(Inputs!$J$18-4.5-'Equations - Parameters'!$F$14+SQRT((((Inputs!$J$18-4.5)-'Equations - Parameters'!$F$14))^2+4*'Equations - Parameters'!$G$14*(Inputs!$J$18-4.5)*((50-Inputs!$B$9)^-'Equations - Parameters'!$H$14))))*(($B5-Inputs!$B$9)^-'Equations - Parameters'!$H$14)))))) -> 57.54941509 | FH5: =+IF($B5="","",IF(Inputs!$H$11=FALSE,D5,IF(Inputs!$H$23=TRUE,BN5,H5))) -> 596.3669173 | FI5: =+IF($B5="","",IF(Inputs!$H$11=FALSE,0,IF(Inputs!$H$23=TRUE,BO5,I5))) -> 596.3669173 | FJ5: =+IF($B5="","",IF(Inputs!$H$11=FALSE,0,IF(Inputs!$H$23=TRUE,BP5,J5))) -> 596.3669173 | FK5: =+IF($B5="","",IF(Inputs!$H$11=FALSE,0,IF(Inputs!$H$23=TRUE,BQ5,K5))) -> 596.3669173 | FL5: =+IF($B5="","",IF(Inputs!$H$11=FALSE,0,IF(Inputs!$H$23=TRUE,BR5,L5))) -> 596.3669173 | FM5: =+IF($B5="","",IF(Inputs!$H$11=FALSE,E5,IF(Inputs!$H$23=TRUE,BS5,M5))) -> 104.1268639 | FN5: =+IF($B5="","",IF(Inputs!$H$11=FALSE,0,IF(Inputs!$H$23=TRUE,BT5,N5))) -> 104.1268639 | FO5: =+IF($B5="","",IF(Inputs!$H$11=FALSE,0,IF(Inputs!$H$23=TRUE,BU5,O5))) -> 104.1268639 | FP5: =+IF($B5="","",IF(Inputs!$H$11=FALSE,0,IF(Inputs!$H$23=TRUE,BV5,P5))) -> 104.1268639 | FQ5: =+IF($B5="","",IF(Inputs!$H$11=FALSE,0,IF(Inputs!$H$23=TRUE,BW5,Q5))) -> 104.1268639 | FR5: =+IF($B5="","",IF(Inputs!$H$11=FALSE,F5,IF(Inputs!$H$23=TRUE,BX5,Y5))) -> 5.658053579 | FS5: =+IF($B5="","",IF(Inputs!$H$11=FALSE,0,IF(Inputs!$H$23=TRUE,BY5,Z5))) -> 5.658053579 | FT5: =+IF($B5="","",IF(Inputs!$H$11=FALSE,0,IF(Inputs!$H$23=TRUE,BZ5,AA5))) -> 5.658053579 | FU5: =+IF($B5="","",IF(Inputs!$H$11=FALSE,0,IF(Inputs!$H$23=TRUE,CA5,AB5))) -> 5.658053579 | FV5: =+IF($B5="","",IF(Inputs!$H$11=FALSE,0,IF(Inputs!$H$23=TRUE,CB5,AC5))) -> 5.658053579 | FW5: =+IF($B5="","",IF(Inputs!$H$11=FALSE,G5,IF(Inputs!$H$23=TRUE,CC5,AD5))) -> 239.0805068 | FX5: =+IF($B5="","",IF(Inputs!$H$11=FALSE,0,IF(Inputs!$H$23=TRUE,CD5,AE5))) -> 239.0805068 | FY5: =+IF($B5="","",IF(Inputs!$H$11=FALSE,0,IF(Inputs!$H$23=TRUE,CE5,AF5))) -> 239.0805068 | FZ5: =+IF($B5="","",IF(Inputs!$H$11=FALSE,0,IF(Inputs!$H$23=TRUE,CF5,AG5))) -> 239.0805068 | GA5: =+IF($B5="","",IF(Inputs!$H$11=FALSE,0,IF(Inputs!$H$23=TRUE,CG5,AH5))) -> 239.0805068 | GF5: =+IF($B5="","",IF(FM5=0,0,IF($B5<3,0,EXP('Equations - Parameters'!$F$32+'Equations - Parameters'!$G$32/$B5 + 'Equations - Parameters'!$H$32*LN($C5)+'Equations - Parameters'!$I$32/Inputs!$J$18 + 'Equations - Parameters'!$J$32*LN(FH5) + 'Equations - Parameters'!$K$32*LN(FH5)/$B5 + 'Equations - Parameters'!$L$32*LN(FM5))))) -> 3037.860004 | GG5: =+IF($B5="","",IF(Inputs!$H$11=FALSE,0,IF(FN5=0,0,IF($B5<3,0,EXP('Equations - Parameters'!$F$32+'Equations - Parameters'!$G$32/$B5+'Equations - Parameters'!$H$32*LN($C5)+'Equations - Parameters'!$I$32/Inputs!$J$18+'Equations - Parameters'!$J$32*LN(FI5)+'Equations - Parameters'!$K$32*LN(FI5)/$B5+'Equations - Parameters'!$L$32*LN(FN5)))))) -> 3037.860004 | GH5: =+IF($B5="","",IF(Inputs!$H$11=FALSE,0,IF(FO5=0,0,IF($B5<3,0,EXP('Equations - Parameters'!$F$32+'Equations - Parameters'!$G$32/$B5+'Equations - Parameters'!$H$32*LN($C5)+'Equations - Parameters'!$I$32/Inputs!$J$18+'Equations - Parameters'!$J$32*LN(FJ5)+'Equations - Parameters'!$K$32*LN(FJ5)/$B5+'Equations - Parameters'!$L$32*LN(FO5)))))) -> 3037.860004 | GI5: =+IF($B5="","",IF(Inputs!$H$11=FALSE,0,IF(FP5=0,0,IF($B5<3,0,EXP('Equations - Parameters'!$F$32+'Equations - Parameters'!$G$32/$B5+'Equations - Parameters'!$H$32*LN($C5)+'Equations - Parameters'!$I$32/Inputs!$J$18+'Equations - Parameters'!$J$32*LN(FK5)+'Equations - Parameters'!$K$32*LN(FK5)/$B5+'Equations - Parameters'!$L$32*LN(FP5)))))) -> 3037.860004 | GJ5: =+IF($B5="","",IF(Inputs!$H$11=FALSE,0,IF(FQ5=0,0,IF($B5<3,0,EXP('Equations - Parameters'!$F$32+'Equations - Parameters'!$G$32/$B5+'Equations - Parameters'!$H$32*LN($C5)+'Equations - Parameters'!$I$32/Inputs!$J$18+'Equations - Parameters'!$J$32*LN(FL5)+'Equations - Parameters'!$K$32*LN(FL5)/$B5+'Equations - Parameters'!$L$32*LN(FQ5)))))) -> 3037.860004 | GK5: =+IF($B5="","",IF(FM5=0,0,IF($B5<3,0,EXP('Equations - Parameters'!$F$33+'Equations - Parameters'!$G$33/$B5 + 'Equations - Parameters'!$H$33*LN($C5)+'Equations - Parameters'!$I$33/Inputs!$J$18 + 'Equations - Parameters'!$J$33*LN(FH5) + 'Equations - Parameters'!$K$33*LN(FH5)/$B5 + 'Equations - Parameters'!$L$33*LN(FM5))))) -> 2263.856299 | GL5: =+IF($B5="","",IF(Inputs!$H$11=FALSE,0,IF(FN5=0,0,IF($B5<3,0,EXP('Equations - Parameters'!$F$33+'Equations - Parameters'!$G$33/$B5+'Equations - Parameters'!$H$33*LN($C5)+'Equations - Parameters'!$I$33/Inputs!$J$18+'Equations - Parameters'!$J$33*LN(FI5)+'Equations - Parameters'!$K$33*LN(FI5)/$B5+'Equations - Parameters'!$L$33*LN(FN5)))))) -> 2263.856299 | GM5: =+IF($B5="","",IF(Inputs!$H$11=FALSE,0,IF(FO5=0,0,IF($B5<3,0,EXP('Equations - Parameters'!$F$33+'Equations - Parameters'!$G$33/$B5+'Equations - Parameters'!$H$33*LN($C5)+'Equations - Parameters'!$I$33/Inputs!$J$18+'Equations - Parameters'!$J$33*LN(FJ5)+'Equations - Parameters'!$K$33*LN(FJ5)/$B5+'Equations - Parameters'!$L$33*LN(FO5)))))) -> 2263.856299 | GN5: =+IF($B5="","",IF(Inputs!$H$11=FALSE,0,IF(FP5=0,0,IF($B5<3,0,EXP('Equations - Parameters'!$F$33+'Equations - Parameters'!$G$33/$B5+'Equations - Parameters'!$H$33*LN($C5)+'Equations - Parameters'!$I$33/Inputs!$J$18+'Equations - Parameters'!$J$33*LN(FK5)+'Equations - Parameters'!$K$33*LN(FK5)/$B5+'Equations - Parameters'!$L$33*LN(FP5)))))) -> 2263.856299 | GO5: =+IF($B5="","",IF(Inputs!$H$11=FALSE,0,IF(FQ5=0,0,IF($B5<3,0,EXP('Equations - Parameters'!$F$33+'Equations - Parameters'!$G$33/$B5+'Equations - Parameters'!$H$33*LN($C5)+'Equations - Parameters'!$I$33/Inputs!$J$18+'Equations - Parameters'!$J$33*LN(FL5)+'Equations - Parameters'!$K$33*LN(FL5)/$B5+'Equations - Parameters'!$L$33*LN(FQ5)))))) -> 2263.856299 | GP5: 0 | GQ5: 0 | GR5: 0 | GS5: 0 | GT5: 0 | GU5: 0 | GV5: =+IF($B5="","",IF(Inputs!$H$11=FALSE,0,IF(AND(Inputs!$H$22=TRUE,$B5=Inputs!$B$30),$B5,IF(AND(Inputs!$H$23=TRUE,$B5<>Inputs!$B$6),CN5,0)))) -> 0 | GW5: =+IF($B5="","",IF(Inputs!$H$11=FALSE,0,IF(AND(Inputs!$H$22=TRUE,$B5<>Inputs!$B$6),GV5+AO5,IF(AND(Inputs!$H$23=TRUE,$B5<>Inputs!$B$6),GV5+CU5,0)))) -> 0 | GX5: =+IF($B5="","",IF(Inputs!$H$11=FALSE,0,IF(AND(Inputs!$H$22=TRUE,$B5<>Inputs!$B$6),GW5+AR5,IF(AND(Inputs!$H$23=TRUE,$B5<>Inputs!$B$6),GW5+DB5,0)))) -> 0 | GY5: =+IF($B5="","",IF(Inputs!$H$11=FALSE,0,IF(AND(Inputs!$H$22=TRUE,$B5<>Inputs!$B$6),GX5+AU5,IF(AND(Inputs!$H$23=TRUE,$B5<>Inputs!$B$6),GX5+DI5,0)))) -> 0 | GZ5: =+IF($B5="","",IF(B5=Inputs!$B$6,FM5,0)) -> 0 | HA5: =+IF($B5="","",IF(FN5=0,0,IF(B5=Inputs!$B$6,FN5,IF(AND(Inputs!$H$22=TRUE,B5<>Inputs!$B$6),S5,IF(AND(Inputs!$H$23=TRUE,B5<>Inputs!$B$6),CM5,0))))) -> 0 | HB5: =+IF($B5="","",IF(FO5=0,0,IF(B5=Inputs!$B$6,FO5,IF(AND(Inputs!$H$22=TRUE,B5<>Inputs!$B$6),HA5+T5,IF(AND(Inputs!$H$23=TRUE,B5<>Inputs!$B$6),HA5+CT5,0))))) -> 0 | HC5: =+IF($B5="","",IF(FP5=0,0,IF(B5=Inputs!$B$6,FP5,IF(AND(Inputs!$H$22=TRUE,B5<>Inputs!$B$6),HB5+U5,IF(AND(Inputs!$H$23=TRUE,B5<>Inputs!$B$6),HB5+DA5,0))))) -> 0 | HD5: =+IF($B5="","",IF(FQ5=0,0,IF(B5=Inputs!$B$6,FQ5,IF(AND(Inputs!$H$22=TRUE,B5<>Inputs!$B$6),HC5+V5,IF(AND(Inputs!$H$23=TRUE,B5<>Inputs!$B$6),HC5+DH5,0))))) -> 0 | HE5: 0 | HF5: 0 | HG5: 0 | HH5: 0 | HI5: 0 | HJ5: =+IF($B5="","",0) -> 0 | HK5: 0 | HL5: 0 | HM5: 0 | HN5: 0 | HO5: =+IF($B5="","",IF(B5=Inputs!$B$6,FH5,0)) -> 0 | HP5: =+IF($B5="","",IF(B5=Inputs!$B$6,FI5,IF(HA5=0,0,FH5-FI5))) -> 0 | HQ5: =+IF($B5="","",IF(B5=Inputs!$B$6,FJ5,IF(HB5=0,0,HP5+FI5-FJ5))) -> 0 | HR5: =+IF($B5="","",IF(B5=Inputs!$B$6,FK5,IF(HC5=0,0,HQ5+FJ5-FK5))) -> 0 | HS5: =+IF($B5="","",IF(B5=Inputs!$B$6,FL5,IF(HD5=0,0,HR5+FK5-FL5))) -> 0 | HT5: 0 | HU5: 0 | HV5: 0 | HW5: 0 | HX5: 0 | HY5: =+IF($B5="","",0) -> 0 | HZ5: =+IF($B5="","",IF(HU5=0,0,HU5-HP5)) -> 0 | IA5: =+IF($B5="","",IF(HV5=0,0,HV5-HQ5)) -> 0 | IB5: =+IF($B5="","",IF(HW5=0,0,HW5-HR5)) -> 0 | IC5: =+IF($B5="","",IF(HX5=0,0,HX5-HS5)) -> 0 | ID5: =+IF($B5="","",IF($B5=Inputs!$B$6,GF5,0)) -> 0 | IE5: =+IF($B5="","",IF($B5=Inputs!$B$6,GG5,IF(HA5=0,0,GF5-GG5))) -> 0 | IF5: =+IF($B5="","",IF($B5=Inputs!$B$6,GH5,IF(HB5=0,0,IE5+GG5-GH5))) -> 0 | IG5: =+IF($B5="","",IF($B5=Inputs!$B$6,GI5,IF(HC5=0,0,IF5+GH5-GI5))) -> 0 | IH5: =+IF($B5="","",IF($B5=Inputs!$B$6,GJ5,IF(HD5=0,0,IG5+GI5-GJ5))) -> 0 | II5: =+IF($B5="","",0) -> 0 | IJ5: 0 | IK5: 0 | IL5: 0 | IM5: 0 | IN5: =+IF($B5="","",0) -> 0 | IO5: 0 | IP5: 0 | IQ5: 0 | IR5: 0 | IS5: =+IF($B5="","",IF($B5=Inputs!$B$6,GK5,0)) -> 0 | IT5: =+IF($B5="","",IF($B5=Inputs!$B$6,GL5,IF(HP5=0,0,GK5-GL5))) -> 0 | IU5: =+IF($B5="","",IF($B5=Inputs!$B$6,GM5,IF(HQ5=0,0,IT5+GL5-GM5))) -> 0 | IV5: =+IF($B5="","",IF($B5=Inputs!$B$6,GN5,IF(HR5=0,0,IU5+GM5-GN5))) -> 0 | IW5: =+IF($B5="","",IF($B5=Inputs!$B$6,GO5,IF(HS5=0,0,IV5+GN5-GO5))) -> 0 | IX5: =+IF($B5="","",0) -> 0 | IY5: 0 | IZ5: 0 | JA5: 0 | JB5: 0 | JC5: =+IF($B5="","",0) -> 0 | JD5: =+IF($B5="","",IF(IY5=0,0,IY5-IT5)) -> 0 | JE5: =+IF($B5="","",IF(IZ5=0,0,IZ5-IU5)) -> 0 | JF5: =+IF($B5="","",IF(JA5=0,0,JA5-IV5)) -> 0 | JG5: =+IF($B5="","",IF(JB5=0,0,JB5-IW5)) -> 0 | JH5: 0 | JI5: 0 | JJ5: 0 | JK5: 0 | JL5: 0 | JM5: =+IF($B5="","",IF($B5<2,0,GF5*EXP(('Equations - Parameters'!$H$48*('Equations - Parameters'!$F$155*2.54/(FR5*2.54))^'Equations - Parameters'!$I$48)+('Equations - Parameters'!$J$48*((FH5*2.47109)^'Equations - Parameters'!$K$48)*(('Equations - Parameters'!$G$155*2.54)/(FR5*2.54))^'Equations - Parameters'!$L$48)))) -> 6.710464833e-11 | JN5: =+IF($B5="","",IF($B5<2,0,GK5*EXP(('Equations - Parameters'!$H$48*('Equations - Parameters'!$F$156*2.54/(FR5*2.54))^'Equations - Parameters'!$I$48)+('Equations - Parameters'!$J$48*((FH5*2.47109)^'Equations - Parameters'!$K$48)*(('Equations - Parameters'!$G$156*2.54)/(FR5*2.54))^'Equations - Parameters'!$L$48))-KQ5)) -> 15.83671533 | JO5: =+IF($B5="","",IF($B5<2,0,GK5*EXP(('Equations - Parameters'!$H$48*('Equations - Parameters'!$F$157*2.54/(FR5*2.54))^'Equations - Parameters'!$I$48)+('Equations - Parameters'!$J$48*((FH5*2.47109)^'Equations - Parameters'!$K$48)*(('Equations - Parameters'!$G$157*2.54)/(FR5*2.54))^'Equations - Parameters'!$L$48))-KR5-KQ5)) -> 581.9216475 | JP5: =+IF($B5="","",IF(GG5=0,0,IF($B5<2,0,IF(Inputs!$H$11=FALSE,0,GG5*EXP(('Equations - Parameters'!$H$48*('Equations - Parameters'!$F$155*2.54/(FS5*2.54))^'Equations - Parameters'!$I$48)+('Equations - Parameters'!$J$48*((FI5*2.47109)^'Equations - Parameters'!$K$48)*(('Equations - Parameters'!$G$155*2.54)/(FS5*2.54))^'Equations - Parameters'!$L$48)))))) -> 6.710464833e-11 | JQ5: =+IF($B5="","",IF(GG5=0,0,IF($B5<2,0,IF(Inputs!$H$11=FALSE,0,GL5*EXP(('Equations - Parameters'!$H$48*('Equations - Parameters'!$F$156*2.54/(FS5*2.54))^'Equations - Parameters'!$I$48)+('Equations - Parameters'!$J$48*((FI5*2.47109)^'Equations - Parameters'!$K$48)*(('Equations - Parameters'!$G$156*2.54)/(FS5*2.54))^'Equations - Parameters'!$L$48))-JP5)))) -> 15.83671533 | JR5: =+IF($B5="","",IF(GG5=0,0,IF($B5<2,0,IF(Inputs!$H$11=FALSE,0,GL5*EXP(('Equations - Parameters'!$H$48*('Equations - Parameters'!$F$157*2.54/(FS5*2.54))^'Equations - Parameters'!$I$48)+('Equations - Parameters'!$J$48*((FI5*2.47109)^'Equations - Parameters'!$K$48)*(('Equations - Parameters'!$G$157*2.54)/(FS5*2.54))^'Equations - Parameters'!$L$48))-JP5-JQ5)))) -> 581.1239152 | JS5: =+IF($B5="","",IF(GH5=0,0,IF($B5<2,0,IF(Inputs!$H$11=FALSE,0,GH5*EXP(('Equations - Parameters'!$H$48*('Equations - Parameters'!$F$155*2.54/(FT5*2.54))^'Equations - Parameters'!$I$48)+('Equations - Parameters'!$J$48*((FJ5*2.47109)^'Equations - Parameters'!$K$48)*(('Equations - Parameters'!$G$155*2.54)/(FT5*2.54))^'Equations - Parameters'!$L$48)))))) -> 6.710464833e-11 | JT5: =+IF($B5="","",IF(GH5=0,0,IF($B5<2,0,IF(Inputs!$H$11=FALSE,0,GM5*EXP(('Equations - Parameters'!$H$48*('Equations - Parameters'!$F$156*2.54/(FT5*2.54))^'Equations - Parameters'!$I$48)+('Equations - Parameters'!$J$48*((FJ5*2.47109)^'Equations - Parameters'!$K$48)*(('Equations - Parameters'!$G$156*2.54)/(FT5*2.54))^'Equations - Parameters'!$L$48))-JS5)))) -> 15.83671533 | JU5: =+IF($B5="","",IF(GH5=0,0,IF($B5<2,0,IF(Inputs!$H$11=FALSE,0,GM5*EXP(('Equations - Parameters'!$H$48*('Equations - Parameters'!$F$157*2.54/(FT5*2.54))^'Equations - Parameters'!$I$48)+('Equations - Parameters'!$J$48*((FJ5*2.47109)^'Equations - Parameters'!$K$48)*(('Equations - Parameters'!$G$157*2.54)/(FT5*2.54))^'Equations - Parameters'!$L$48))-JS5-JT5)))) -> 581.1239152 | JV5: =+IF($B5="","",IF(GI5=0,0,IF($B5<2,0,IF(Inputs!$H$11=FALSE,0,GI5*EXP(('Equations - Parameters'!$H$48*('Equations - Parameters'!$F$155*2.54/(FU5*2.54))^'Equations - Parameters'!$I$48)+('Equations - Parameters'!$J$48*((FK5*2.47109)^'Equations - Parameters'!$K$48)*(('Equations - Parameters'!$G$155*2.54)/(FU5*2.54))^'Equations - Parameters'!$L$48)))))) -> 6.710464833e-11 | JW5: =+IF($B5="","",IF(GI5=0,0,IF($B5<2,0,IF(Inputs!$H$11=FALSE,0,GN5*EXP(('Equations - Parameters'!$H$48*('Equations - Parameters'!$F$156*2.54/(FU5*2.54))^'Equations - Parameters'!$I$48)+('Equations - Parameters'!$J$48*((FK5*2.47109)^'Equations - Parameters'!$K$48)*(('Equations - Parameters'!$G$156*2.54)/(FU5*2.54))^'Equations - Parameters'!$L$48))-JV5)))) -> 15.83671533 | JX5: =+IF($B5="","",IF(GI5=0,0,IF($B5<2,0,IF(Inputs!$H$11=FALSE,0,GN5*EXP(('Equations - Parameters'!$H$48*('Equations - Parameters'!$F$157*2.54/(FU5*2.54))^'Equations - Parameters'!$I$48)+('Equations - Parameters'!$J$48*((FK5*2.47109)^'Equations - Parameters'!$K$48)*(('Equations - Parameters'!$G$157*2.54)/(FU5*2.54))^'Equations - Parameters'!$L$48))-JV5-JW5)))) -> 581.1239152 | JY5: =+IF($B5="","",IF(GJ5=0,0,IF($B5<2,0,IF(Inputs!$H$11=FALSE,0,GJ5*EXP(('Equations - Parameters'!$H$48*('Equations - Parameters'!$F$155*2.54/(FV5*2.54))^'Equations - Parameters'!$I$48)+('Equations - Parameters'!$J$48*((FL5*2.47109)^'Equations - Parameters'!$K$48)*(('Equations - Parameters'!$G$155*2.54)/(FV5*2.54))^'Equations - Parameters'!$L$48)))))) -> 6.710464833e-11 | JZ5: =+IF($B5="","",IF(GJ5=0,0,IF($B5<2,0,IF(Inputs!$H$11=FALSE,0,GO5*EXP(('Equations - Parameters'!$H$48*('Equations - Parameters'!$F$156*2.54/(FV5*2.54))^'Equations - Parameters'!$I$48)+('Equations - Parameters'!$J$48*((FL5*2.47109)^'Equations - Parameters'!$K$48)*(('Equations - Parameters'!$G$156*2.54)/(FV5*2.54))^'Equations - Parameters'!$L$48))-JY5)))) -> 15.83671533 | KA5: =+IF($B5="","",IF(GJ5=0,0,IF($B5<2,0,IF(Inputs!$H$11=FALSE,0,GO5*EXP(('Equations - Parameters'!$H$48*('Equations - Parameters'!$F$157*2.54/(FV5*2.54))^'Equations - Parameters'!$I$48)+('Equations - Parameters'!$J$48*((FL5*2.47109)^'Equations - Parameters'!$K$48)*(('Equations - Parameters'!$G$157*2.54)/(FV5*2.54))^'Equations - Parameters'!$L$48))-JY5-JZ5)))) -> 581.1239152 | KB5: =+IF($B5="","",IF(ID5=0,0,ID5*EXP('Equations - Parameters'!$H$48*('Equations - Parameters'!$F$155/(JH5))^'Equations - Parameters'!$I$48+'Equations - Parameters'!$J$48*(HO5*2.47105)^'Equations - Parameters'!$K$48*('Equations - Parameters'!$G$155/(JH5))^'Equations - Parameters'!$L$48))) -> 0 | KC5: =+IF($B5="","",IF(ID5=0,0,ID5*EXP('Equations - Parameters'!$H$48*('Equations - Parameters'!$F$156/(JH5))^'Equations - Parameters'!$I$48+'Equations - Parameters'!$J$48*(HO5*2.47105)^'Equations - Parameters'!$K$48*('Equations - Parameters'!$G$156/(JH5))^'Equations - Parameters'!$L$48)-KB5)) -> 0 | KD5: =+IF($B5="","",IF(ID5=0,0,ID5*EXP('Equations - Parameters'!$H$48*('Equations - Parameters'!$F$157/(JH5))^'Equations - Parameters'!$I$48+'Equations - Parameters'!$J$48*(HO5*2.47105)^'Equations - Parameters'!$K$48*('Equations - Parameters'!$G$157/(JH5))^'Equations - Parameters'!$L$48)-KB5-KC5)) -> 0 | KE5: =+IF($B5="","",IF(IE5=0,0,IE5*EXP('Equations - Parameters'!$H$48*('Equations - Parameters'!$F$155/(JI5))^'Equations - Parameters'!$I$48+'Equations - Parameters'!$J$48*(HP5*2.47105)^'Equations - Parameters'!$K$48*('Equations - Parameters'!$G$155/(JI5))^'Equations - Parameters'!$L$48))) -> 0 | KF5: =+IF($B5="","",IF(IE5=0,0,IE5*EXP('Equations - Parameters'!$H$48*('Equations - Parameters'!$F$156/(JI5))^'Equations - Parameters'!$I$48+'Equations - Parameters'!$J$48*(HP5*2.47105)^'Equations - Parameters'!$K$48*('Equations - Parameters'!$G$156/(JI5))^'Equations - Parameters'!$L$48)-KE5)) -> 0 | KG5: =+IF($B5="","",IF(IE5=0,0,IE5*EXP('Equations - Parameters'!$H$48*('Equations - Parameters'!$F$157/(JI5))^'Equations - Parameters'!$I$48+'Equations - Parameters'!$J$48*(HP5*2.47105)^'Equations - Parameters'!$K$48*('Equations - Parameters'!$G$157/(JI5))^'Equations - Parameters'!$L$48)-KE5-KF5)) -> 0 | KH5: =+IF($B5="","",IF(IF5=0,0,IF5*EXP('Equations - Parameters'!$H$48*('Equations - Parameters'!$F$155/(JJ5))^'Equations - Parameters'!$I$48+'Equations - Parameters'!$J$48*(HQ5*2.47105)^'Equations - Parameters'!$K$48*('Equations - Parameters'!$G$155/(JJ5))^'Equations - Parameters'!$L$48))) -> 0 | KI5: =+IF($B5="","",IF(IF5=0,0,IF5*EXP('Equations - Parameters'!$H$48*('Equations - Parameters'!$F$156/(JJ5))^'Equations - Parameters'!$I$48+'Equations - Parameters'!$J$48*(HQ5*2.47105)^'Equations - Parameters'!$K$48*('Equations - Parameters'!$G$156/(JJ5))^'Equations - Parameters'!$L$48)-KH5)) -> 0 | KJ5: =+IF($B5="","",IF(IF5=0,0,IF5*EXP('Equations - Parameters'!$H$48*('Equations - Parameters'!$F$157/(JJ5))^'Equations - Parameters'!$I$48+'Equations - Parameters'!$J$48*(HQ5*2.47105)^'Equations - Parameters'!$K$48*('Equations - Parameters'!$G$157/(JJ5))^'Equations - Parameters'!$L$48)-KH5-KI5)) -> 0 | KK5: =+IF($B5="","",IF(IG5=0,0,IG5*EXP('Equations - Parameters'!$H$48*('Equations - Parameters'!$F$155/(JK5))^'Equations - Parameters'!$I$48+'Equations - Parameters'!$J$48*(HR5*2.47105)^'Equations - Parameters'!$K$48*('Equations - Parameters'!$G$155/(JK5))^'Equations - Parameters'!$L$48))) -> 0 | KL5: =+IF($B5="","",IF(IG5=0,0,IG5*EXP('Equations - Parameters'!$H$48*('Equations - Parameters'!$F$156/(JK5))^'Equations - Parameters'!$I$48+'Equations - Parameters'!$J$48*(HR5*2.47105)^'Equations - Parameters'!$K$48*('Equations - Parameters'!$G$156/(JK5))^'Equations - Parameters'!$L$48)-KK5)) -> 0 | KM5: =+IF($B5="","",IF(IG5=0,0,IG5*EXP('Equations - Parameters'!$H$48*('Equations - Parameters'!$F$157/(JK5))^'Equations - Parameters'!$I$48+'Equations - Parameters'!$J$48*(HR5*2.47105)^'Equations - Parameters'!$K$48*('Equations - Parameters'!$G$157/(JK5))^'Equations - Parameters'!$L$48)-KK5-KL5)) -> 0 | KN5: =+IF($B5="","",IF(IH5=0,0,IH5*EXP('Equations - Parameters'!$H$48*('Equations - Parameters'!$F$155/(JL5))^'Equations - Parameters'!$I$48+'Equations - Parameters'!$J$48*(HS5*2.47105)^'Equations - Parameters'!$K$48*('Equations - Parameters'!$G$155/(JL5))^'Equations - Parameters'!$L$48))) -> 0 | KO5: =+IF($B5="","",IF(IH5=0,0,IH5*EXP('Equations - Parameters'!$H$48*('Equations - Parameters'!$F$156/(JL5))^'Equations - Parameters'!$I$48+'Equations - Parameters'!$J$48*(HS5*2.47105)^'Equations - Parameters'!$K$48*('Equations - Parameters'!$G$156/(JL5))^'Equations - Parameters'!$L$48)-KN5)) -> 0 | KP5: =+IF($B5="","",IF(IH5=0,0,IH5*EXP('Equations - Parameters'!$H$48*('Equations - Parameters'!$F$157/(JL5))^'Equations - Parameters'!$I$48+'Equations - Parameters'!$J$48*(HS5*2.47105)^'Equations - Parameters'!$K$48*('Equations - Parameters'!$G$157/(JL5))^'Equations - Parameters'!$L$48)-KN5-KO5)) -> 0 | KQ5: =+IF($B5="","",IF($B5<2,0,GK5*EXP(('Equations - Parameters'!$H$49*('Equations - Parameters'!$F$155*2.54/(FR5*2.54))^'Equations - Parameters'!$I$49)+('Equations - Parameters'!$J$49*((FH5*2.47109)^'Equations - Parameters'!$K$49)*(('Equations - Parameters'!$G$155*2.54)/(FR5*2.54))^'Equations - Parameters'!$L$49)))) -> 3.292664878e-11 | KR5: =+IF($B5="","",IF($B5<2,0,GK5*EXP(('Equations - Parameters'!$H$49*('Equations - Parameters'!$F$156*2.54/(FR5*2.54))^'Equations - Parameters'!$I$49)+('Equations - Parameters'!$J$49*((FH5*2.47109)^'Equations - Parameters'!$K$49)*(('Equations - Parameters'!$G$156*2.54)/(FR5*2.54))^'Equations - Parameters'!$L$49))-KQ5)) -> 15.03898299 | KS5: =+IF($B5="","",IF($B5<2,0,GK5*EXP(('Equations - Parameters'!$H$49*('Equations - Parameters'!$F$157*2.54/(FR5*2.54))^'Equations - Parameters'!$I$49)+('Equations - Parameters'!$J$49*((FH5*2.47109)^'Equations - Parameters'!$K$49)*(('Equations - Parameters'!$G$157*2.54)/(FR5*2.54))^'Equations - Parameters'!$L$49))-KR5-KQ5)) -> 570.3996059 | KT5: =+IF($B5="","",IF(GL5=0,0,IF(Inputs!$H$11=FALSE,0,IF($B5<2,0,GL5*EXP(('Equations - Parameters'!$H$49*('Equations - Parameters'!$F$155/(FS5))^'Equations - Parameters'!$I$49)+('Equations - Parameters'!$J$49*((FI5*2.47109)^'Equations - Parameters'!$K$49)*('Equations - Parameters'!$G$155/(FS5))^'Equations - Parameters'!$L$49)))))) -> 3.292664878e-11 | KU5: =+IF($B5="","",IF(GL5=0,0,IF(Inputs!$H$11=FALSE,0,IF($B5<2,0,GL5*EXP('Equations - Parameters'!$H$49*('Equations - Parameters'!$F$156/(FS5))^'Equations - Parameters'!$I$49+'Equations - Parameters'!$J$49*((FI5*2.47109)^'Equations - Parameters'!$K$49)*('Equations - Parameters'!$G$156/(FS5))^'Equations - Parameters'!$L$49)-KT5)))) -> 15.03898299 | KV5: =+IF($B5="","",IF(GL5=0,0,IF(Inputs!$H$11=FALSE,0,IF(B5<2,0,GL5*EXP('Equations - Parameters'!$H$49*('Equations - Parameters'!$F$157/(FS5))^'Equations - Parameters'!$I$49+'Equations - Parameters'!$J$49*((FI5*2.47109)^'Equations - Parameters'!$K$49)*('Equations - Parameters'!$G$157/(FS5))^'Equations - Parameters'!$L$49)-KU5-KT5)))) -> 570.3996059 | KW5: =+IF($B5="","",IF(GM5=0,0,IF(Inputs!$H$11=FALSE,0,IF($B5<2,0,GM5*EXP(('Equations - Parameters'!$H$49*('Equations - Parameters'!$F$155/(FT5))^'Equations - Parameters'!$I$49)+('Equations - Parameters'!$J$49*((FJ5*2.47109)^'Equations - Parameters'!$K$49)*('Equations - Parameters'!$G$155/(FT5))^'Equations - Parameters'!$L$49)))))) -> 3.292664878e-11 | KX5: =+IF($B5="","",IF(GM5=0,0,IF(Inputs!$H$11=FALSE,0,IF($B5<2,0,GM5*EXP('Equations - Parameters'!$H$49*('Equations - Parameters'!$F$156/(FT5))^'Equations - Parameters'!$I$49+'Equations - Parameters'!$J$49*((FJ5*2.47109)^'Equations - Parameters'!$K$49)*('Equations - Parameters'!$G$156/(FT5))^'Equations - Parameters'!$L$49)-KW5)))) -> 15.03898299 | KY5: =+IF($B5="","",IF(GM5=0,0,IF(Inputs!$H$11=FALSE,0,IF(B5<2,0,GM5*EXP('Equations - Parameters'!$H$49*('Equations - Parameters'!$F$157/(FT5))^'Equations - Parameters'!$I$49+'Equations - Parameters'!$J$49*((FJ5*2.47109)^'Equations - Parameters'!$K$49)*('Equations - Parameters'!$G$157/(FT5))^'Equations - Parameters'!$L$49)-KX5-KW5)))) -> 570.3996059 | KZ5: =+IF($B5="","",IF(GN5=0,0,IF(Inputs!$H$11=FALSE,0,IF($B5<2,0,GN5*EXP(('Equations - Parameters'!$H$49*('Equations - Parameters'!$F$155/(FU5))^'Equations - Parameters'!$I$49)+('Equations - Parameters'!$J$49*((FK5*2.47109)^'Equations - Parameters'!$K$49)*('Equations - Parameters'!$G$155/(FU5))^'Equations - Parameters'!$L$49)))))) -> 3.292664878e-11 | LA5: =+IF($B5="","",IF(GN5=0,0,IF(Inputs!$H$11=FALSE,0,IF($B5<2,0,GN5*EXP('Equations - Parameters'!$H$49*('Equations - Parameters'!$F$156/(FU5))^'Equations - Parameters'!$I$49+'Equations - Parameters'!$J$49*((FK5*2.47109)^'Equations - Parameters'!$K$49)*('Equations - Parameters'!$G$156/(FU5))^'Equations - Parameters'!$L$49)-KZ5)))) -> 15.03898299 | LB5: =+IF($B5="","",IF(GN5=0,0,IF(Inputs!$H$11=FALSE,0,IF(B5<2,0,GN5*EXP('Equations - Parameters'!$H$49*('Equations - Parameters'!$F$157/(FU5))^'Equations - Parameters'!$I$49+'Equations - Parameters'!$J$49*((FK5*2.47109)^'Equations - Parameters'!$K$49)*('Equations - Parameters'!$G$157/(FU5))^'Equations - Parameters'!$L$49)-LA5-KZ5)))) -> 570.3996059 | LC5: =+IF($B5="","",IF(GO5=0,0,IF(Inputs!$H$11=FALSE,0,IF($B5<2,0,GO5*EXP(('Equations - Parameters'!$H$49*('Equations - Parameters'!$F$155/(FV5))^'Equations - Parameters'!$I$49)+('Equations - Parameters'!$J$49*((FL5*2.47109)^'Equations - Parameters'!$K$49)*('Equations - Parameters'!$G$155/(FV5))^'Equations - Parameters'!$L$49)))))) -> 3.292664878e-11 | LD5: =+IF($B5="","",IF(GO5=0,0,IF(Inputs!$H$11=FALSE,0,IF($B5<2,0,GO5*EXP('Equations - Parameters'!$H$49*('Equations - Parameters'!$F$156/(FV5))^'Equations - Parameters'!$I$49+'Equations - Parameters'!$J$49*((FL5*2.47109)^'Equations - Parameters'!$K$49)*('Equations - Parameters'!$G$156/(FV5))^'Equations - Parameters'!$L$49)-LC5)))) -> 15.03898299 | LE5: =+IF($B5="","",IF(GO5=0,0,IF(Inputs!$H$11=FALSE,0,IF(B5<2,0,GO5*EXP('Equations - Parameters'!$H$49*('Equations - Parameters'!$F$157/(FV5))^'Equations - Parameters'!$I$49+'Equations - Parameters'!$J$49*((FL5*2.47109)^'Equations - Parameters'!$K$49)*('Equations - Parameters'!$G$157/(FV5))^'Equations - Parameters'!$L$49)-LD5-LC5)))) -> 570.3996059 | LF5: =+IF($B5="","",IF(IS5=0,0,IS5*EXP('Equations - Parameters'!$H$49*('Equations - Parameters'!$F$155/(JH5))^'Equations - Parameters'!$I$49+'Equations - Parameters'!$J$49*(HO5*2.47105)^'Equations - Parameters'!$K$49*('Equations - Parameters'!$G$155/(JH5))^'Equations - Parameters'!$L$49))) -> 0 | LG5: =+IF($B5="","",IF(IS5=0,0,IS5*EXP('Equations - Parameters'!$H$49*('Equations - Parameters'!$F$156/(JH5))^'Equations - Parameters'!$I$49+'Equations - Parameters'!$J$49*(HO5*2.47105)^'Equations - Parameters'!$K$49*('Equations - Parameters'!$G$156/(JH5))^'Equations - Parameters'!$L$49)-LF5)) -> 0 | LH5: =+IF($B5="","",IF(IS5=0,0,IS5*EXP('Equations - Parameters'!$H$49*('Equations - Parameters'!$F$157/(JH5))^'Equations - Parameters'!$I$49+'Equations - Parameters'!$J$49*(HO5*2.47105)^'Equations - Parameters'!$K$49*('Equations - Parameters'!$G$157/(JH5))^'Equations - Parameters'!$L$49)-LG5-LF5)) -> 0 | LI5: =+IF($B5="","",IF(IT5=0,0,IT5*EXP('Equations - Parameters'!$H$49*('Equations - Parameters'!$F$155/(JI5))^'Equations - Parameters'!$I$49+'Equations - Parameters'!$J$49*(HP5*2.47105)^'Equations - Parameters'!$K$49*('Equations - Parameters'!$G$155/(JI5))^'Equations - Parameters'!$L$49))) -> 0 | LJ5: =+IF($B5="","",IF(IT5=0,0,IT5*EXP('Equations - Parameters'!$H$49*('Equations - Parameters'!$F$156/(JI5))^'Equations - Parameters'!$I$49+'Equations - Parameters'!$J$49*(HP5*2.47105)^'Equations - Parameters'!$K$49*('Equations - Parameters'!$G$156/(JI5))^'Equations - Parameters'!$L$49)-LI5)) -> 0 | LK5: =+IF($B5="","",IF(IT5=0,0,IT5*EXP('Equations - Parameters'!$H$49*('Equations - Parameters'!$F$157/(JI5))^'Equations - Parameters'!$I$49+'Equations - Parameters'!$J$49*(HP5*2.47105)^'Equations - Parameters'!$K$49*('Equations - Parameters'!$G$157/(JI5))^'Equations - Parameters'!$L$49)-LJ5-LI5)) -> 0 | LL5: =+IF($B5="","",IF(IU5=0,0,IU5*EXP('Equations - Parameters'!$H$49*('Equations - Parameters'!$F$155/(JJ5))^'Equations - Parameters'!$I$49+'Equations - Parameters'!$J$49*(HQ5*2.47105)^'Equations - Parameters'!$K$49*('Equations - Parameters'!$G$155/(JJ5))^'Equations - Parameters'!$L$49))) -> 0 | LM5: =+IF($B5="","",IF(IU5=0,0,IU5*EXP('Equations - Parameters'!$H$49*('Equations - Parameters'!$F$156/(JJ5))^'Equations - Parameters'!$I$49+'Equations - Parameters'!$J$49*(HQ5*2.47105)^'Equations - Parameters'!$K$49*('Equations - Parameters'!$G$156/(JJ5))^'Equations - Parameters'!$L$49)-LL5)) -> 0 | LN5: =+IF($B5="","",IF(IU5=0,0,IU5*EXP('Equations - Parameters'!$H$49*('Equations - Parameters'!$F$157/(JJ5))^'Equations - Parameters'!$I$49+'Equations - Parameters'!$J$49*(HQ5*2.47105)^'Equations - Parameters'!$K$49*('Equations - Parameters'!$G$157/(JJ5))^'Equations - Parameters'!$L$49)-LM5-LL5)) -> 0 | LO5: =+IF($B5="","",IF(IV5=0,0,IV5*EXP('Equations - Parameters'!$H$49*('Equations - Parameters'!$F$155/(JK5))^'Equations - Parameters'!$I$49+'Equations - Parameters'!$J$49*(HR5*2.47105)^'Equations - Parameters'!$K$49*('Equations - Parameters'!$G$155/(JK5))^'Equations - Parameters'!$L$49))) -> 0 | LP5: =+IF($B5="","",IF(IV5=0,0,IV5*EXP('Equations - Parameters'!$H$49*('Equations - Parameters'!$F$156/(JK5))^'Equations - Parameters'!$I$49+'Equations - Parameters'!$J$49*(HR5*2.47105)^'Equations - Parameters'!$K$49*('Equations - Parameters'!$G$156/(JK5))^'Equations - Parameters'!$L$49)-LO5)) -> 0 | LQ5: =+IF($B5="","",IF(IV5=0,0,IV5*EXP('Equations - Parameters'!$H$49*('Equations - Parameters'!$F$157/(JK5))^'Equations - Parameters'!$I$49+'Equations - Parameters'!$J$49*(HR5*2.47105)^'Equations - Parameters'!$K$49*('Equations - Parameters'!$G$157/(JK5))^'Equations - Parameters'!$L$49)-LP5-LO5)) -> 0 | LR5: =+IF($B5="","",IF(IW5=0,0,IW5*EXP('Equations - Parameters'!$H$49*('Equations - Parameters'!$F$155/(JL5))^'Equations - Parameters'!$I$49+'Equations - Parameters'!$J$49*(HS5*2.47105)^'Equations - Parameters'!$K$49*('Equations - Parameters'!$G$155/(JL5))^'Equations - Parameters'!$L$49))) -> 0 | LS5: =+IF($B5="","",IF(IW5=0,0,IW5*EXP('Equations - Parameters'!$H$49*('Equations - Parameters'!$F$156/(JL5))^'Equations - Parameters'!$I$49+'Equations - Parameters'!$J$49*(HS5*2.47105)^'Equations - Parameters'!$K$49*('Equations - Parameters'!$G$156/(JL5))^'Equations - Parameters'!$L$49)-LR5)) -> 0 | LT5: =+IF($B5="","",IF(IW5=0,0,IW5*EXP('Equations - Parameters'!$H$49*('Equations - Parameters'!$F$157/(JL5))^'Equations - Parameters'!$I$49+'Equations - Parameters'!$J$49*(HS5*2.47105)^'Equations - Parameters'!$K$49*('Equations - Parameters'!$G$157/(JL5))^'Equations - Parameters'!$L$49)-LS5-LR5)) -> 0
A6: =+A5+1 -> 2 | B6: =+IF($A6+Inputs!$J$14-1>Inputs!$B$6,"",IF($B5=Inputs!$B$6, "",IF($A6=0,Inputs!$J$14,IF(B5=Inputs!$B$6,0,B5+1)))) -> 37 | C6: =+IF($B6="","",IF($B6=Inputs!$B$15,Inputs!$J$15,4.5+(('Equations - Parameters'!$F$14+(0.5*(Inputs!$J$18-4.5-'Equations - Parameters'!$F$14+SQRT((((Inputs!$J$18-4.5)-'Equations - Parameters'!$F$14))^2+4*'Equations - Parameters'!$G$14*(Inputs!$J$18-4.5)*((50-Inputs!$B$9)^-'Equations - Parameters'!$H$14)))))/(1+('Equations - Parameters'!$G$14/(0.5*(Inputs!$J$18-4.5-'Equations - Parameters'!$F$14+SQRT((((Inputs!$J$18-4.5)-'Equations - Parameters'!$F$14))^2+4*'Equations - Parameters'!$G$14*(Inputs!$J$18-4.5)*((50-Inputs!$B$9)^-'Equations - Parameters'!$H$14))))*(($B6-Inputs!$B$9)^-'Equations - Parameters'!$H$14)))))) -> 58.64497879 | D6: =+IF($B6="","",IF(Inputs!$H$11=TRUE,0,IF($B6=Inputs!$J$14,Inputs!$J$16,(D5^('Equations - Parameters'!$F$7+'Equations - Parameters'!$G$7/Inputs!$J$18)+'Equations - Parameters'!$H$7*((($B6-Inputs!$B$9)/200)^'Equations - Parameters'!$I$7-(($B5-Inputs!$B$9)/200)^'Equations - Parameters'!$I$7))^(1/('Equations - Parameters'!$F$7+'Equations - Parameters'!$G$7/Inputs!$J$18))))) -> 0 | E6: =+IF($B6="","",IF(Inputs!$H$11=TRUE,0,IF($B6=Inputs!$J$14,Inputs!$J$17,(E5^(((B5-Inputs!$B$9+'Equations - Parameters'!$I$26)^('Equations - Parameters'!$F$26+'Equations - Parameters'!$G$26*LN(D5)))/((B6-Inputs!$B$9+'Equations - Parameters'!$I$26)^('Equations - Parameters'!$F$26+'Equations - Parameters'!$G$26*LN(D6))))*EXP('Equations - Parameters'!$H$26*(1-(((B5-Inputs!$B$9+'Equations - Parameters'!$I$26)^('Equations - Parameters'!$F$26+'Equations - Parameters'!$G$26*LN(D5)))/((B6-Inputs!$B$9+'Equations - Parameters'!$I$26)^('Equations - Parameters'!$F$26+'Equations - Parameters'!$G$26*LN(D6)))))))))) -> 0 | F6: =+IF($B6="","",IF(Inputs!$H$11=TRUE,0,SQRT((E6/D6)/0.005454))) -> 0 | G6: =+IF($B6>Inputs!$B$6,"",D6*(F6/10)^1.605) -> 0 | H6: =+IF($B6="","",IF(Inputs!$H$22=FALSE,0,IF(AND(Inputs!$H$22=TRUE,$B6=Inputs!$J$14),Inputs!$J$16,(H5^('Equations - Parameters'!$F$7+'Equations - Parameters'!$G$7/Inputs!$J$18)+'Equations - Parameters'!$H$7*((($B6-Inputs!$B$9)/200)^'Equations - Parameters'!$I$7-(($B5-Inputs!$B$9)/200)^'Equations - Parameters'!$I$7))^(1/('Equations - Parameters'!$F$7+'Equations - Parameters'!$G$7/Inputs!$J$18))))) -> 0 | I6: =+IF(B6="","",IF(Inputs!$H$11=FALSE,0,IF(Inputs!$H$22=FALSE,0,IF(Inputs!$B$30="",0,IF(B6<Inputs!$B$30,H6,IF(AND(B6=Inputs!$B$30,Inputs!$H$27=TRUE),(H6-(Inputs!$C$30*H6)),IF(AND(B6=Inputs!$B$30,Inputs!$H$27=FALSE),(H6*(1-Inputs!$C$30)^('Equations - Parameters'!$F$39*(C6/Y6)+'Equations - Parameters'!$G$39/Y6+'Equations - Parameters'!$H$39*Y6+'Equations - Parameters'!$I$39*Y6*IF(Inputs!$H$8=TRUE,0,1))),(I5^('Equations - Parameters'!$F$7+'Equations - Parameters'!$G$7/Inputs!$J$18)+'Equations - Parameters'!$H$7*(((B6-Inputs!$B$9)/200)^'Equations - Parameters'!$I$7-((B5-Inputs!$B$9)/200)^'Equations - Parameters'!$I$7))^(1/('Equations - Parameters'!$F$7+'Equations - Parameters'!$G$7/Inputs!$J$18))))))))) -> 0 | J6: =+IF(B6="","",IF(Inputs!$H$11=FALSE,0,IF(Inputs!$H$22=FALSE,0,IF(Inputs!$B$31="",0,IF(B6<Inputs!$B$31,I6,IF(AND(B6=Inputs!$B$31,Inputs!$H$27=TRUE),(I6-(Inputs!$C$31*I6)),IF(AND(B6=Inputs!$B$31,Inputs!$H$27=FALSE),(I6*(1-Inputs!$C$31)^('Equations - Parameters'!$F$39*(C6/Z6)+'Equations - Parameters'!$G$39/Z6+'Equations - Parameters'!$H$39*Z6+'Equations - Parameters'!$I$39*Z6*IF(Inputs!$H$8=TRUE,0,1))),(J5^('Equations - Parameters'!$F$7+'Equations - Parameters'!$G$7/Inputs!$J$18)+'Equations - Parameters'!$H$7*(((B6-Inputs!$B$9)/200)^'Equations - Parameters'!$I$7-((B5-Inputs!$B$9)/200)^'Equations - Parameters'!$I$7))^(1/('Equations - Parameters'!$F$7+'Equations - Parameters'!$G$7/Inputs!$J$18))))))))) -> 0 | K6: =+IF(B6="","",IF(Inputs!$H$11=FALSE,0,IF(Inputs!$H$22=FALSE,0,IF(Inputs!$B$32="",0,IF(B6<Inputs!$B$32,J6,IF(AND(B6=Inputs!$B$32,Inputs!$H$27=TRUE),(J6-(Inputs!$C$32*J6)),IF(AND(B6=Inputs!$B$32,Inputs!$H$27=FALSE),(J6*(1-Inputs!$C$32)^('Equations - Parameters'!$F$39*(C6/AA6)+'Equations - Parameters'!$G$39/AA6+'Equations - Parameters'!$H$39*AA6+'Equations - Parameters'!$I$39*AA6*IF(Inputs!$H$8=TRUE,0,1))),(K5^('Equations - Parameters'!$F$7+'Equations - Parameters'!$G$7/Inputs!$J$18)+'Equations - Parameters'!$H$7*(((B6-Inputs!$B$9)/200)^'Equations - Parameters'!$I$7-((B5-Inputs!$B$9)/200)^'Equations - Parameters'!$I$7))^(1/('Equations - Parameters'!$F$7+'Equations - Parameters'!$G$7/Inputs!$J$18))))))))) -> 0 | L6: =+IF(B6="","",IF(Inputs!$H$11=FALSE,0,IF(Inputs!$H$22=FALSE,0,IF(Inputs!$B$33="",0,IF(B6<Inputs!$B$33,K6,IF(AND(B6=Inputs!$B$33,Inputs!$H$27=TRUE),(K6-(Inputs!$C$33*K6)),IF(AND(B6=Inputs!$B$33,Inputs!$H$27=FALSE),(K6*(1-Inputs!$C$33)^('Equations - Parameters'!$F$39*(C6/AB6)+'Equations - Parameters'!$G$39/AB6+'Equations - Parameters'!$H$39*AB6+'Equations - Parameters'!$I$39*AB6*IF(Inputs!$H$8=TRUE,0,1))),(L5^('Equations - Parameters'!$F$7+'Equations - Parameters'!$G$7/Inputs!$J$18)+'Equations - Parameters'!$H$7*(((B6-Inputs!$B$9)/200)^'Equations - Parameters'!$I$7-((B5-Inputs!$B$9)/200)^'Equations - Parameters'!$I$7))^(1/('Equations - Parameters'!$F$7+'Equations - Parameters'!$G$7/Inputs!$J$18))))))))) -> 0 | M6: =+IF($B6>Inputs!$B$6,"",IF(Inputs!$H$22=FALSE,0,IF(AND(Inputs!$H$22=TRUE,$B6=Inputs!$J$14),Inputs!$J$17,IF(AND(Inputs!$H$22=TRUE,$B6<>Inputs!$J$14),(M5^(((B5-Inputs!$B$9+'Equations - Parameters'!$I$26)^('Equations - Parameters'!$F$26+'Equations - Parameters'!$G$26*LN(H5)))/((B6-Inputs!$B$9+'Equations - Parameters'!$I$26)^('Equations - Parameters'!$F$26+'Equations - Parameters'!$G$26*LN(H6))))*EXP('Equations - Parameters'!$H$26*(1-(((B5-Inputs!$B$9+'Equations - Parameters'!$I$26)^('Equations - Parameters'!$F$26+'Equations - Parameters'!$G$26*LN(H5)))/((B6-Inputs!$B$9+'Equations - Parameters'!$I$26)^('Equations - Parameters'!$F$26+'Equations - Parameters'!$G$26*LN(H6))))))))))) -> 0 | N6: =+IF(B6="","",IF(Inputs!$H$11=FALSE,0,IF(Inputs!$H$22=FALSE,0,IF(Inputs!$B$30="",0,IF(B6<Inputs!$B$30,M6,IF(AND(B6=Inputs!$B$30,Inputs!$H$27=FALSE),(M6-(Inputs!$C$30*M6)),IF(AND(B6=Inputs!$B$30,Inputs!$H$27=TRUE),(M6*(1-(Inputs!$C$30)^('Equations - Parameters'!$F$40+'Equations - Parameters'!$G$40/Y6+'Equations - Parameters'!$H$40/B6+'Equations - Parameters'!$I$40/C6+'Equations - Parameters'!$J$40*(H6/I6)+'Equations - Parameters'!$K$40*(H6/I6)*IF(Inputs!$H$8=TRUE,0,1)))),(N5^(((B5+'Equations - Parameters'!$I$26)^('Equations - Parameters'!$F$26+'Equations - Parameters'!$G$26*LN(I5)))/((B6+'Equations - Parameters'!$I$26)^('Equations - Parameters'!$F$26+'Equations - Parameters'!$G$26*LN(I6))))*EXP('Equations - Parameters'!$H$26*(1-(((B5+'Equations - Parameters'!$I$26)^('Equations - Parameters'!$F$26+'Equations - Parameters'!$G$26*LN(I5)))/((B6+'Equations - Parameters'!$I$26)^('Equations - Parameters'!$F$26+'Equations - Parameters'!$G$26*LN(I6)))))))))))))) -> 0 | O6: =+IF(B6="","",IF(Inputs!$H$11=FALSE,0,IF(Inputs!$H$22=FALSE,0,IF(Inputs!$B$31="",0,IF(B6<Inputs!$B$31,N6,IF(AND(B6=Inputs!$B$31,Inputs!$H$27=FALSE),(N6-(Inputs!$C$31*N6)),IF(AND(B6=Inputs!$B$31,Inputs!$H$27=TRUE),(N6*(1-(Inputs!$C$31)^('Equations - Parameters'!$F$40+'Equations - Parameters'!$G$40/Z6+'Equations - Parameters'!$H$40/B6+'Equations - Parameters'!$I$40/C6+'Equations - Parameters'!$J$40*(I6/J6)+'Equations - Parameters'!$K$40*(I6/J6)*IF(Inputs!$H$8=TRUE,0,1)))),(O5^(((B5+'Equations - Parameters'!$I$26)^('Equations - Parameters'!$F$26+'Equations - Parameters'!$G$26*LN(J5)))/((B6+'Equations - Parameters'!$I$26)^('Equations - Parameters'!$F$26+'Equations - Parameters'!$G$26*LN(J6))))*EXP('Equations - Parameters'!$H$26*(1-(((B5+'Equations - Parameters'!$I$26)^('Equations - Parameters'!$F$26+'Equations - Parameters'!$G$26*LN(J5)))/((B6+'Equations - Parameters'!$I$26)^('Equations - Parameters'!$F$26+'Equations - Parameters'!$G$26*LN(J6)))))))))))))) -> 0 | P6: =+IF(B6="","",IF(Inputs!$H$11=FALSE,0,IF(Inputs!$H$22=FALSE,0,IF(Inputs!$B$32="",0,IF(B6<Inputs!$B$32,O6,IF(AND(B6=Inputs!$B$32,Inputs!$H$27=FALSE),(O6-(Inputs!$C$32*O6)),IF(AND(B6=Inputs!$B$32,Inputs!$H$27=TRUE),(O6*(1-(Inputs!$C$32)^('Equations - Parameters'!$F$40+'Equations - Parameters'!$G$40/AA6+'Equations - Parameters'!$H$40/B6+'Equations - Parameters'!$I$40/C6+'Equations - Parameters'!$J$40*(J6/K6)+'Equations - Parameters'!$K$40*(J6/K6)*IF(Inputs!$H$8=TRUE,0,1)))),(P5^(((B5+'Equations - Parameters'!$I$26)^('Equations - Parameters'!$F$26+'Equations - Parameters'!$G$26*LN(K5)))/((B6+'Equations - Parameters'!$I$26)^('Equations - Parameters'!$F$26+'Equations - Parameters'!$G$26*LN(K6))))*EXP('Equations - Parameters'!$H$26*(1-(((B5+'Equations - Parameters'!$I$26)^('Equations - Parameters'!$F$26+'Equations - Parameters'!$G$26*LN(K5)))/((B6+'Equations - Parameters'!$I$26)^('Equations - Parameters'!$F$26+'Equations - Parameters'!$G$26*LN(K6)))))))))))))) -> 0 | Q6: =+IF(B6="","",IF(Inputs!$H$11=FALSE,0,IF(Inputs!$H$22=FALSE,0,IF(Inputs!$B$33="",0,IF(B6<Inputs!$B$33,P6,IF(AND(B6=Inputs!$B$33,Inputs!$H$27=FALSE),(P6-(Inputs!$C$33*P6)),IF(AND(B6=Inputs!$B$33,Inputs!$H$27=TRUE),(P6*(1-(Inputs!$C$33)^('Equations - Parameters'!$F$40+'Equations - Parameters'!$G$40/AB6+'Equations - Parameters'!$H$40/B6+'Equations - Parameters'!$I$40/C6+'Equations - Parameters'!$J$40*(K6/L6)+'Equations - Parameters'!$K$40*(K6/L6)*IF(Inputs!$H$8=TRUE,0,1)))),(Q5^(((B5+'Equations - Parameters'!$I$26)^('Equations - Parameters'!$F$26+'Equations - Parameters'!$G$26*LN(L5)))/((B6+'Equations - Parameters'!$I$26)^('Equations - Parameters'!$F$26+'Equations - Parameters'!$G$26*LN(L6))))*EXP('Equations - Parameters'!$H$26*(1-(((B5+'Equations - Parameters'!$I$26)^('Equations - Parameters'!$F$26+'Equations - Parameters'!$G$26*LN(L5)))/((B6+'Equations - Parameters'!$I$26)^('Equations - Parameters'!$F$26+'Equations - Parameters'!$G$26*LN(L6)))))))))))))) -> 0 | R6: 0 | S6: =+IF($B6="","",IF(Inputs!$B$30="",0,IF($B6=Inputs!$B$30,M6-N6,0))) -> 0 | T6: =+IF($B6="","",IF(Inputs!$B$31="",0,IF($B6=Inputs!$B$31,N6-O6,0))) -> 0 | U6: =+IF($B6="","",IF(Inputs!$B$32="",0,IF($B6=Inputs!$B$32,O6-P6,0))) -> 0 | V6: =+IF($B6="","",IF(Inputs!$B$33="",0,IF($B6=Inputs!$B$33,P6-Q6,0))) -> 0 | W6: =+IF($B6>Inputs!$B$6,"",R6+S6+T6+U6+V6) -> 0 | X6: =+IF($B6>Inputs!$B$6,"",IF(B6=Inputs!$B$30,N6*(1-Inputs!$C$30),IF(B6=Inputs!$B$31,O6*(1-Inputs!$C$31),IF(B6=Inputs!$B$32,P6*(1-Inputs!$C$32),IF(B6=Inputs!$B$33,Q6*(1-Inputs!$C$33),0))))) -> 0 | Y6: =+IF($B6>Inputs!$B$6,"",IF(M6=0,0,SQRT((M6/H6)/0.005454))) -> 0 | Z6: =+IF($B6>Inputs!$B$6,"",IF(N6=0,0,SQRT((N6/I6)/0.005454))) -> 0 | AA6: =+IF($B6>Inputs!$B$6,"",IF(O6=0,0,SQRT((O6/J6)/0.005454))) -> 0 | AB6: =+IF($B6>Inputs!$B$6,"",IF(P6=0,0,SQRT((P6/K6)/0.005454))) -> 0 | AC6: =+IF($B6>Inputs!$B$6,"",IF(Q6=0,0,SQRT((Q6/L6)/0.005454))) -> 0 | AD6: =+IF($B6>Inputs!$B$6,"",H6*(Y6/10)^1.605) -> 0 | AE6: =+IF($B6>Inputs!$B$6,"",I6*(Z6/10)^1.605) -> 0 | AF6: =+IF($B6>Inputs!$B$6,"",J6*(AA6/10)^1.605) -> 0 | AG6: =+IF($B6>Inputs!$B$6,"",K6*(AB6/10)^1.605) -> 0 | AH6: =+IF($B6>Inputs!$B$6,"",L6*(AC6/10)^1.605) -> 0 | AI6: =+IF($B6>Inputs!$B$6,"",IF(Inputs!$B$30="",0,IF(B6<Inputs!$B$30,0,EXP('Equations - Parameters'!$B$21+'Equations - Parameters'!$C$21*LN(I6)+'Equations - Parameters'!$D$21*LN(C6))))) -> 0 | AJ6: =+IF($B6>Inputs!$B$6,"",IF($B6=0,0,IF(AND(Inputs!$H$4=TRUE,$B6=Inputs!$J$14),Inputs!$J$17,IF(AND(Inputs!$H$4=TRUE,$B6<>Inputs!$J$14),AJ5*((H6/H5)^('Equations - Parameters'!$C$21))*((C6/C5)^('Equations - Parameters'!$D$21)),EXP('Equations - Parameters'!$B$21+'Equations - Parameters'!$C$21*LN(H6)+'Equations - Parameters'!$D$21*LN(C6)))))) ->  | AK6: =+IF($B6>Inputs!$B$6,"",IF(Inputs!$B$30="",0,IF($B6=Inputs!$B$30,AJ6-BH6,0))) -> 0 | AL6: =+IF($B6>Inputs!$B$6,"",IF(Inputs!$B$30="",0,IF($B6=Inputs!$B$30,$B6,0))) -> 0 | AM6: =+IF($B6>Inputs!$B$6,"",IF(Inputs!$B$31="",0,IF(B6<Inputs!$B$31,0,EXP('Equations - Parameters'!$B$21+'Equations - Parameters'!$C$21*LN(J6)+'Equations - Parameters'!$D$21*LN(C6))))) -> 0 | AN6: =+IF($B6>Inputs!$B$6,"",IF(Inputs!$B$31="",0,IF($B6=Inputs!$B$31,AV6-$BH6,0))) -> 0 | AO6: =+IF($B6>Inputs!$B$6,"",IF(Inputs!$B$31="",0,IF($B6=Inputs!$B$31,$B6,0))) -> 0 | AP6: =+IF($B6>Inputs!$B$6,"",IF(Inputs!$B$32="",0,IF($B6<Inputs!$B$32,0,EXP('Equations - Parameters'!$B$21+'Equations - Parameters'!$C$21*LN(K6)+'Equations - Parameters'!$D$21*LN(C6))))) -> 0 | AQ6: =+IF($B6>Inputs!$B$6,"",IF(Inputs!$B$32="",0,IF($B6=Inputs!$B$32,AY6-$BH6,0))) -> 0 | AR6: =+IF($B6>Inputs!$B$6,"",IF(Inputs!$B$32="",0,IF($B6=Inputs!$B$32,$B6,0))) -> 0 | AS6: =+IF($B6>Inputs!$B$6,"",IF(Inputs!$B$33="",0,IF($B6<Inputs!$B$33,0,EXP('Equations - Parameters'!$B$21+'Equations - Parameters'!$C$21*LN(L6)+'Equations - Parameters'!$D$21*LN(C6))))) -> 0 | AT6: =+IF($B6>Inputs!$B$6,"",IF(Inputs!$B$33="",0,IF($B6=Inputs!$B$33,BB6-$BH6,0))) -> 0 | AU6: =+IF($B6>Inputs!$B$6,"",IF(Inputs!$B$33="",0,IF($B6=Inputs!$B$33,$B6,0))) -> 0 | AV6: =+IF(A6+Inputs!$J$14-1>Inputs!$B$6,"",IF(Inputs!$B$30="",0,IF($B6<Inputs!$B$30,AJ6,IF(B6=Inputs!$B$30,BH6,AI6*(1-AX6))))) ->  | AW6: =+IF(A6+Inputs!$J$14-1>Inputs!$B$6,"",+IF(SUM($AK$4:$AK$504)>0,1,0)) ->  | AX6: =+IF(A6+Inputs!$J$14-1>Inputs!$B$6,"",IF(Inputs!$B$30="",0,IF(B6<Inputs!$B$30,0,IF(B6=Inputs!$B$30,1-(AV6/AI6),AX5*EXP(('Equations - Parameters'!$C$24/B6)*(B6-B5)))))) -> 0 | AY6: =+IF(A6+Inputs!$J$14-1>Inputs!$B$6,"",IF(Inputs!$B$31="",0,IF($B6<Inputs!$B$31,AV6,IF($B6=Inputs!$B$31,BH6,AM6*(1-BA6))))) -> 0 | AZ6: =+IF(A6+Inputs!$J$14-1>Inputs!$B$6,"",IF(SUM($AN$4:$AN$504)>0,1,0)) -> 0 | BA6: =+IF(A6+Inputs!$J$14-1>Inputs!$B$6,"",IF(Inputs!$B$31="",0,IF($B6<Inputs!$B$31,0,IF($B6=Inputs!$B$31,1-(AY6/AM6),BA5*EXP(('Equations - Parameters'!$C$24/B6)*($B6-$B5)))))) -> 0 | BB6: =+IF(A6+Inputs!$J$14-1>Inputs!$B$6,"",IF(Inputs!$B$32="",0,IF($B6<Inputs!$B$32,AY6,IF($B6=Inputs!$B$32,BH6,AP6*(1-BD6))))) -> 0 | BC6: =+IF(A6+Inputs!$J$14-1>Inputs!$B$6,"",IF(SUM($AQ$4:$AQ$504)>0,1,0)) -> 0 | BD6: =+IF(A6+Inputs!$J$14-1>Inputs!$B$6,"",IF(Inputs!$B$32="",0,IF($B6<Inputs!$B$32,0,IF($B6=Inputs!$B$32,1-(BB6/AP6),BD5*EXP(('Equations - Parameters'!$C$24/B6)*($B6-$B5)))))) -> 0 | BE6: =+IF(A6+Inputs!$J$14-1>Inputs!$B$6,"",IF(Inputs!$B$33="",0,IF($B6<Inputs!$B$33,BB6,IF($B6=Inputs!$B$33,BH6,AS6*(1-BG6))))) -> 0 | BF6: =+IF(A6+Inputs!$J$14-1>Inputs!$B$6,"",IF(SUM($AT$4:$AT$504)>0,1,0)) -> 0 | BG6: =+IF(A6+Inputs!$J$14-1>Inputs!$B$6,"",IF(Inputs!$B$33="",0,IF($B6<Inputs!$B$33,0,IF($B6=Inputs!$B$33,1-(BE6/AS6),BG5*EXP(('Equations - Parameters'!$C$24/B6)*($B6-$B5)))))) -> 0 | BH6: =+IF(A6+Inputs!$J$14-1>Inputs!$B$6,"",IF(B6=Inputs!$B$30,AJ6*(1-Inputs!$C$30),IF(B6=Inputs!$B$31,AV6*(1-Inputs!$C$31),IF(B6=Inputs!$B$32,AY6*(1-Inputs!$C$32),IF(B6=Inputs!$B$33,BB6*(1-Inputs!$C$33),0))))) -> 0 | BI6: =+IF(B6="","",IF(AND(Inputs!$H$23=TRUE,B6=Inputs!$J$14),Inputs!$J$16,(BI5^('Equations - Parameters'!$F$7+'Equations - Parameters'!$G$7/Inputs!$J$18) + 'Equations - Parameters'!$H$7*((B6/200)^'Equations - Parameters'!$I$7 - (B5/200)^'Equations - Parameters'!$I$7 ))^(1/('Equations - Parameters'!$F$7+'Equations - Parameters'!$G$7/Inputs!$J$18) ))) -> 585.831379 | BJ6: =+IF(A6+Inputs!$J$14-1>Inputs!$B$6,"",IF(CL6=0,BI6,IF(CM6<>0,BI6*(1-CM6/CI6),BJ5*EXP(('Equations - Parameters'!$B$9*C5/100+'Equations - Parameters'!$C$9*CD5/'Equations - Parameters'!$D$7)*(B6^'Equations - Parameters'!$D$9-B5^'Equations - Parameters'!$D$9))))) -> 585.831379 | BK6: =+IF(A6+Inputs!$J$14-1>Inputs!$B$6,"",IF(CS6=0,BJ6,IF(CT6<>0,BJ6*(1-CT6/CJ6),BK5*EXP(('Equations - Parameters'!$B$9*C5/100+'Equations - Parameters'!$C$9*CE5/'Equations - Parameters'!$D$7)*(B6^'Equations - Parameters'!$D$9-B5^'Equations - Parameters'!$D$9))))) -> 585.831379 | BL6: =+IF(A6+Inputs!$J$14-1>Inputs!$B$6,"",IF(CZ6=0,BK6,IF(DA6<>0,BK6*(1-DA6/CQ6),BL5*EXP(('Equations - Parameters'!$B$9*C5/100+'Equations - Parameters'!$C$9*CF5/'Equations - Parameters'!$D$7)*(B6^'Equations - Parameters'!$D$9-B5^'Equations - Parameters'!$D$9))))) -> 585.831379 | BM6: =+IF(A6+Inputs!$J$14-1>Inputs!$B$6,"",IF(DG6=0,BL6,IF(DH6<>0,BL6*(1-DH6/CX6),BM5*EXP(('Equations - Parameters'!$B$9*C5/100+'Equations - Parameters'!$C$9*CG5/'Equations - Parameters'!$D$7)*(B6^'Equations - Parameters'!$D$9-B5^'Equations - Parameters'!$D$9))))) -> 585.831379 | BN6: =+IF(B6="","",IF(AND(Inputs!$H$23=TRUE,B6=Inputs!$J$14),Inputs!$J$16,(BN5^('Equations - Parameters'!$F$7+'Equations - Parameters'!$G$7/Inputs!$J$18) + 'Equations - Parameters'!$H$7*(((B6-Inputs!$B$9)/200)^'Equations - Parameters'!$I$7 - ((B5-Inputs!$B$9)/200)^'Equations - Parameters'!$I$7 ))^(1/('Equations - Parameters'!$F$7+'Equations - Parameters'!$G$7/Inputs!$J$18) ))) -> 592.4137681 | BO6: =+IF($B6="","",IF(Inputs!$H$23=FALSE,0,IF(BS6<Inputs!$A$37,BN6,IF(BS5<Inputs!$A$37,(BN6-BN6*((BS6-Inputs!$B$37)/Inputs!$A$37)^('Equations - Parameters'!$F$39*(C6/BX6)+'Equations - Parameters'!$G$39/BX6+'Equations - Parameters'!$H$39*BX6+'Equations - Parameters'!$I$39*BX6*IF(Inputs!$H$8=TRUE,0,1))),(BO5^('Equations - Parameters'!$F$7+'Equations - Parameters'!$G$7/Inputs!$J$18)+'Equations - Parameters'!$H$7*((($B6-Inputs!$B$9)/200)^'Equations - Parameters'!$I$7-(($B5-Inputs!$B$9)/200)^'Equations - Parameters'!$I$7))^(1/('Equations - Parameters'!$F$7+'Equations - Parameters'!$G$7/Inputs!$J$18)))))) -> 592.4137681 | BP6: =+IF($B6="","",IF(Inputs!$H$23=FALSE,0,IF(BT6<Inputs!$A$37,BO6,IF(BT5<Inputs!$A$37,(BO6-BO6*((BT6-Inputs!$B$37)/Inputs!$A$37)^('Equations - Parameters'!$F$39*($C6/BY6)+'Equations - Parameters'!$G$39/BY6+'Equations - Parameters'!$H$39*BY6)),(BP5^('Equations - Parameters'!$F$7+'Equations - Parameters'!$G$7/Inputs!$J$18)+'Equations - Parameters'!$H$7*(($B6/200)^'Equations - Parameters'!$I$7-($B5/200)^'Equations - Parameters'!$I$7))^(1/('Equations - Parameters'!$F$7+'Equations - Parameters'!$G$7/Inputs!$J$18)))))) -> 592.4137681 | BQ6: =+IF($B6="","",IF(Inputs!$H$23=FALSE,0,IF(BU6<Inputs!$A$37,BP6,IF(BU5<Inputs!$A$37,(BP6-BP6*((BU6-Inputs!$B$37)/Inputs!$A$37)^('Equations - Parameters'!$F$39*($C6/BZ6)+'Equations - Parameters'!$G$39/BZ6+'Equations - Parameters'!$H$39*BZ6)),(BQ5^('Equations - Parameters'!$F$7+'Equations - Parameters'!$G$7/Inputs!$J$18)+'Equations - Parameters'!$H$7*((($B6-Inputs!$B$9)/200)^'Equations - Parameters'!$I$7-(($B5-Inputs!$B$9)/200)^'Equations - Parameters'!$I$7))^(1/('Equations - Parameters'!$F$7+'Equations - Parameters'!$G$7/Inputs!$J$18)))))) -> 592.4137681 | BR6: =+IF($B6="","",IF(Inputs!$H$23=FALSE,0,IF(BV6<Inputs!$A$37,BQ6,IF(BV5<Inputs!$A$37,(BQ6-BQ6*((BV6-Inputs!$B$37)/Inputs!$A$37)^('Equations - Parameters'!$F$39*($C6/CA6)+'Equations - Parameters'!$G$39/CA6+'Equations - Parameters'!$H$39*CA6)),(BR5^('Equations - Parameters'!$F$7+'Equations - Parameters'!$G$7/Inputs!$J$18)+'Equations - Parameters'!$H$7*((($B6-Inputs!$B$9)/200)^'Equations - Parameters'!$I$7-(($B5-Inputs!$B$9)/200)^'Equations - Parameters'!$I$7))^(1/('Equations - Parameters'!$F$7+'Equations - Parameters'!$G$7/Inputs!$J$18)))))) -> 592.4137681 | BS6: =+IF($B6="","",IF(AND(Inputs!$H$23=TRUE,$B6=Inputs!$J$14),Inputs!$J$17,IF(AND(Inputs!$H$23=TRUE,$B6<>Inputs!$J$14),(BS5^((($B5-Inputs!$B$9+'Equations - Parameters'!$I$26)^('Equations - Parameters'!$F$26+'Equations - Parameters'!$G$26*LN(BN5)))/(($B6-Inputs!$B$9+'Equations - Parameters'!$I$26)^('Equations - Parameters'!$F$26+'Equations - Parameters'!$G$26*LN(BN6))))*EXP('Equations - Parameters'!$H$26*(1-((($B5-Inputs!$B$9+'Equations - Parameters'!$I$26)^('Equations - Parameters'!$F$26+'Equations - Parameters'!$G$26*LN(BN5)))/(($B6-Inputs!$B$9+'Equations - Parameters'!$I$26)^('Equations - Parameters'!$F$26+'Equations - Parameters'!$G$26*LN(BN6)))))))))) -> 107.0133412 | BT6: =+IF($B6="","",IF(Inputs!$H$23=FALSE,0,IF(BS6<Inputs!$A$37,BS6,IF(AND(BS5<Inputs!$A$37,BS6>Inputs!$A$37),Inputs!$B$37,(BT5^((($B5-Inputs!$B$9+'Equations - Parameters'!$I$26)^('Equations - Parameters'!$F$26+'Equations - Parameters'!$G$26*LN(BO5)))/(($B6-Inputs!$B$9+'Equations - Parameters'!$I$26)^('Equations - Parameters'!$F$26+'Equations - Parameters'!$G$26*LN(BO6))))*EXP('Equations - Parameters'!$H$26*(1-((($B5-Inputs!$B$9+'Equations - Parameters'!$I$26)^('Equations - Parameters'!$F$26+'Equations - Parameters'!$G$26*LN(BO5)))/(($B6-Inputs!$B$9+'Equations - Parameters'!$I$26)^('Equations - Parameters'!$F$26+'Equations - Parameters'!$G$26*LN(BO6))))))))))) -> 107.0133412 | BU6: =+IF($B6="","",IF(Inputs!$H$23=FALSE,0,IF(BT6<Inputs!$A$37,BT6,IF(AND(BT5<Inputs!$A$37,BT6>Inputs!$A$37),Inputs!$B$37,(BU5^((($B5-Inputs!$B$9+'Equations - Parameters'!$I$26)^('Equations - Parameters'!$F$26+'Equations - Parameters'!$G$26*LN(BP5)))/(($B6-Inputs!$B$9+'Equations - Parameters'!$I$26)^('Equations - Parameters'!$F$26+'Equations - Parameters'!$G$26*LN(BP6))))*EXP('Equations - Parameters'!$H$26*(1-((($B5-Inputs!$B$9+'Equations - Parameters'!$I$26)^('Equations - Parameters'!$F$26+'Equations - Parameters'!$G$26*LN(BP5)))/(($B6-Inputs!$B$9+'Equations - Parameters'!$I$26)^('Equations - Parameters'!$F$26+'Equations - Parameters'!$G$26*LN(BP6))))))))))) -> 107.0133412 | BV6: =+IF($B6="","",IF(Inputs!$H$23=FALSE,0,IF(BU6<Inputs!$A$37,BU6,IF(AND(BU5<Inputs!$A$37,BU6>Inputs!$A$37),Inputs!$B$37,(BV5^((($B5-Inputs!$B$9+'Equations - Parameters'!$I$26)^('Equations - Parameters'!$F$26+'Equations - Parameters'!$G$26*LN(BQ5)))/(($B6-Inputs!$B$9+'Equations - Parameters'!$I$26)^('Equations - Parameters'!$F$26+'Equations - Parameters'!$G$26*LN(BQ6))))*EXP('Equations - Parameters'!$H$26*(1-((($B5-Inputs!$B$9+'Equations - Parameters'!$I$26)^('Equations - Parameters'!$F$26+'Equations - Parameters'!$G$26*LN(BQ5)))/(($B6-Inputs!$B$9+'Equations - Parameters'!$I$26)^('Equations - Parameters'!$F$26+'Equations - Parameters'!$G$26*LN(BQ6))))))))))) -> 107.0133412 | BW6: =+IF($B6="","",IF(Inputs!$H$23=FALSE,0,IF(BV6<Inputs!$A$37,BV6,IF(AND(BV5<Inputs!$A$37,BV6>Inputs!$A$37),Inputs!$B$37,(BW5^((($B5-Inputs!$B$9+'Equations - Parameters'!$I$26)^('Equations - Parameters'!$F$26+'Equations - Parameters'!$G$26*LN(BR5)))/(($B6-Inputs!$B$9+'Equations - Parameters'!$I$26)^('Equations - Parameters'!$F$26+'Equations - Parameters'!$G$26*LN(BR6))))*EXP('Equations - Parameters'!$H$26*(1-((($B5-Inputs!$B$9+'Equations - Parameters'!$I$26)^('Equations - Parameters'!$F$26+'Equations - Parameters'!$G$26*LN(BR5)))/(($B6-Inputs!$B$9+'Equations - Parameters'!$I$26)^('Equations - Parameters'!$F$26+'Equations - Parameters'!$G$26*LN(BR6))))))))))) -> 107.0133412 | BX6: 5.755046321 | BY6: 5.755046321 | BZ6: 5.755046321 | CA6: 5.755046321 | CB6: 5.755046321 | CC6: 244.0638765 | CD6: 244.0638765 | CE6: 244.0638765 | CF6: 244.0638765 | CG6: 244.0638765 | CH6: =+IF($B6="","",IF(CL6=0,0,EXP('Equations - Parameters'!$B$21+'Equations - Parameters'!$C$21*LN(BJ6)+'Equations - Parameters'!$D$21*LN($C6)))) -> 0 | CI6: 107.0133412 | CJ6: 107.0133412 | CK6: 1 | CL6: =+IF($B6="","",IF(BS6>Inputs!$A$37,Inputs!$B$37,0)) -> 0 | CM6: 0 | CN6: 0 | CO6: =+IF($B6="","",IF(CL6=0,0,IF(CM6<>0,1-(CJ6/CH6),CO5*EXP(('Equations - Parameters'!$C$24/B6)*($B6-$B5))))) -> 0 | CP6: =+IF($B6="","",IF(CS6=0,0,EXP('Equations - Parameters'!$B$21+'Equations - Parameters'!$C$21*LN(BK6)+'Equations - Parameters'!$D$21*LN(C6)))) -> 0 | CQ6: 107.0133412 | CR6: 1 | CS6: =+IF($B6="","",IF(B6=0,0,IF(BT6>Inputs!$H$37,Inputs!$I$37,IF(CS5>0,Inputs!$I$37,0)))) -> 0 | CT6: 0 | CU6: 0 | CV6: =+IF($B6="","",IF(CS6=0,0,IF(CT6<>0,1-(CQ6/CP6),CV5*EXP(('Equations - Parameters'!$C$24/B6)*($B6-$B5))))) -> 0 | CW6: =+IF($B6="","",IF(CZ6=0,0,EXP('Equations - Parameters'!$B$21+'Equations - Parameters'!$C$21*LN(BL6)+'Equations - Parameters'!$D$21*LN(C6)))) -> 0 | CX6: 107.0133412 | CY6: 0 | CZ6: =+IF($B6="","",IF(B6=0,0,IF(BU6>Inputs!$H$37,Inputs!$I$37,IF(CZ5>0,Inputs!$I$37,0)))) -> 0 | DA6: 0 | DB6: 0 | DC6: =+IF($B6="","",IF(CZ6=0,0,IF(DA6<>0,1-(CX6/CW6),DC5*EXP('Equations - Parameters'!$C$24/B6)*($B6-$B5)))) -> 0 | DD6: =+IF($B6="","",IF(DG6=0,0,EXP('Equations - Parameters'!$B$21+'Equations - Parameters'!$C$21*LN(BM6)+'Equations - Parameters'!$D$21*LN(C6)))) -> 0 | DE6: 107.0133412 | DF6: 0 | DG6: =+IF($B6="","",IF(B6=0,0,IF(BV6>Inputs!$H$37,Inputs!$I$37,IF(DG5>0,Inputs!$I$37,0)))) -> 0 | DH6: 0 | DI6: 0 | DJ6: =+IF($B6="","",IF(DG6=0,0,IF(DH6<>0,1-(DE6/DD6),DJ5*EXP('Equations - Parameters'!$C$24/C6)*($B6-$B5)))) -> 0 | FF6: =+IF($A6+Inputs!$J$14-1>Inputs!$B$6,"",IF($B5=Inputs!$B$6, "",IF($A6=0,Inputs!$J$14,IF(B5=Inputs!$B$6,0,B5+1)))) -> 37 | FG6: =+IF($B6="","",IF($B6=Inputs!$B$15,Inputs!$J$15,4.5+(('Equations - Parameters'!$F$14+(0.5*(Inputs!$J$18-4.5-'Equations - Parameters'!$F$14+SQRT((((Inputs!$J$18-4.5)-'Equations - Parameters'!$F$14))^2+4*'Equations - Parameters'!$G$14*(Inputs!$J$18-4.5)*((50-Inputs!$B$9)^-'Equations - Parameters'!$H$14)))))/(1+('Equations - Parameters'!$G$14/(0.5*(Inputs!$J$18-4.5-'Equations - Parameters'!$F$14+SQRT((((Inputs!$J$18-4.5)-'Equations - Parameters'!$F$14))^2+4*'Equations - Parameters'!$G$14*(Inputs!$J$18-4.5)*((50-Inputs!$B$9)^-'Equations - Parameters'!$H$14))))*(($B6-Inputs!$B$9)^-'Equations - Parameters'!$H$14)))))) -> 58.64497879 | FH6: =+IF($B6="","",IF(Inputs!$H$11=FALSE,D6,IF(Inputs!$H$23=TRUE,BN6,H6))) -> 592.4137681 | FI6: =+IF($B6="","",IF(Inputs!$H$11=FALSE,0,IF(Inputs!$H$23=TRUE,BO6,I6))) -> 592.4137681 | FJ6: =+IF($B6="","",IF(Inputs!$H$11=FALSE,0,IF(Inputs!$H$23=TRUE,BP6,J6))) -> 592.4137681 | FK6: =+IF($B6="","",IF(Inputs!$H$11=FALSE,0,IF(Inputs!$H$23=TRUE,BQ6,K6))) -> 592.4137681 | FL6: =+IF($B6="","",IF(Inputs!$H$11=FALSE,0,IF(Inputs!$H$23=TRUE,BR6,L6))) -> 592.4137681 | FM6: =+IF($B6="","",IF(Inputs!$H$11=FALSE,E6,IF(Inputs!$H$23=TRUE,BS6,M6))) -> 107.0133412 | FN6: =+IF($B6="","",IF(Inputs!$H$11=FALSE,0,IF(Inputs!$H$23=TRUE,BT6,N6))) -> 107.0133412 | FO6: =+IF($B6="","",IF(Inputs!$H$11=FALSE,0,IF(Inputs!$H$23=TRUE,BU6,O6))) -> 107.0133412 | FP6: =+IF($B6="","",IF(Inputs!$H$11=FALSE,0,IF(Inputs!$H$23=TRUE,BV6,P6))) -> 107.0133412 | FQ6: =+IF($B6="","",IF(Inputs!$H$11=FALSE,0,IF(Inputs!$H$23=TRUE,BW6,Q6))) -> 107.0133412 | FR6: =+IF($B6="","",IF(Inputs!$H$11=FALSE,F6,IF(Inputs!$H$23=TRUE,BX6,Y6))) -> 5.755046321 | FS6: =+IF($B6="","",IF(Inputs!$H$11=FALSE,0,IF(Inputs!$H$23=TRUE,BY6,Z6))) -> 5.755046321 | FT6: =+IF($B6="","",IF(Inputs!$H$11=FALSE,0,IF(Inputs!$H$23=TRUE,BZ6,AA6))) -> 5.755046321 | FU6: =+IF($B6="","",IF(Inputs!$H$11=FALSE,0,IF(Inputs!$H$23=TRUE,CA6,AB6))) -> 5.755046321 | FV6: =+IF($B6="","",IF(Inputs!$H$11=FALSE,0,IF(Inputs!$H$23=TRUE,CB6,AC6))) -> 5.755046321 | FW6: =+IF($B6="","",IF(Inputs!$H$11=FALSE,G6,IF(Inputs!$H$23=TRUE,CC6,AD6))) -> 244.0638765 | FX6: =+IF($B6="","",IF(Inputs!$H$11=FALSE,0,IF(Inputs!$H$23=TRUE,CD6,AE6))) -> 244.0638765 | FY6: =+IF($B6="","",IF(Inputs!$H$11=FALSE,0,IF(Inputs!$H$23=TRUE,CE6,AF6))) -> 244.0638765 | FZ6: =+IF($B6="","",IF(Inputs!$H$11=FALSE,0,IF(Inputs!$H$23=TRUE,CF6,AG6))) -> 244.0638765 | GA6: =+IF($B6="","",IF(Inputs!$H$11=FALSE,0,IF(Inputs!$H$23=TRUE,CG6,AH6))) -> 244.0638765 | GF6: =+IF($B6="","",IF(FM6=0,0,IF($B6<3,0,EXP('Equations - Parameters'!$F$32+'Equations - Parameters'!$G$32/$B6 + 'Equations - Parameters'!$H$32*LN($C6)+'Equations - Parameters'!$I$32/Inputs!$J$18 + 'Equations - Parameters'!$J$32*LN(FH6) + 'Equations - Parameters'!$K$32*LN(FH6)/$B6 + 'Equations - Parameters'!$L$32*LN(FM6))))) -> 3173.311773 | GG6: =+IF($B6="","",IF(Inputs!$H$11=FALSE,0,IF(FN6=0,0,IF($B6<3,0,EXP('Equations - Parameters'!$F$32+'Equations - Parameters'!$G$32/$B6+'Equations - Parameters'!$H$32*LN($C6)+'Equations - Parameters'!$I$32/Inputs!$J$18+'Equations - Parameters'!$J$32*LN(FI6)+'Equations - Parameters'!$K$32*LN(FI6)/$B6+'Equations - Parameters'!$L$32*LN(FN6)))))) -> 3173.311773 | GH6: =+IF($B6="","",IF(Inputs!$H$11=FALSE,0,IF(FO6=0,0,IF($B6<3,0,EXP('Equations - Parameters'!$F$32+'Equations - Parameters'!$G$32/$B6+'Equations - Parameters'!$H$32*LN($C6)+'Equations - Parameters'!$I$32/Inputs!$J$18+'Equations - Parameters'!$J$32*LN(FJ6)+'Equations - Parameters'!$K$32*LN(FJ6)/$B6+'Equations - Parameters'!$L$32*LN(FO6)))))) -> 3173.311773 | GI6: =+IF($B6="","",IF(Inputs!$H$11=FALSE,0,IF(FP6=0,0,IF($B6<3,0,EXP('Equations - Parameters'!$F$32+'Equations - Parameters'!$G$32/$B6+'Equations - Parameters'!$H$32*LN($C6)+'Equations - Parameters'!$I$32/Inputs!$J$18+'Equations - Parameters'!$J$32*LN(FK6)+'Equations - Parameters'!$K$32*LN(FK6)/$B6+'Equations - Parameters'!$L$32*LN(FP6)))))) -> 3173.311773 | GJ6: =+IF($B6="","",IF(Inputs!$H$11=FALSE,0,IF(FQ6=0,0,IF($B6<3,0,EXP('Equations - Parameters'!$F$32+'Equations - Parameters'!$G$32/$B6+'Equations - Parameters'!$H$32*LN($C6)+'Equations - Parameters'!$I$32/Inputs!$J$18+'Equations - Parameters'!$J$32*LN(FL6)+'Equations - Parameters'!$K$32*LN(FL6)/$B6+'Equations - Parameters'!$L$32*LN(FQ6)))))) -> 3173.311773 | GK6: =+IF($B6="","",IF(FM6=0,0,IF($B6<3,0,EXP('Equations - Parameters'!$F$33+'Equations - Parameters'!$G$33/$B6 + 'Equations - Parameters'!$H$33*LN($C6)+'Equations - Parameters'!$I$33/Inputs!$J$18 + 'Equations - Parameters'!$J$33*LN(FH6) + 'Equations - Parameters'!$K$33*LN(FH6)/$B6 + 'Equations - Parameters'!$L$33*LN(FM6))))) -> 2371.193456 | GL6: =+IF($B6="","",IF(Inputs!$H$11=FALSE,0,IF(FN6=0,0,IF($B6<3,0,EXP('Equations - Parameters'!$F$33+'Equations - Parameters'!$G$33/$B6+'Equations - Parameters'!$H$33*LN($C6)+'Equations - Parameters'!$I$33/Inputs!$J$18+'Equations - Parameters'!$J$33*LN(FI6)+'Equations - Parameters'!$K$33*LN(FI6)/$B6+'Equations - Parameters'!$L$33*LN(FN6)))))) -> 2371.193456 | GM6: =+IF($B6="","",IF(Inputs!$H$11=FALSE,0,IF(FO6=0,0,IF($B6<3,0,EXP('Equations - Parameters'!$F$33+'Equations - Parameters'!$G$33/$B6+'Equations - Parameters'!$H$33*LN($C6)+'Equations - Parameters'!$I$33/Inputs!$J$18+'Equations - Parameters'!$J$33*LN(FJ6)+'Equations - Parameters'!$K$33*LN(FJ6)/$B6+'Equations - Parameters'!$L$33*LN(FO6)))))) -> 2371.193456 | GN6: =+IF($B6="","",IF(Inputs!$H$11=FALSE,0,IF(FP6=0,0,IF($B6<3,0,EXP('Equations - Parameters'!$F$33+'Equations - Parameters'!$G$33/$B6+'Equations - Parameters'!$H$33*LN($C6)+'Equations - Parameters'!$I$33/Inputs!$J$18+'Equations - Parameters'!$J$33*LN(FK6)+'Equations - Parameters'!$K$33*LN(FK6)/$B6+'Equations - Parameters'!$L$33*LN(FP6)))))) -> 2371.193456 | GO6: =+IF($B6="","",IF(Inputs!$H$11=FALSE,0,IF(FQ6=0,0,IF($B6<3,0,EXP('Equations - Parameters'!$F$33+'Equations - Parameters'!$G$33/$B6+'Equations - Parameters'!$H$33*LN($C6)+'Equations - Parameters'!$I$33/Inputs!$J$18+'Equations - Parameters'!$J$33*LN(FL6)+'Equations - Parameters'!$K$33*LN(FL6)/$B6+'Equations - Parameters'!$L$33*LN(FQ6)))))) -> 2371.193456 | GP6: 0 | GQ6: 0 | GR6: 0 | GS6: 0 | GT6: 0 | GU6: 0 | GV6: =+IF($B6="","",IF(Inputs!$H$11=FALSE,0,IF(AND(Inputs!$H$22=TRUE,$B6=Inputs!$B$30),$B6,IF(AND(Inputs!$H$23=TRUE,$B6<>Inputs!$B$6),CN6,0)))) -> 0 | GW6: =+IF($B6="","",IF(Inputs!$H$11=FALSE,0,IF(AND(Inputs!$H$22=TRUE,$B6<>Inputs!$B$6),GV6+AO6,IF(AND(Inputs!$H$23=TRUE,$B6<>Inputs!$B$6),GV6+CU6,0)))) -> 0 | GX6: =+IF($B6="","",IF(Inputs!$H$11=FALSE,0,IF(AND(Inputs!$H$22=TRUE,$B6<>Inputs!$B$6),GW6+AR6,IF(AND(Inputs!$H$23=TRUE,$B6<>Inputs!$B$6),GW6+DB6,0)))) -> 0 | GY6: =+IF($B6="","",IF(Inputs!$H$11=FALSE,0,IF(AND(Inputs!$H$22=TRUE,$B6<>Inputs!$B$6),GX6+AU6,IF(AND(Inputs!$H$23=TRUE,$B6<>Inputs!$B$6),GX6+DI6,0)))) -> 0 | GZ6: =+IF($B6="","",IF(B6=Inputs!$B$6,FM6,0)) -> 0 | HA6: =+IF($B6="","",IF(FN6=0,0,IF(B6=Inputs!$B$6,FN6,IF(AND(Inputs!$H$22=TRUE,B6<>Inputs!$B$6),S6,IF(AND(Inputs!$H$23=TRUE,B6<>Inputs!$B$6),CM6,0))))) -> 0 | HB6: =+IF($B6="","",IF(FO6=0,0,IF(B6=Inputs!$B$6,FO6,IF(AND(Inputs!$H$22=TRUE,B6<>Inputs!$B$6),HA6+T6,IF(AND(Inputs!$H$23=TRUE,B6<>Inputs!$B$6),HA6+CT6,0))))) -> 0 | HC6: =+IF($B6="","",IF(FP6=0,0,IF(B6=Inputs!$B$6,FP6,IF(AND(Inputs!$H$22=TRUE,B6<>Inputs!$B$6),HB6+U6,IF(AND(Inputs!$H$23=TRUE,B6<>Inputs!$B$6),HB6+DA6,0))))) -> 0 | HD6: =+IF($B6="","",IF(FQ6=0,0,IF(B6=Inputs!$B$6,FQ6,IF(AND(Inputs!$H$22=TRUE,B6<>Inputs!$B$6),HC6+V6,IF(AND(Inputs!$H$23=TRUE,B6<>Inputs!$B$6),HC6+DH6,0))))) -> 0 | HE6: 0 | HF6: 0 | HG6: 0 | HH6: 0 | HI6: 0 | HJ6: 0 | HK6: 0 | HL6: 0 | HM6: 0 | HN6: 0 | HO6: =+IF($B6="","",IF(B6=Inputs!$B$6,FH6,0)) -> 0 | HP6: =+IF($B6="","",IF(B6=Inputs!$B$6,FI6,IF(HA6=0,0,FH6-FI6))) -> 0 | HQ6: =+IF($B6="","",IF(B6=Inputs!$B$6,FJ6,IF(HB6=0,0,HP6+FI6-FJ6))) -> 0 | HR6: =+IF($B6="","",IF(B6=Inputs!$B$6,FK6,IF(HC6=0,0,HQ6+FJ6-FK6))) -> 0 | HS6: =+IF($B6="","",IF(B6=Inputs!$B$6,FL6,IF(HD6=0,0,HR6+FK6-FL6))) -> 0 | HT6: 0 | HU6: 0 | HV6: 0 | HW6: 0 | HX6: 0 | HY6: 0 | HZ6: 0 | IA6: 0 | IB6: 0 | IC6: =+IF($B6="","",IF(HX6=0,0,HX6-HS6)) -> 0 | ID6: =+IF($B6="","",IF($B6=Inputs!$B$6,GF6,0)) -> 0 | IE6: =+IF($B6="","",IF($B6=Inputs!$B$6,GG6,IF(HA6=0,0,GF6-GG6))) -> 0 | IF6: =+IF($B6="","",IF($B6=Inputs!$B$6,GH6,IF(HB6=0,0,IE6+GG6-GH6))) -> 0 | IG6: =+IF($B6="","",IF($B6=Inputs!$B$6,GI6,IF(HC6=0,0,IF6+GH6-GI6))) -> 0 | IH6: =+IF($B6="","",IF($B6=Inputs!$B$6,GJ6,IF(HD6=0,0,IG6+GI6-GJ6))) -> 0 | II6: 0 | IJ6: 0 | IK6: 0 | IL6: 0 | IM6: 0 | IN6: 0 | IO6: =+IF($B6="","",IF(IJ6=0,0,IJ6-IE6)) -> 0 | IP6: =+IF($B6="","",IF(IK6=0,0,IK6-IF6)) -> 0 | IQ6: =+IF($B6="","",IF(IL6=0,0,IL6-IG6)) -> 0 | IR6: =+IF($B6="","",IF(IM6=0,0,IM6-IH6)) -> 0 | IS6: =+IF($B6="","",IF($B6=Inputs!$B$6,GK6,0)) -> 0 | IT6: =+IF($B6="","",IF($B6=Inputs!$B$6,GL6,IF(HP6=0,0,GK6-GL6))) -> 0 | IU6: =+IF($B6="","",IF($B6=Inputs!$B$6,GM6,IF(HQ6=0,0,IT6+GL6-GM6))) -> 0 | IV6: =+IF($B6="","",IF($B6=Inputs!$B$6,GN6,IF(HR6=0,0,IU6+GM6-GN6))) -> 0 | IW6: =+IF($B6="","",IF($B6=Inputs!$B$6,GO6,IF(HS6=0,0,IV6+GN6-GO6))) -> 0 | IX6: 0 | IY6: 0 | IZ6: 0 | JA6: 0 | JB6: 0 | JC6: 0 | JD6: 0 | JE6: 0 | JF6: 0 | JG6: 0 | JH6: 0 | JI6: 0 | JJ6: 0 | JK6: 0 | JL6: 0 | JM6: =+IF($B6="","",IF($B6<2,0,GF6*EXP(('Equations - Parameters'!$H$48*('Equations - Parameters'!$F$155*2.54/(FR6*2.54))^'Equations - Parameters'!$I$48)+('Equations - Parameters'!$J$48*((FH6*2.47109)^'Equations - Parameters'!$K$48)*(('Equations - Parameters'!$G$155*2.54)/(FR6*2.54))^'Equations - Parameters'!$L$48)))) -> 9.80384591e-10 | JN6: =+IF($B6="","",IF($B6<2,0,GK6*EXP(('Equations - Parameters'!$H$48*('Equations - Parameters'!$F$156*2.54/(FR6*2.54))^'Equations - Parameters'!$I$48)+('Equations - Parameters'!$J$48*((FH6*2.47109)^'Equations - Parameters'!$K$48)*(('Equations - Parameters'!$G$156*2.54)/(FR6*2.54))^'Equations - Parameters'!$L$48))-KQ6)) -> 24.2058498 | JO6: =+IF($B6="","",IF($B6<2,0,GK6*EXP(('Equations - Parameters'!$H$48*('Equations - Parameters'!$F$157*2.54/(FR6*2.54))^'Equations - Parameters'!$I$48)+('Equations - Parameters'!$J$48*((FH6*2.47109)^'Equations - Parameters'!$K$48)*(('Equations - Parameters'!$G$157*2.54)/(FR6*2.54))^'Equations - Parameters'!$L$48))-KR6-KQ6)) -> 663.1065966 | JP6: =+IF($B6="","",IF(GG6=0,0,IF($B6<2,0,IF(Inputs!$H$11=FALSE,0,GG6*EXP(('Equations - Parameters'!$H$48*('Equations - Parameters'!$F$155*2.54/(FS6*2.54))^'Equations - Parameters'!$I$48)+('Equations - Parameters'!$J$48*((FI6*2.47109)^'Equations - Parameters'!$K$48)*(('Equations - Parameters'!$G$155*2.54)/(FS6*2.54))^'Equations - Parameters'!$L$48)))))) -> 9.80384591e-10 | JQ6: =+IF($B6="","",IF(GG6=0,0,IF($B6<2,0,IF(Inputs!$H$11=FALSE,0,GL6*EXP(('Equations - Parameters'!$H$48*('Equations - Parameters'!$F$156*2.54/(FS6*2.54))^'Equations - Parameters'!$I$48)+('Equations - Parameters'!$J$48*((FI6*2.47109)^'Equations - Parameters'!$K$48)*(('Equations - Parameters'!$G$156*2.54)/(FS6*2.54))^'Equations - Parameters'!$L$48))-JP6)))) -> 24.2058498 | JR6: =+IF($B6="","",IF(GG6=0,0,IF($B6<2,0,IF(Inputs!$H$11=FALSE,0,GL6*EXP(('Equations - Parameters'!$H$48*('Equations - Parameters'!$F$157*2.54/(FS6*2.54))^'Equations - Parameters'!$I$48)+('Equations - Parameters'!$J$48*((FI6*2.47109)^'Equations - Parameters'!$K$48)*(('Equations - Parameters'!$G$157*2.54)/(FS6*2.54))^'Equations - Parameters'!$L$48))-JP6-JQ6)))) -> 661.9651789 | JS6: =+IF($B6="","",IF(GH6=0,0,IF($B6<2,0,IF(Inputs!$H$11=FALSE,0,GH6*EXP(('Equations - Parameters'!$H$48*('Equations - Parameters'!$F$155*2.54/(FT6*2.54))^'Equations - Parameters'!$I$48)+('Equations - Parameters'!$J$48*((FJ6*2.47109)^'Equations - Parameters'!$K$48)*(('Equations - Parameters'!$G$155*2.54)/(FT6*2.54))^'Equations - Parameters'!$L$48)))))) -> 9.80384591e-10 | JT6: =+IF($B6="","",IF(GH6=0,0,IF($B6<2,0,IF(Inputs!$H$11=FALSE,0,GM6*EXP(('Equations - Parameters'!$H$48*('Equations - Parameters'!$F$156*2.54/(FT6*2.54))^'Equations - Parameters'!$I$48)+('Equations - Parameters'!$J$48*((FJ6*2.47109)^'Equations - Parameters'!$K$48)*(('Equations - Parameters'!$G$156*2.54)/(FT6*2.54))^'Equations - Parameters'!$L$48))-JS6)))) -> 24.2058498 | JU6: =+IF($B6="","",IF(GH6=0,0,IF($B6<2,0,IF(Inputs!$H$11=FALSE,0,GM6*EXP(('Equations - Parameters'!$H$48*('Equations - Parameters'!$F$157*2.54/(FT6*2.54))^'Equations - Parameters'!$I$48)+('Equations - Parameters'!$J$48*((FJ6*2.47109)^'Equations - Parameters'!$K$48)*(('Equations - Parameters'!$G$157*2.54)/(FT6*2.54))^'Equations - Parameters'!$L$48))-JS6-JT6)))) -> 661.9651789 | JV6: =+IF($B6="","",IF(GI6=0,0,IF($B6<2,0,IF(Inputs!$H$11=FALSE,0,GI6*EXP(('Equations - Parameters'!$H$48*('Equations - Parameters'!$F$155*2.54/(FU6*2.54))^'Equations - Parameters'!$I$48)+('Equations - Parameters'!$J$48*((FK6*2.47109)^'Equations - Parameters'!$K$48)*(('Equations - Parameters'!$G$155*2.54)/(FU6*2.54))^'Equations - Parameters'!$L$48)))))) -> 9.80384591e-10 | JW6: =+IF($B6="","",IF(GI6=0,0,IF($B6<2,0,IF(Inputs!$H$11=FALSE,0,GN6*EXP(('Equations - Parameters'!$H$48*('Equations - Parameters'!$F$156*2.54/(FU6*2.54))^'Equations - Parameters'!$I$48)+('Equations - Parameters'!$J$48*((FK6*2.47109)^'Equations - Parameters'!$K$48)*(('Equations - Parameters'!$G$156*2.54)/(FU6*2.54))^'Equations - Parameters'!$L$48))-JV6)))) -> 24.2058498 | JX6: =+IF($B6="","",IF(GI6=0,0,IF($B6<2,0,IF(Inputs!$H$11=FALSE,0,GN6*EXP(('Equations - Parameters'!$H$48*('Equations - Parameters'!$F$157*2.54/(FU6*2.54))^'Equations - Parameters'!$I$48)+('Equations - Parameters'!$J$48*((FK6*2.47109)^'Equations - Parameters'!$K$48)*(('Equations - Parameters'!$G$157*2.54)/(FU6*2.54))^'Equations - Parameters'!$L$48))-JV6-JW6)))) -> 661.9651789 | JY6: =+IF($B6="","",IF(GJ6=0,0,IF($B6<2,0,IF(Inputs!$H$11=FALSE,0,GJ6*EXP(('Equations - Parameters'!$H$48*('Equations - Parameters'!$F$155*2.54/(FV6*2.54))^'Equations - Parameters'!$I$48)+('Equations - Parameters'!$J$48*((FL6*2.47109)^'Equations - Parameters'!$K$48)*(('Equations - Parameters'!$G$155*2.54)/(FV6*2.54))^'Equations - Parameters'!$L$48)))))) -> 9.80384591e-10 | JZ6: =+IF($B6="","",IF(GJ6=0,0,IF($B6<2,0,IF(Inputs!$H$11=FALSE,0,GO6*EXP(('Equations - Parameters'!$H$48*('Equations - Parameters'!$F$156*2.54/(FV6*2.54))^'Equations - Parameters'!$I$48)+('Equations - Parameters'!$J$48*((FL6*2.47109)^'Equations - Parameters'!$K$48)*(('Equations - Parameters'!$G$156*2.54)/(FV6*2.54))^'Equations - Parameters'!$L$48))-JY6)))) -> 24.2058498 | KA6: =+IF($B6="","",IF(GJ6=0,0,IF($B6<2,0,IF(Inputs!$H$11=FALSE,0,GO6*EXP(('Equations - Parameters'!$H$48*('Equations - Parameters'!$F$157*2.54/(FV6*2.54))^'Equations - Parameters'!$I$48)+('Equations - Parameters'!$J$48*((FL6*2.47109)^'Equations - Parameters'!$K$48)*(('Equations - Parameters'!$G$157*2.54)/(FV6*2.54))^'Equations - Parameters'!$L$48))-JY6-JZ6)))) -> 661.9651789 | KB6: =+IF($B6="","",IF(ID6=0,0,ID6*EXP('Equations - Parameters'!$H$48*('Equations - Parameters'!$F$155/(JH6))^'Equations - Parameters'!$I$48+'Equations - Parameters'!$J$48*(HO6*2.47105)^'Equations - Parameters'!$K$48*('Equations - Parameters'!$G$155/(JH6))^'Equations - Parameters'!$L$48))) -> 0 | KC6: =+IF($B6="","",IF(ID6=0,0,ID6*EXP('Equations - Parameters'!$H$48*('Equations - Parameters'!$F$156/(JH6))^'Equations - Parameters'!$I$48+'Equations - Parameters'!$J$48*(HO6*2.47105)^'Equations - Parameters'!$K$48*('Equations - Parameters'!$G$156/(JH6))^'Equations - Parameters'!$L$48)-KB6)) -> 0 | KD6: =+IF($B6="","",IF(ID6=0,0,ID6*EXP('Equations - Parameters'!$H$48*('Equations - Parameters'!$F$157/(JH6))^'Equations - Parameters'!$I$48+'Equations - Parameters'!$J$48*(HO6*2.47105)^'Equations - Parameters'!$K$48*('Equations - Parameters'!$G$157/(JH6))^'Equations - Parameters'!$L$48)-KB6-KC6)) -> 0 | KE6: =+IF($B6="","",IF(IE6=0,0,IE6*EXP('Equations - Parameters'!$H$48*('Equations - Parameters'!$F$155/(JI6))^'Equations - Parameters'!$I$48+'Equations - Parameters'!$J$48*(HP6*2.47105)^'Equations - Parameters'!$K$48*('Equations - Parameters'!$G$155/(JI6))^'Equations - Parameters'!$L$48))) -> 0 | KF6: =+IF($B6="","",IF(IE6=0,0,IE6*EXP('Equations - Parameters'!$H$48*('Equations - Parameters'!$F$156/(JI6))^'Equations - Parameters'!$I$48+'Equations - Parameters'!$J$48*(HP6*2.47105)^'Equations - Parameters'!$K$48*('Equations - Parameters'!$G$156/(JI6))^'Equations - Parameters'!$L$48)-KE6)) -> 0 | KG6: =+IF($B6="","",IF(IE6=0,0,IE6*EXP('Equations - Parameters'!$H$48*('Equations - Parameters'!$F$157/(JI6))^'Equations - Parameters'!$I$48+'Equations - Parameters'!$J$48*(HP6*2.47105)^'Equations - Parameters'!$K$48*('Equations - Parameters'!$G$157/(JI6))^'Equations - Parameters'!$L$48)-KE6-KF6)) -> 0 | KH6: =+IF($B6="","",IF(IF6=0,0,IF6*EXP('Equations - Parameters'!$H$48*('Equations - Parameters'!$F$155/(JJ6))^'Equations - Parameters'!$I$48+'Equations - Parameters'!$J$48*(HQ6*2.47105)^'Equations - Parameters'!$K$48*('Equations - Parameters'!$G$155/(JJ6))^'Equations - Parameters'!$L$48))) -> 0 | KI6: =+IF($B6="","",IF(IF6=0,0,IF6*EXP('Equations - Parameters'!$H$48*('Equations - Parameters'!$F$156/(JJ6))^'Equations - Parameters'!$I$48+'Equations - Parameters'!$J$48*(HQ6*2.47105)^'Equations - Parameters'!$K$48*('Equations - Parameters'!$G$156/(JJ6))^'Equations - Parameters'!$L$48)-KH6)) -> 0 | KJ6: =+IF($B6="","",IF(IF6=0,0,IF6*EXP('Equations - Parameters'!$H$48*('Equations - Parameters'!$F$157/(JJ6))^'Equations - Parameters'!$I$48+'Equations - Parameters'!$J$48*(HQ6*2.47105)^'Equations - Parameters'!$K$48*('Equations - Parameters'!$G$157/(JJ6))^'Equations - Parameters'!$L$48)-KH6-KI6)) -> 0 | KK6: =+IF($B6="","",IF(IG6=0,0,IG6*EXP('Equations - Parameters'!$H$48*('Equations - Parameters'!$F$155/(JK6))^'Equations - Parameters'!$I$48+'Equations - Parameters'!$J$48*(HR6*2.47105)^'Equations - Parameters'!$K$48*('Equations - Parameters'!$G$155/(JK6))^'Equations - Parameters'!$L$48))) -> 0 | KL6: =+IF($B6="","",IF(IG6=0,0,IG6*EXP('Equations - Parameters'!$H$48*('Equations - Parameters'!$F$156/(JK6))^'Equations - Parameters'!$I$48+'Equations - Parameters'!$J$48*(HR6*2.47105)^'Equations - Parameters'!$K$48*('Equations - Parameters'!$G$156/(JK6))^'Equations - Parameters'!$L$48)-KK6)) -> 0 | KM6: =+IF($B6="","",IF(IG6=0,0,IG6*EXP('Equations - Parameters'!$H$48*('Equations - Parameters'!$F$157/(JK6))^'Equations - Parameters'!$I$48+'Equations - Parameters'!$J$48*(HR6*2.47105)^'Equations - Parameters'!$K$48*('Equations - Parameters'!$G$157/(JK6))^'Equations - Parameters'!$L$48)-KK6-KL6)) -> 0 | KN6: =+IF($B6="","",IF(IH6=0,0,IH6*EXP('Equations - Parameters'!$H$48*('Equations - Parameters'!$F$155/(JL6))^'Equations - Parameters'!$I$48+'Equations - Parameters'!$J$48*(HS6*2.47105)^'Equations - Parameters'!$K$48*('Equations - Parameters'!$G$155/(JL6))^'Equations - Parameters'!$L$48))) -> 0 | KO6: =+IF($B6="","",IF(IH6=0,0,IH6*EXP('Equations - Parameters'!$H$48*('Equations - Parameters'!$F$156/(JL6))^'Equations - Parameters'!$I$48+'Equations - Parameters'!$J$48*(HS6*2.47105)^'Equations - Parameters'!$K$48*('Equations - Parameters'!$G$156/(JL6))^'Equations - Parameters'!$L$48)-KN6)) -> 0 | KP6: =+IF($B6="","",IF(IH6=0,0,IH6*EXP('Equations - Parameters'!$H$48*('Equations - Parameters'!$F$157/(JL6))^'Equations - Parameters'!$I$48+'Equations - Parameters'!$J$48*(HS6*2.47105)^'Equations - Parameters'!$K$48*('Equations - Parameters'!$G$157/(JL6))^'Equations - Parameters'!$L$48)-KN6-KO6)) -> 0 | KQ6: =+IF($B6="","",IF($B6<2,0,GK6*EXP(('Equations - Parameters'!$H$49*('Equations - Parameters'!$F$155*2.54/(FR6*2.54))^'Equations - Parameters'!$I$49)+('Equations - Parameters'!$J$49*((FH6*2.47109)^'Equations - Parameters'!$K$49)*(('Equations - Parameters'!$G$155*2.54)/(FR6*2.54))^'Equations - Parameters'!$L$49)))) -> 5.045132232e-10 | KR6: =+IF($B6="","",IF($B6<2,0,GK6*EXP(('Equations - Parameters'!$H$49*('Equations - Parameters'!$F$156*2.54/(FR6*2.54))^'Equations - Parameters'!$I$49)+('Equations - Parameters'!$J$49*((FH6*2.47109)^'Equations - Parameters'!$K$49)*(('Equations - Parameters'!$G$156*2.54)/(FR6*2.54))^'Equations - Parameters'!$L$49))-KQ6)) -> 23.06443205 | KS6: =+IF($B6="","",IF($B6<2,0,GK6*EXP(('Equations - Parameters'!$H$49*('Equations - Parameters'!$F$157*2.54/(FR6*2.54))^'Equations - Parameters'!$I$49)+('Equations - Parameters'!$J$49*((FH6*2.47109)^'Equations - Parameters'!$K$49)*(('Equations - Parameters'!$G$157*2.54)/(FR6*2.54))^'Equations - Parameters'!$L$49))-KR6-KQ6)) -> 650.7796371 | KT6: =+IF($B6="","",IF(GL6=0,0,IF(Inputs!$H$11=FALSE,0,IF($B6<2,0,GL6*EXP(('Equations - Parameters'!$H$49*('Equations - Parameters'!$F$155/(FS6))^'Equations - Parameters'!$I$49)+('Equations - Parameters'!$J$49*((FI6*2.47109)^'Equations - Parameters'!$K$49)*('Equations - Parameters'!$G$155/(FS6))^'Equations - Parameters'!$L$49)))))) -> 5.045132232e-10 | KU6: =+IF($B6="","",IF(GL6=0,0,IF(Inputs!$H$11=FALSE,0,IF($B6<2,0,GL6*EXP('Equations - Parameters'!$H$49*('Equations - Parameters'!$F$156/(FS6))^'Equations - Parameters'!$I$49+'Equations - Parameters'!$J$49*((FI6*2.47109)^'Equations - Parameters'!$K$49)*('Equations - Parameters'!$G$156/(FS6))^'Equations - Parameters'!$L$49)-KT6)))) -> 23.06443205 | KV6: =+IF($B6="","",IF(GL6=0,0,IF(Inputs!$H$11=FALSE,0,IF(B6<2,0,GL6*EXP('Equations - Parameters'!$H$49*('Equations - Parameters'!$F$157/(FS6))^'Equations - Parameters'!$I$49+'Equations - Parameters'!$J$49*((FI6*2.47109)^'Equations - Parameters'!$K$49)*('Equations - Parameters'!$G$157/(FS6))^'Equations - Parameters'!$L$49)-KU6-KT6)))) -> 650.7796371 | KW6: =+IF($B6="","",IF(GM6=0,0,IF(Inputs!$H$11=FALSE,0,IF($B6<2,0,GM6*EXP(('Equations - Parameters'!$H$49*('Equations - Parameters'!$F$155/(FT6))^'Equations - Parameters'!$I$49)+('Equations - Parameters'!$J$49*((FJ6*2.47109)^'Equations - Parameters'!$K$49)*('Equations - Parameters'!$G$155/(FT6))^'Equations - Parameters'!$L$49)))))) -> 5.045132232e-10 | KX6: =+IF($B6="","",IF(GM6=0,0,IF(Inputs!$H$11=FALSE,0,IF($B6<2,0,GM6*EXP('Equations - Parameters'!$H$49*('Equations - Parameters'!$F$156/(FT6))^'Equations - Parameters'!$I$49+'Equations - Parameters'!$J$49*((FJ6*2.47109)^'Equations - Parameters'!$K$49)*('Equations - Parameters'!$G$156/(FT6))^'Equations - Parameters'!$L$49)-KW6)))) -> 23.06443205 | KY6: =+IF($B6="","",IF(GM6=0,0,IF(Inputs!$H$11=FALSE,0,IF(B6<2,0,GM6*EXP('Equations - Parameters'!$H$49*('Equations - Parameters'!$F$157/(FT6))^'Equations - Parameters'!$I$49+'Equations - Parameters'!$J$49*((FJ6*2.47109)^'Equations - Parameters'!$K$49)*('Equations - Parameters'!$G$157/(FT6))^'Equations - Parameters'!$L$49)-KX6-KW6)))) -> 650.7796371 | KZ6: =+IF($B6="","",IF(GN6=0,0,IF(Inputs!$H$11=FALSE,0,IF($B6<2,0,GN6*EXP(('Equations - Parameters'!$H$49*('Equations - Parameters'!$F$155/(FU6))^'Equations - Parameters'!$I$49)+('Equations - Parameters'!$J$49*((FK6*2.47109)^'Equations - Parameters'!$K$49)*('Equations - Parameters'!$G$155/(FU6))^'Equations - Parameters'!$L$49)))))) -> 5.045132232e-10 | LA6: =+IF($B6="","",IF(GN6=0,0,IF(Inputs!$H$11=FALSE,0,IF($B6<2,0,GN6*EXP('Equations - Parameters'!$H$49*('Equations - Parameters'!$F$156/(FU6))^'Equations - Parameters'!$I$49+'Equations - Parameters'!$J$49*((FK6*2.47109)^'Equations - Parameters'!$K$49)*('Equations - Parameters'!$G$156/(FU6))^'Equations - Parameters'!$L$49)-KZ6)))) -> 23.06443205 | LB6: =+IF($B6="","",IF(GN6=0,0,IF(Inputs!$H$11=FALSE,0,IF(B6<2,0,GN6*EXP('Equations - Parameters'!$H$49*('Equations - Parameters'!$F$157/(FU6))^'Equations - Parameters'!$I$49+'Equations - Parameters'!$J$49*((FK6*2.47109)^'Equations - Parameters'!$K$49)*('Equations - Parameters'!$G$157/(FU6))^'Equations - Parameters'!$L$49)-LA6-KZ6)))) -> 650.7796371 | LC6: =+IF($B6="","",IF(GO6=0,0,IF(Inputs!$H$11=FALSE,0,IF($B6<2,0,GO6*EXP(('Equations - Parameters'!$H$49*('Equations - Parameters'!$F$155/(FV6))^'Equations - Parameters'!$I$49)+('Equations - Parameters'!$J$49*((FL6*2.47109)^'Equations - Parameters'!$K$49)*('Equations - Parameters'!$G$155/(FV6))^'Equations - Parameters'!$L$49)))))) -> 5.045132232e-10 | LD6: =+IF($B6="","",IF(GO6=0,0,IF(Inputs!$H$11=FALSE,0,IF($B6<2,0,GO6*EXP('Equations - Parameters'!$H$49*('Equations - Parameters'!$F$156/(FV6))^'Equations - Parameters'!$I$49+'Equations - Parameters'!$J$49*((FL6*2.47109)^'Equations - Parameters'!$K$49)*('Equations - Parameters'!$G$156/(FV6))^'Equations - Parameters'!$L$49)-LC6)))) -> 23.06443205 | LE6: =+IF($B6="","",IF(GO6=0,0,IF(Inputs!$H$11=FALSE,0,IF(B6<2,0,GO6*EXP('Equations - Parameters'!$H$49*('Equations - Parameters'!$F$157/(FV6))^'Equations - Parameters'!$I$49+'Equations - Parameters'!$J$49*((FL6*2.47109)^'Equations - Parameters'!$K$49)*('Equations - Parameters'!$G$157/(FV6))^'Equations - Parameters'!$L$49)-LD6-LC6)))) -> 650.7796371 | LF6: =+IF($B6="","",IF(IS6=0,0,IS6*EXP('Equations - Parameters'!$H$49*('Equations - Parameters'!$F$155/(JH6))^'Equations - Parameters'!$I$49+'Equations - Parameters'!$J$49*(HO6*2.47105)^'Equations - Parameters'!$K$49*('Equations - Parameters'!$G$155/(JH6))^'Equations - Parameters'!$L$49))) -> 0 | LG6: =+IF($B6="","",IF(IS6=0,0,IS6*EXP('Equations - Parameters'!$H$49*('Equations - Parameters'!$F$156/(JH6))^'Equations - Parameters'!$I$49+'Equations - Parameters'!$J$49*(HO6*2.47105)^'Equations - Parameters'!$K$49*('Equations - Parameters'!$G$156/(JH6))^'Equations - Parameters'!$L$49)-LF6)) -> 0 | LH6: =+IF($B6="","",IF(IS6=0,0,IS6*EXP('Equations - Parameters'!$H$49*('Equations - Parameters'!$F$157/(JH6))^'Equations - Parameters'!$I$49+'Equations - Parameters'!$J$49*(HO6*2.47105)^'Equations - Parameters'!$K$49*('Equations - Parameters'!$G$157/(JH6))^'Equations - Parameters'!$L$49)-LG6-LF6)) -> 0 | LI6: =+IF($B6="","",IF(IT6=0,0,IT6*EXP('Equations - Parameters'!$H$49*('Equations - Parameters'!$F$155/(JI6))^'Equations - Parameters'!$I$49+'Equations - Parameters'!$J$49*(HP6*2.47105)^'Equations - Parameters'!$K$49*('Equations - Parameters'!$G$155/(JI6))^'Equations - Parameters'!$L$49))) -> 0 | LJ6: =+IF($B6="","",IF(IT6=0,0,IT6*EXP('Equations - Parameters'!$H$49*('Equations - Parameters'!$F$156/(JI6))^'Equations - Parameters'!$I$49+'Equations - Parameters'!$J$49*(HP6*2.47105)^'Equations - Parameters'!$K$49*('Equations - Parameters'!$G$156/(JI6))^'Equations - Parameters'!$L$49)-LI6)) -> 0 | LK6: =+IF($B6="","",IF(IT6=0,0,IT6*EXP('Equations - Parameters'!$H$49*('Equations - Parameters'!$F$157/(JI6))^'Equations - Parameters'!$I$49+'Equations - Parameters'!$J$49*(HP6*2.47105)^'Equations - Parameters'!$K$49*('Equations - Parameters'!$G$157/(JI6))^'Equations - Parameters'!$L$49)-LJ6-LI6)) -> 0 | LL6: =+IF($B6="","",IF(IU6=0,0,IU6*EXP('Equations - Parameters'!$H$49*('Equations - Parameters'!$F$155/(JJ6))^'Equations - Parameters'!$I$49+'Equations - Parameters'!$J$49*(HQ6*2.47105)^'Equations - Parameters'!$K$49*('Equations - Parameters'!$G$155/(JJ6))^'Equations - Parameters'!$L$49))) -> 0 | LM6: =+IF($B6="","",IF(IU6=0,0,IU6*EXP('Equations - Parameters'!$H$49*('Equations - Parameters'!$F$156/(JJ6))^'Equations - Parameters'!$I$49+'Equations - Parameters'!$J$49*(HQ6*2.47105)^'Equations - Parameters'!$K$49*('Equations - Parameters'!$G$156/(JJ6))^'Equations - Parameters'!$L$49)-LL6)) -> 0 | LN6: =+IF($B6="","",IF(IU6=0,0,IU6*EXP('Equations - Parameters'!$H$49*('Equations - Parameters'!$F$157/(JJ6))^'Equations - Parameters'!$I$49+'Equations - Parameters'!$J$49*(HQ6*2.47105)^'Equations - Parameters'!$K$49*('Equations - Parameters'!$G$157/(JJ6))^'Equations - Parameters'!$L$49)-LM6-LL6)) -> 0 | LO6: =+IF($B6="","",IF(IV6=0,0,IV6*EXP('Equations - Parameters'!$H$49*('Equations - Parameters'!$F$155/(JK6))^'Equations - Parameters'!$I$49+'Equations - Parameters'!$J$49*(HR6*2.47105)^'Equations - Parameters'!$K$49*('Equations - Parameters'!$G$155/(JK6))^'Equations - Parameters'!$L$49))) -> 0 | LP6: =+IF($B6="","",IF(IV6=0,0,IV6*EXP('Equations - Parameters'!$H$49*('Equations - Parameters'!$F$156/(JK6))^'Equations - Parameters'!$I$49+'Equations - Parameters'!$J$49*(HR6*2.47105)^'Equations - Parameters'!$K$49*('Equations - Parameters'!$G$156/(JK6))^'Equations - Parameters'!$L$49)-LO6)) -> 0 | LQ6: =+IF($B6="","",IF(IV6=0,0,IV6*EXP('Equations - Parameters'!$H$49*('Equations - Parameters'!$F$157/(JK6))^'Equations - Parameters'!$I$49+'Equations - Parameters'!$J$49*(HR6*2.47105)^'Equations - Parameters'!$K$49*('Equations - Parameters'!$G$157/(JK6))^'Equations - Parameters'!$L$49)-LP6-LO6)) -> 0 | LR6: =+IF($B6="","",IF(IW6=0,0,IW6*EXP('Equations - Parameters'!$H$49*('Equations - Parameters'!$F$155/(JL6))^'Equations - Parameters'!$I$49+'Equations - Parameters'!$J$49*(HS6*2.47105)^'Equations - Parameters'!$K$49*('Equations - Parameters'!$G$155/(JL6))^'Equations - Parameters'!$L$49))) -> 0 | LS6: =+IF($B6="","",IF(IW6=0,0,IW6*EXP('Equations - Parameters'!$H$49*('Equations - Parameters'!$F$156/(JL6))^'Equations - Parameters'!$I$49+'Equations - Parameters'!$J$49*(HS6*2.47105)^'Equations - Parameters'!$K$49*('Equations - Parameters'!$G$156/(JL6))^'Equations - Parameters'!$L$49)-LR6)) -> 0 | LT6: =+IF($B6="","",IF(IW6=0,0,IW6*EXP('Equations - Parameters'!$H$49*('Equations - Parameters'!$F$157/(JL6))^'Equations - Parameters'!$I$49+'Equations - Parameters'!$J$49*(HS6*2.47105)^'Equations - Parameters'!$K$49*('Equations - Parameters'!$G$157/(JL6))^'Equations - Parameters'!$L$49)-LS6-LR6)) -> 0
A7: 3 | B7: =+IF($A7+Inputs!$J$14-1>Inputs!$B$6,"",IF($B6=Inputs!$B$6, "",IF($A7=0,Inputs!$J$14,IF(B6=Inputs!$B$6,0,B6+1)))) -> 38 | C7: =+IF($B7="","",IF($B7=Inputs!$B$15,Inputs!$J$15,4.5+(('Equations - Parameters'!$F$14+(0.5*(Inputs!$J$18-4.5-'Equations - Parameters'!$F$14+SQRT((((Inputs!$J$18-4.5)-'Equations - Parameters'!$F$14))^2+4*'Equations - Parameters'!$G$14*(Inputs!$J$18-4.5)*((50-Inputs!$B$9)^-'Equations - Parameters'!$H$14)))))/(1+('Equations - Parameters'!$G$14/(0.5*(Inputs!$J$18-4.5-'Equations - Parameters'!$F$14+SQRT((((Inputs!$J$18-4.5)-'Equations - Parameters'!$F$14))^2+4*'Equations - Parameters'!$G$14*(Inputs!$J$18-4.5)*((50-Inputs!$B$9)^-'Equations - Parameters'!$H$14))))*(($B7-Inputs!$B$9)^-'Equations - Parameters'!$H$14)))))) -> 59.70314333 | D7: =+IF($B7="","",IF(Inputs!$H$11=TRUE,0,IF($B7=Inputs!$J$14,Inputs!$J$16,(D6^('Equations - Parameters'!$F$7+'Equations - Parameters'!$G$7/Inputs!$J$18)+'Equations - Parameters'!$H$7*((($B7-Inputs!$B$9)/200)^'Equations - Parameters'!$I$7-(($B6-Inputs!$B$9)/200)^'Equations - Parameters'!$I$7))^(1/('Equations - Parameters'!$F$7+'Equations - Parameters'!$G$7/Inputs!$J$18))))) -> 0 | E7: =+IF($B7="","",IF(Inputs!$H$11=TRUE,0,IF($B7=Inputs!$J$14,Inputs!$J$17,(E6^(((B6-Inputs!$B$9+'Equations - Parameters'!$I$26)^('Equations - Parameters'!$F$26+'Equations - Parameters'!$G$26*LN(D6)))/((B7-Inputs!$B$9+'Equations - Parameters'!$I$26)^('Equations - Parameters'!$F$26+'Equations - Parameters'!$G$26*LN(D7))))*EXP('Equations - Parameters'!$H$26*(1-(((B6-Inputs!$B$9+'Equations - Parameters'!$I$26)^('Equations - Parameters'!$F$26+'Equations - Parameters'!$G$26*LN(D6)))/((B7-Inputs!$B$9+'Equations - Parameters'!$I$26)^('Equations - Parameters'!$F$26+'Equations - Parameters'!$G$26*LN(D7)))))))))) -> 0 | F7: =+IF($B7="","",IF(Inputs!$H$11=TRUE,0,SQRT((E7/D7)/0.005454))) -> 0 | G7: =+IF($B7>Inputs!$B$6,"",D7*(F7/10)^1.605) -> 0 | H7: =+IF($B7="","",IF(Inputs!$H$22=FALSE,0,IF(AND(Inputs!$H$22=TRUE,$B7=Inputs!$J$14),Inputs!$J$16,(H6^('Equations - Parameters'!$F$7+'Equations - Parameters'!$G$7/Inputs!$J$18)+'Equations - Parameters'!$H$7*((($B7-Inputs!$B$9)/200)^'Equations - Parameters'!$I$7-(($B6-Inputs!$B$9)/200)^'Equations - Parameters'!$I$7))^(1/('Equations - Parameters'!$F$7+'Equations - Parameters'!$G$7/Inputs!$J$18))))) -> 0 | I7: =+IF(B7="","",IF(Inputs!$H$11=FALSE,0,IF(Inputs!$H$22=FALSE,0,IF(Inputs!$B$30="",0,IF(B7<Inputs!$B$30,H7,IF(AND(B7=Inputs!$B$30,Inputs!$H$27=TRUE),(H7-(Inputs!$C$30*H7)),IF(AND(B7=Inputs!$B$30,Inputs!$H$27=FALSE),(H7*(1-Inputs!$C$30)^('Equations - Parameters'!$F$39*(C7/Y7)+'Equations - Parameters'!$G$39/Y7+'Equations - Parameters'!$H$39*Y7+'Equations - Parameters'!$I$39*Y7*IF(Inputs!$H$8=TRUE,0,1))),(I6^('Equations - Parameters'!$F$7+'Equations - Parameters'!$G$7/Inputs!$J$18)+'Equations - Parameters'!$H$7*(((B7-Inputs!$B$9)/200)^'Equations - Parameters'!$I$7-((B6-Inputs!$B$9)/200)^'Equations - Parameters'!$I$7))^(1/('Equations - Parameters'!$F$7+'Equations - Parameters'!$G$7/Inputs!$J$18))))))))) -> 0 | J7: =+IF(B7="","",IF(Inputs!$H$11=FALSE,0,IF(Inputs!$H$22=FALSE,0,IF(Inputs!$B$31="",0,IF(B7<Inputs!$B$31,I7,IF(AND(B7=Inputs!$B$31,Inputs!$H$27=TRUE),(I7-(Inputs!$C$31*I7)),IF(AND(B7=Inputs!$B$31,Inputs!$H$27=FALSE),(I7*(1-Inputs!$C$31)^('Equations - Parameters'!$F$39*(C7/Z7)+'Equations - Parameters'!$G$39/Z7+'Equations - Parameters'!$H$39*Z7+'Equations - Parameters'!$I$39*Z7*IF(Inputs!$H$8=TRUE,0,1))),(J6^('Equations - Parameters'!$F$7+'Equations - Parameters'!$G$7/Inputs!$J$18)+'Equations - Parameters'!$H$7*(((B7-Inputs!$B$9)/200)^'Equations - Parameters'!$I$7-((B6-Inputs!$B$9)/200)^'Equations - Parameters'!$I$7))^(1/('Equations - Parameters'!$F$7+'Equations - Parameters'!$G$7/Inputs!$J$18))))))))) -> 0 | K7: =+IF(B7="","",IF(Inputs!$H$11=FALSE,0,IF(Inputs!$H$22=FALSE,0,IF(Inputs!$B$32="",0,IF(B7<Inputs!$B$32,J7,IF(AND(B7=Inputs!$B$32,Inputs!$H$27=TRUE),(J7-(Inputs!$C$32*J7)),IF(AND(B7=Inputs!$B$32,Inputs!$H$27=FALSE),(J7*(1-Inputs!$C$32)^('Equations - Parameters'!$F$39*(C7/AA7)+'Equations - Parameters'!$G$39/AA7+'Equations - Parameters'!$H$39*AA7+'Equations - Parameters'!$I$39*AA7*IF(Inputs!$H$8=TRUE,0,1))),(K6^('Equations - Parameters'!$F$7+'Equations - Parameters'!$G$7/Inputs!$J$18)+'Equations - Parameters'!$H$7*(((B7-Inputs!$B$9)/200)^'Equations - Parameters'!$I$7-((B6-Inputs!$B$9)/200)^'Equations - Parameters'!$I$7))^(1/('Equations - Parameters'!$F$7+'Equations - Parameters'!$G$7/Inputs!$J$18))))))))) -> 0 | L7: =+IF(B7="","",IF(Inputs!$H$11=FALSE,0,IF(Inputs!$H$22=FALSE,0,IF(Inputs!$B$33="",0,IF(B7<Inputs!$B$33,K7,IF(AND(B7=Inputs!$B$33,Inputs!$H$27=TRUE),(K7-(Inputs!$C$33*K7)),IF(AND(B7=Inputs!$B$33,Inputs!$H$27=FALSE),(K7*(1-Inputs!$C$33)^('Equations - Parameters'!$F$39*(C7/AB7)+'Equations - Parameters'!$G$39/AB7+'Equations - Parameters'!$H$39*AB7+'Equations - Parameters'!$I$39*AB7*IF(Inputs!$H$8=TRUE,0,1))),(L6^('Equations - Parameters'!$F$7+'Equations - Parameters'!$G$7/Inputs!$J$18)+'Equations - Parameters'!$H$7*(((B7-Inputs!$B$9)/200)^'Equations - Parameters'!$I$7-((B6-Inputs!$B$9)/200)^'Equations - Parameters'!$I$7))^(1/('Equations - Parameters'!$F$7+'Equations - Parameters'!$G$7/Inputs!$J$18))))))))) -> 0 | M7: =+IF($B7>Inputs!$B$6,"",IF(Inputs!$H$22=FALSE,0,IF(AND(Inputs!$H$22=TRUE,$B7=Inputs!$J$14),Inputs!$J$17,IF(AND(Inputs!$H$22=TRUE,$B7<>Inputs!$J$14),(M6^(((B6-Inputs!$B$9+'Equations - Parameters'!$I$26)^('Equations - Parameters'!$F$26+'Equations - Parameters'!$G$26*LN(H6)))/((B7-Inputs!$B$9+'Equations - Parameters'!$I$26)^('Equations - Parameters'!$F$26+'Equations - Parameters'!$G$26*LN(H7))))*EXP('Equations - Parameters'!$H$26*(1-(((B6-Inputs!$B$9+'Equations - Parameters'!$I$26)^('Equations - Parameters'!$F$26+'Equations - Parameters'!$G$26*LN(H6)))/((B7-Inputs!$B$9+'Equations - Parameters'!$I$26)^('Equations - Parameters'!$F$26+'Equations - Parameters'!$G$26*LN(H7))))))))))) -> 0 | N7: =+IF(B7="","",IF(Inputs!$H$11=FALSE,0,IF(Inputs!$H$22=FALSE,0,IF(Inputs!$B$30="",0,IF(B7<Inputs!$B$30,M7,IF(AND(B7=Inputs!$B$30,Inputs!$H$27=FALSE),(M7-(Inputs!$C$30*M7)),IF(AND(B7=Inputs!$B$30,Inputs!$H$27=TRUE),(M7*(1-(Inputs!$C$30)^('Equations - Parameters'!$F$40+'Equations - Parameters'!$G$40/Y7+'Equations - Parameters'!$H$40/B7+'Equations - Parameters'!$I$40/C7+'Equations - Parameters'!$J$40*(H7/I7)+'Equations - Parameters'!$K$40*(H7/I7)*IF(Inputs!$H$8=TRUE,0,1)))),(N6^(((B6+'Equations - Parameters'!$I$26)^('Equations - Parameters'!$F$26+'Equations - Parameters'!$G$26*LN(I6)))/((B7+'Equations - Parameters'!$I$26)^('Equations - Parameters'!$F$26+'Equations - Parameters'!$G$26*LN(I7))))*EXP('Equations - Parameters'!$H$26*(1-(((B6+'Equations - Parameters'!$I$26)^('Equations - Parameters'!$F$26+'Equations - Parameters'!$G$26*LN(I6)))/((B7+'Equations - Parameters'!$I$26)^('Equations - Parameters'!$F$26+'Equations - Parameters'!$G$26*LN(I7)))))))))))))) -> 0 | O7: =+IF(B7="","",IF(Inputs!$H$11=FALSE,0,IF(Inputs!$H$22=FALSE,0,IF(Inputs!$B$31="",0,IF(B7<Inputs!$B$31,N7,IF(AND(B7=Inputs!$B$31,Inputs!$H$27=FALSE),(N7-(Inputs!$C$31*N7)),IF(AND(B7=Inputs!$B$31,Inputs!$H$27=TRUE),(N7*(1-(Inputs!$C$31)^('Equations - Parameters'!$F$40+'Equations - Parameters'!$G$40/Z7+'Equations - Parameters'!$H$40/B7+'Equations - Parameters'!$I$40/C7+'Equations - Parameters'!$J$40*(I7/J7)+'Equations - Parameters'!$K$40*(I7/J7)*IF(Inputs!$H$8=TRUE,0,1)))),(O6^(((B6+'Equations - Parameters'!$I$26)^('Equations - Parameters'!$F$26+'Equations - Parameters'!$G$26*LN(J6)))/((B7+'Equations - Parameters'!$I$26)^('Equations - Parameters'!$F$26+'Equations - Parameters'!$G$26*LN(J7))))*EXP('Equations - Parameters'!$H$26*(1-(((B6+'Equations - Parameters'!$I$26)^('Equations - Parameters'!$F$26+'Equations - Parameters'!$G$26*LN(J6)))/((B7+'Equations - Parameters'!$I$26)^('Equations - Parameters'!$F$26+'Equations - Parameters'!$G$26*LN(J7)))))))))))))) -> 0 | P7: =+IF(B7="","",IF(Inputs!$H$11=FALSE,0,IF(Inputs!$H$22=FALSE,0,IF(Inputs!$B$32="",0,IF(B7<Inputs!$B$32,O7,IF(AND(B7=Inputs!$B$32,Inputs!$H$27=FALSE),(O7-(Inputs!$C$32*O7)),IF(AND(B7=Inputs!$B$32,Inputs!$H$27=TRUE),(O7*(1-(Inputs!$C$32)^('Equations - Parameters'!$F$40+'Equations - Parameters'!$G$40/AA7+'Equations - Parameters'!$H$40/B7+'Equations - Parameters'!$I$40/C7+'Equations - Parameters'!$J$40*(J7/K7)+'Equations - Parameters'!$K$40*(J7/K7)*IF(Inputs!$H$8=TRUE,0,1)))),(P6^(((B6+'Equations - Parameters'!$I$26)^('Equations - Parameters'!$F$26+'Equations - Parameters'!$G$26*LN(K6)))/((B7+'Equations - Parameters'!$I$26)^('Equations - Parameters'!$F$26+'Equations - Parameters'!$G$26*LN(K7))))*EXP('Equations - Parameters'!$H$26*(1-(((B6+'Equations - Parameters'!$I$26)^('Equations - Parameters'!$F$26+'Equations - Parameters'!$G$26*LN(K6)))/((B7+'Equations - Parameters'!$I$26)^('Equations - Parameters'!$F$26+'Equations - Parameters'!$G$26*LN(K7)))))))))))))) -> 0 | Q7: =+IF(B7="","",IF(Inputs!$H$11=FALSE,0,IF(Inputs!$H$22=FALSE,0,IF(Inputs!$B$33="",0,IF(B7<Inputs!$B$33,P7,IF(AND(B7=Inputs!$B$33,Inputs!$H$27=FALSE),(P7-(Inputs!$C$33*P7)),IF(AND(B7=Inputs!$B$33,Inputs!$H$27=TRUE),(P7*(1-(Inputs!$C$33)^('Equations - Parameters'!$F$40+'Equations - Parameters'!$G$40/AB7+'Equations - Parameters'!$H$40/B7+'Equations - Parameters'!$I$40/C7+'Equations - Parameters'!$J$40*(K7/L7)+'Equations - Parameters'!$K$40*(K7/L7)*IF(Inputs!$H$8=TRUE,0,1)))),(Q6^(((B6+'Equations - Parameters'!$I$26)^('Equations - Parameters'!$F$26+'Equations - Parameters'!$G$26*LN(L6)))/((B7+'Equations - Parameters'!$I$26)^('Equations - Parameters'!$F$26+'Equations - Parameters'!$G$26*LN(L7))))*EXP('Equations - Parameters'!$H$26*(1-(((B6+'Equations - Parameters'!$I$26)^('Equations - Parameters'!$F$26+'Equations - Parameters'!$G$26*LN(L6)))/((B7+'Equations - Parameters'!$I$26)^('Equations - Parameters'!$F$26+'Equations - Parameters'!$G$26*LN(L7)))))))))))))) -> 0 | R7: 0 | S7: =+IF($B7="","",IF(Inputs!$B$30="",0,IF($B7=Inputs!$B$30,M7-N7,0))) -> 0 | T7: =+IF($B7="","",IF(Inputs!$B$31="",0,IF($B7=Inputs!$B$31,N7-O7,0))) -> 0 | U7: =+IF($B7="","",IF(Inputs!$B$32="",0,IF($B7=Inputs!$B$32,O7-P7,0))) -> 0 | V7: =+IF($B7="","",IF(Inputs!$B$33="",0,IF($B7=Inputs!$B$33,P7-Q7,0))) -> 0 | W7: =+IF($B7>Inputs!$B$6,"",R7+S7+T7+U7+V7) -> 0 | X7: =+IF($B7>Inputs!$B$6,"",IF(B7=Inputs!$B$30,N7*(1-Inputs!$C$30),IF(B7=Inputs!$B$31,O7*(1-Inputs!$C$31),IF(B7=Inputs!$B$32,P7*(1-Inputs!$C$32),IF(B7=Inputs!$B$33,Q7*(1-Inputs!$C$33),0))))) -> 0 | Y7: =+IF($B7>Inputs!$B$6,"",IF(M7=0,0,SQRT((M7/H7)/0.005454))) -> 0 | Z7: =+IF($B7>Inputs!$B$6,"",IF(N7=0,0,SQRT((N7/I7)/0.005454))) -> 0 | AA7: =+IF($B7>Inputs!$B$6,"",IF(O7=0,0,SQRT((O7/J7)/0.005454))) -> 0 | AB7: =+IF($B7>Inputs!$B$6,"",IF(P7=0,0,SQRT((P7/K7)/0.005454))) -> 0 | AC7: =+IF($B7>Inputs!$B$6,"",IF(Q7=0,0,SQRT((Q7/L7)/0.005454))) -> 0 | AD7: =+IF($B7>Inputs!$B$6,"",H7*(Y7/10)^1.605) -> 0 | AE7: =+IF($B7>Inputs!$B$6,"",I7*(Z7/10)^1.605) -> 0 | AF7: =+IF($B7>Inputs!$B$6,"",J7*(AA7/10)^1.605) -> 0 | AG7: =+IF($B7>Inputs!$B$6,"",K7*(AB7/10)^1.605) -> 0 | AH7: =+IF($B7>Inputs!$B$6,"",L7*(AC7/10)^1.605) -> 0 | AI7: =+IF($B7>Inputs!$B$6,"",IF(Inputs!$B$30="",0,IF(B7<Inputs!$B$30,0,EXP('Equations - Parameters'!$B$21+'Equations - Parameters'!$C$21*LN(I7)+'Equations - Parameters'!$D$21*LN(C7))))) -> 0 | AJ7: =+IF($B7>Inputs!$B$6,"",IF($B7=0,0,IF(AND(Inputs!$H$4=TRUE,$B7=Inputs!$J$14),Inputs!$J$17,IF(AND(Inputs!$H$4=TRUE,$B7<>Inputs!$J$14),AJ6*((H7/H6)^('Equations - Parameters'!$C$21))*((C7/C6)^('Equations - Parameters'!$D$21)),EXP('Equations - Parameters'!$B$21+'Equations - Parameters'!$C$21*LN(H7)+'Equations - Parameters'!$D$21*LN(C7)))))) ->  | AK7: =+IF($B7>Inputs!$B$6,"",IF(Inputs!$B$30="",0,IF($B7=Inputs!$B$30,AJ7-BH7,0))) -> 0 | AL7: =+IF($B7>Inputs!$B$6,"",IF(Inputs!$B$30="",0,IF($B7=Inputs!$B$30,$B7,0))) -> 0 | AM7: =+IF($B7>Inputs!$B$6,"",IF(Inputs!$B$31="",0,IF(B7<Inputs!$B$31,0,EXP('Equations - Parameters'!$B$21+'Equations - Parameters'!$C$21*LN(J7)+'Equations - Parameters'!$D$21*LN(C7))))) -> 0 | AN7: =+IF($B7>Inputs!$B$6,"",IF(Inputs!$B$31="",0,IF($B7=Inputs!$B$31,AV7-$BH7,0))) -> 0 | AO7: =+IF($B7>Inputs!$B$6,"",IF(Inputs!$B$31="",0,IF($B7=Inputs!$B$31,$B7,0))) -> 0 | AP7: =+IF($B7>Inputs!$B$6,"",IF(Inputs!$B$32="",0,IF($B7<Inputs!$B$32,0,EXP('Equations - Parameters'!$B$21+'Equations - Parameters'!$C$21*LN(K7)+'Equations - Parameters'!$D$21*LN(C7))))) -> 0 | AQ7: =+IF($B7>Inputs!$B$6,"",IF(Inputs!$B$32="",0,IF($B7=Inputs!$B$32,AY7-$BH7,0))) -> 0 | AR7: =+IF($B7>Inputs!$B$6,"",IF(Inputs!$B$32="",0,IF($B7=Inputs!$B$32,$B7,0))) -> 0 | AS7: =+IF($B7>Inputs!$B$6,"",IF(Inputs!$B$33="",0,IF($B7<Inputs!$B$33,0,EXP('Equations - Parameters'!$B$21+'Equations - Parameters'!$C$21*LN(L7)+'Equations - Parameters'!$D$21*LN(C7))))) -> 0 | AT7: =+IF($B7>Inputs!$B$6,"",IF(Inputs!$B$33="",0,IF($B7=Inputs!$B$33,BB7-$BH7,0))) -> 0 | AU7: =+IF($B7>Inputs!$B$6,"",IF(Inputs!$B$33="",0,IF($B7=Inputs!$B$33,$B7,0))) -> 0 | AV7: =+IF(A7+Inputs!$J$14-1>Inputs!$B$6,"",IF(Inputs!$B$30="",0,IF($B7<Inputs!$B$30,AJ7,IF(B7=Inputs!$B$30,BH7,AI7*(1-AX7))))) ->  | AW7: =+IF(A7+Inputs!$J$14-1>Inputs!$B$6,"",+IF(SUM($AK$4:$AK$504)>0,1,0)) ->  | AX7: =+IF(A7+Inputs!$J$14-1>Inputs!$B$6,"",IF(Inputs!$B$30="",0,IF(B7<Inputs!$B$30,0,IF(B7=Inputs!$B$30,1-(AV7/AI7),AX6*EXP(('Equations - Parameters'!$C$24/B7)*(B7-B6)))))) -> 0 | AY7: =+IF(A7+Inputs!$J$14-1>Inputs!$B$6,"",IF(Inputs!$B$31="",0,IF($B7<Inputs!$B$31,AV7,IF($B7=Inputs!$B$31,BH7,AM7*(1-BA7))))) -> 0 | AZ7: =+IF(A7+Inputs!$J$14-1>Inputs!$B$6,"",IF(SUM($AN$4:$AN$504)>0,1,0)) -> 0 | BA7: =+IF(A7+Inputs!$J$14-1>Inputs!$B$6,"",IF(Inputs!$B$31="",0,IF($B7<Inputs!$B$31,0,IF($B7=Inputs!$B$31,1-(AY7/AM7),BA6*EXP(('Equations - Parameters'!$C$24/B7)*($B7-$B6)))))) -> 0 | BB7: =+IF(A7+Inputs!$J$14-1>Inputs!$B$6,"",IF(Inputs!$B$32="",0,IF($B7<Inputs!$B$32,AY7,IF($B7=Inputs!$B$32,BH7,AP7*(1-BD7))))) -> 0 | BC7: =+IF(A7+Inputs!$J$14-1>Inputs!$B$6,"",IF(SUM($AQ$4:$AQ$504)>0,1,0)) -> 0 | BD7: =+IF(A7+Inputs!$J$14-1>Inputs!$B$6,"",IF(Inputs!$B$32="",0,IF($B7<Inputs!$B$32,0,IF($B7=Inputs!$B$32,1-(BB7/AP7),BD6*EXP(('Equations - Parameters'!$C$24/B7)*($B7-$B6)))))) -> 0 | BE7: =+IF(A7+Inputs!$J$14-1>Inputs!$B$6,"",IF(Inputs!$B$33="",0,IF($B7<Inputs!$B$33,BB7,IF($B7=Inputs!$B$33,BH7,AS7*(1-BG7))))) -> 0 | BF7: =+IF(A7+Inputs!$J$14-1>Inputs!$B$6,"",IF(SUM($AT$4:$AT$504)>0,1,0)) -> 0 | BG7: =+IF(A7+Inputs!$J$14-1>Inputs!$B$6,"",IF(Inputs!$B$33="",0,IF($B7<Inputs!$B$33,0,IF($B7=Inputs!$B$33,1-(BE7/AS7),BG6*EXP(('Equations - Parameters'!$C$24/B7)*($B7-$B6)))))) -> 0 | BH7: =+IF(A7+Inputs!$J$14-1>Inputs!$B$6,"",IF(B7=Inputs!$B$30,AJ7*(1-Inputs!$C$30),IF(B7=Inputs!$B$31,AV7*(1-Inputs!$C$31),IF(B7=Inputs!$B$32,AY7*(1-Inputs!$C$32),IF(B7=Inputs!$B$33,BB7*(1-Inputs!$C$33),0))))) -> 0 | BI7: =+IF(B7="","",IF(AND(Inputs!$H$23=TRUE,B7=Inputs!$J$14),Inputs!$J$16,(BI6^('Equations - Parameters'!$F$7+'Equations - Parameters'!$G$7/Inputs!$J$18) + 'Equations - Parameters'!$H$7*((B7/200)^'Equations - Parameters'!$I$7 - (B6/200)^'Equations - Parameters'!$I$7 ))^(1/('Equations - Parameters'!$F$7+'Equations - Parameters'!$G$7/Inputs!$J$18) ))) -> 578.2415024 | BJ7: =+IF(A7+Inputs!$J$14-1>Inputs!$B$6,"",IF(CL7=0,BI7,IF(CM7<>0,BI7*(1-CM7/CI7),BJ6*EXP(('Equations - Parameters'!$B$9*C6/100+'Equations - Parameters'!$C$9*CD6/'Equations - Parameters'!$D$7)*(B7^'Equations - Parameters'!$D$9-B6^'Equations - Parameters'!$D$9))))) -> 578.2415024 | BK7: =+IF(A7+Inputs!$J$14-1>Inputs!$B$6,"",IF(CS7=0,BJ7,IF(CT7<>0,BJ7*(1-CT7/CJ7),BK6*EXP(('Equations - Parameters'!$B$9*C6/100+'Equations - Parameters'!$C$9*CE6/'Equations - Parameters'!$D$7)*(B7^'Equations - Parameters'!$D$9-B6^'Equations - Parameters'!$D$9))))) -> 578.2415024 | BL7: =+IF(A7+Inputs!$J$14-1>Inputs!$B$6,"",IF(CZ7=0,BK7,IF(DA7<>0,BK7*(1-DA7/CQ7),BL6*EXP(('Equations - Parameters'!$B$9*C6/100+'Equations - Parameters'!$C$9*CF6/'Equations - Parameters'!$D$7)*(B7^'Equations - Parameters'!$D$9-B6^'Equations - Parameters'!$D$9))))) -> 578.2415024 | BM7: =+IF(A7+Inputs!$J$14-1>Inputs!$B$6,"",IF(DG7=0,BL7,IF(DH7<>0,BL7*(1-DH7/CX7),BM6*EXP(('Equations - Parameters'!$B$9*C6/100+'Equations - Parameters'!$C$9*CG6/'Equations - Parameters'!$D$7)*(B7^'Equations - Parameters'!$D$9-B6^'Equations - Parameters'!$D$9))))) -> 578.2415024 | BN7: =+IF(B7="","",IF(AND(Inputs!$H$23=TRUE,B7=Inputs!$J$14),Inputs!$J$16,(BN6^('Equations - Parameters'!$F$7+'Equations - Parameters'!$G$7/Inputs!$J$18) + 'Equations - Parameters'!$H$7*(((B7-Inputs!$B$9)/200)^'Equations - Parameters'!$I$7 - ((B6-Inputs!$B$9)/200)^'Equations - Parameters'!$I$7 ))^(1/('Equations - Parameters'!$F$7+'Equations - Parameters'!$G$7/Inputs!$J$18) ))) -> 588.134005 | BO7: =+IF($B7="","",IF(Inputs!$H$23=FALSE,0,IF(BS7<Inputs!$A$37,BN7,IF(BS6<Inputs!$A$37,(BN7-BN7*((BS7-Inputs!$B$37)/Inputs!$A$37)^('Equations - Parameters'!$F$39*(C7/BX7)+'Equations - Parameters'!$G$39/BX7+'Equations - Parameters'!$H$39*BX7+'Equations - Parameters'!$I$39*BX7*IF(Inputs!$H$8=TRUE,0,1))),(BO6^('Equations - Parameters'!$F$7+'Equations - Parameters'!$G$7/Inputs!$J$18)+'Equations - Parameters'!$H$7*((($B7-Inputs!$B$9)/200)^'Equations - Parameters'!$I$7-(($B6-Inputs!$B$9)/200)^'Equations - Parameters'!$I$7))^(1/('Equations - Parameters'!$F$7+'Equations - Parameters'!$G$7/Inputs!$J$18)))))) -> 588.134005 | BP7: =+IF($B7="","",IF(Inputs!$H$23=FALSE,0,IF(BT7<Inputs!$A$37,BO7,IF(BT6<Inputs!$A$37,(BO7-BO7*((BT7-Inputs!$B$37)/Inputs!$A$37)^('Equations - Parameters'!$F$39*($C7/BY7)+'Equations - Parameters'!$G$39/BY7+'Equations - Parameters'!$H$39*BY7)),(BP6^('Equations - Parameters'!$F$7+'Equations - Parameters'!$G$7/Inputs!$J$18)+'Equations - Parameters'!$H$7*(($B7/200)^'Equations - Parameters'!$I$7-($B6/200)^'Equations - Parameters'!$I$7))^(1/('Equations - Parameters'!$F$7+'Equations - Parameters'!$G$7/Inputs!$J$18)))))) -> 588.134005 | BQ7: =+IF($B7="","",IF(Inputs!$H$23=FALSE,0,IF(BU7<Inputs!$A$37,BP7,IF(BU6<Inputs!$A$37,(BP7-BP7*((BU7-Inputs!$B$37)/Inputs!$A$37)^('Equations - Parameters'!$F$39*($C7/BZ7)+'Equations - Parameters'!$G$39/BZ7+'Equations - Parameters'!$H$39*BZ7)),(BQ6^('Equations - Parameters'!$F$7+'Equations - Parameters'!$G$7/Inputs!$J$18)+'Equations - Parameters'!$H$7*((($B7-Inputs!$B$9)/200)^'Equations - Parameters'!$I$7-(($B6-Inputs!$B$9)/200)^'Equations - Parameters'!$I$7))^(1/('Equations - Parameters'!$F$7+'Equations - Parameters'!$G$7/Inputs!$J$18)))))) -> 588.134005 | BR7: =+IF($B7="","",IF(Inputs!$H$23=FALSE,0,IF(BV7<Inputs!$A$37,BQ7,IF(BV6<Inputs!$A$37,(BQ7-BQ7*((BV7-Inputs!$B$37)/Inputs!$A$37)^('Equations - Parameters'!$F$39*($C7/CA7)+'Equations - Parameters'!$G$39/CA7+'Equations - Parameters'!$H$39*CA7)),(BR6^('Equations - Parameters'!$F$7+'Equations - Parameters'!$G$7/Inputs!$J$18)+'Equations - Parameters'!$H$7*((($B7-Inputs!$B$9)/200)^'Equations - Parameters'!$I$7-(($B6-Inputs!$B$9)/200)^'Equations - Parameters'!$I$7))^(1/('Equations - Parameters'!$F$7+'Equations - Parameters'!$G$7/Inputs!$J$18)))))) -> 588.134005 | BS7: =+IF($B7="","",IF(AND(Inputs!$H$23=TRUE,$B7=Inputs!$J$14),Inputs!$J$17,IF(AND(Inputs!$H$23=TRUE,$B7<>Inputs!$J$14),(BS6^((($B6-Inputs!$B$9+'Equations - Parameters'!$I$26)^('Equations - Parameters'!$F$26+'Equations - Parameters'!$G$26*LN(BN6)))/(($B7-Inputs!$B$9+'Equations - Parameters'!$I$26)^('Equations - Parameters'!$F$26+'Equations - Parameters'!$G$26*LN(BN7))))*EXP('Equations - Parameters'!$H$26*(1-((($B6-Inputs!$B$9+'Equations - Parameters'!$I$26)^('Equations - Parameters'!$F$26+'Equations - Parameters'!$G$26*LN(BN6)))/(($B7-Inputs!$B$9+'Equations - Parameters'!$I$26)^('Equations - Parameters'!$F$26+'Equations - Parameters'!$G$26*LN(BN7)))))))))) -> 109.7600174 | BT7: =+IF($B7="","",IF(Inputs!$H$23=FALSE,0,IF(BS7<Inputs!$A$37,BS7,IF(AND(BS6<Inputs!$A$37,BS7>Inputs!$A$37),Inputs!$B$37,(BT6^((($B6-Inputs!$B$9+'Equations - Parameters'!$I$26)^('Equations - Parameters'!$F$26+'Equations - Parameters'!$G$26*LN(BO6)))/(($B7-Inputs!$B$9+'Equations - Parameters'!$I$26)^('Equations - Parameters'!$F$26+'Equations - Parameters'!$G$26*LN(BO7))))*EXP('Equations - Parameters'!$H$26*(1-((($B6-Inputs!$B$9+'Equations - Parameters'!$I$26)^('Equations - Parameters'!$F$26+'Equations - Parameters'!$G$26*LN(BO6)))/(($B7-Inputs!$B$9+'Equations - Parameters'!$I$26)^('Equations - Parameters'!$F$26+'Equations - Parameters'!$G$26*LN(BO7))))))))))) -> 109.7600174 | BU7: =+IF($B7="","",IF(Inputs!$H$23=FALSE,0,IF(BT7<Inputs!$A$37,BT7,IF(AND(BT6<Inputs!$A$37,BT7>Inputs!$A$37),Inputs!$B$37,(BU6^((($B6-Inputs!$B$9+'Equations - Parameters'!$I$26)^('Equations - Parameters'!$F$26+'Equations - Parameters'!$G$26*LN(BP6)))/(($B7-Inputs!$B$9+'Equations - Parameters'!$I$26)^('Equations - Parameters'!$F$26+'Equations - Parameters'!$G$26*LN(BP7))))*EXP('Equations - Parameters'!$H$26*(1-((($B6-Inputs!$B$9+'Equations - Parameters'!$I$26)^('Equations - Parameters'!$F$26+'Equations - Parameters'!$G$26*LN(BP6)))/(($B7-Inputs!$B$9+'Equations - Parameters'!$I$26)^('Equations - Parameters'!$F$26+'Equations - Parameters'!$G$26*LN(BP7))))))))))) -> 109.7600174 | BV7: =+IF($B7="","",IF(Inputs!$H$23=FALSE,0,IF(BU7<Inputs!$A$37,BU7,IF(AND(BU6<Inputs!$A$37,BU7>Inputs!$A$37),Inputs!$B$37,(BV6^((($B6-Inputs!$B$9+'Equations - Parameters'!$I$26)^('Equations - Parameters'!$F$26+'Equations - Parameters'!$G$26*LN(BQ6)))/(($B7-Inputs!$B$9+'Equations - Parameters'!$I$26)^('Equations - Parameters'!$F$26+'Equations - Parameters'!$G$26*LN(BQ7))))*EXP('Equations - Parameters'!$H$26*(1-((($B6-Inputs!$B$9+'Equations - Parameters'!$I$26)^('Equations - Parameters'!$F$26+'Equations - Parameters'!$G$26*LN(BQ6)))/(($B7-Inputs!$B$9+'Equations - Parameters'!$I$26)^('Equations - Parameters'!$F$26+'Equations - Parameters'!$G$26*LN(BQ7))))))))))) -> 109.7600174 | BW7: =+IF($B7="","",IF(Inputs!$H$23=FALSE,0,IF(BV7<Inputs!$A$37,BV7,IF(AND(BV6<Inputs!$A$37,BV7>Inputs!$A$37),Inputs!$B$37,(BW6^((($B6-Inputs!$B$9+'Equations - Parameters'!$I$26)^('Equations - Parameters'!$F$26+'Equations - Parameters'!$G$26*LN(BR6)))/(($B7-Inputs!$B$9+'Equations - Parameters'!$I$26)^('Equations - Parameters'!$F$26+'Equations - Parameters'!$G$26*LN(BR7))))*EXP('Equations - Parameters'!$H$26*(1-((($B6-Inputs!$B$9+'Equations - Parameters'!$I$26)^('Equations - Parameters'!$F$26+'Equations - Parameters'!$G$26*LN(BR6)))/(($B7-Inputs!$B$9+'Equations - Parameters'!$I$26)^('Equations - Parameters'!$F$26+'Equations - Parameters'!$G$26*LN(BR7))))))))))) -> 109.7600174 | BX7: 5.84960272 | BY7: 5.84960272 | BZ7: 5.84960272 | CA7: 5.84960272 | CB7: 5.84960272 | CC7: 248.7219517 | CD7: 248.7219517 | CE7: 248.7219517 | CF7: 248.7219517 | CG7: 248.7219517 | CH7: =+IF($B7="","",IF(CL7=0,0,EXP('Equations - Parameters'!$B$21+'Equations - Parameters'!$C$21*LN(BJ7)+'Equations - Parameters'!$D$21*LN($C7)))) -> 0 | CI7: 109.7600174 | CJ7: 109.7600174 | CK7: 1 | CL7: =+IF($B7="","",IF(BS7>Inputs!$A$37,Inputs!$B$37,0)) -> 0 | CM7: 0 | CN7: 0 | CO7: =+IF($B7="","",IF(CL7=0,0,IF(CM7<>0,1-(CJ7/CH7),CO6*EXP(('Equations - Parameters'!$C$24/B7)*($B7-$B6))))) -> 0 | CP7: =+IF($B7="","",IF(CS7=0,0,EXP('Equations - Parameters'!$B$21+'Equations - Parameters'!$C$21*LN(BK7)+'Equations - Parameters'!$D$21*LN(C7)))) -> 0 | CQ7: 109.7600174 | CR7: 1 | CS7: =+IF($B7="","",IF(B7=0,0,IF(BT7>Inputs!$H$37,Inputs!$I$37,IF(CS6>0,Inputs!$I$37,0)))) -> 0 | CT7: 0 | CU7: 0 | CV7: =+IF($B7="","",IF(CS7=0,0,IF(CT7<>0,1-(CQ7/CP7),CV6*EXP(('Equations - Parameters'!$C$24/B7)*($B7-$B6))))) -> 0 | CW7: =+IF($B7="","",IF(CZ7=0,0,EXP('Equations - Parameters'!$B$21+'Equations - Parameters'!$C$21*LN(BL7)+'Equations - Parameters'!$D$21*LN(C7)))) -> 0 | CX7: 109.7600174 | CY7: 0 | CZ7: =+IF($B7="","",IF(B7=0,0,IF(BU7>Inputs!$H$37,Inputs!$I$37,IF(CZ6>0,Inputs!$I$37,0)))) -> 0 | DA7: 0 | DB7: 0 | DC7: =+IF($B7="","",IF(CZ7=0,0,IF(DA7<>0,1-(CX7/CW7),DC6*EXP('Equations - Parameters'!$C$24/B7)*($B7-$B6)))) -> 0 | DD7: =+IF($B7="","",IF(DG7=0,0,EXP('Equations - Parameters'!$B$21+'Equations - Parameters'!$C$21*LN(BM7)+'Equations - Parameters'!$D$21*LN(C7)))) -> 0 | DE7: 109.7600174 | DF7: 0 | DG7: =+IF($B7="","",IF(B7=0,0,IF(BV7>Inputs!$H$37,Inputs!$I$37,IF(DG6>0,Inputs!$I$37,0)))) -> 0 | DH7: 0 | DI7: 0 | DJ7: =+IF($B7="","",IF(DG7=0,0,IF(DH7<>0,1-(DE7/DD7),DJ6*EXP('Equations - Parameters'!$C$24/C7)*($B7-$B6)))) -> 0 | FF7: =+IF($A7+Inputs!$J$14-1>Inputs!$B$6,"",IF($B6=Inputs!$B$6, "",IF($A7=0,Inputs!$J$14,IF(B6=Inputs!$B$6,0,B6+1)))) -> 38 | FG7: =+IF($B7="","",IF($B7=Inputs!$B$15,Inputs!$J$15,4.5+(('Equations - Parameters'!$F$14+(0.5*(Inputs!$J$18-4.5-'Equations - Parameters'!$F$14+SQRT((((Inputs!$J$18-4.5)-'Equations - Parameters'!$F$14))^2+4*'Equations - Parameters'!$G$14*(Inputs!$J$18-4.5)*((50-Inputs!$B$9)^-'Equations - Parameters'!$H$14)))))/(1+('Equations - Parameters'!$G$14/(0.5*(Inputs!$J$18-4.5-'Equations - Parameters'!$F$14+SQRT((((Inputs!$J$18-4.5)-'Equations - Parameters'!$F$14))^2+4*'Equations - Parameters'!$G$14*(Inputs!$J$18-4.5)*((50-Inputs!$B$9)^-'Equations - Parameters'!$H$14))))*(($B7-Inputs!$B$9)^-'Equations - Parameters'!$H$14)))))) -> 59.70314333 | FH7: =+IF($B7="","",IF(Inputs!$H$11=FALSE,D7,IF(Inputs!$H$23=TRUE,BN7,H7))) -> 588.134005 | FI7: =+IF($B7="","",IF(Inputs!$H$11=FALSE,0,IF(Inputs!$H$23=TRUE,BO7,I7))) -> 588.134005 | FJ7: =+IF($B7="","",IF(Inputs!$H$11=FALSE,0,IF(Inputs!$H$23=TRUE,BP7,J7))) -> 588.134005 | FK7: =+IF($B7="","",IF(Inputs!$H$11=FALSE,0,IF(Inputs!$H$23=TRUE,BQ7,K7))) -> 588.134005 | FL7: =+IF($B7="","",IF(Inputs!$H$11=FALSE,0,IF(Inputs!$H$23=TRUE,BR7,L7))) -> 588.134005 | FM7: =+IF($B7="","",IF(Inputs!$H$11=FALSE,E7,IF(Inputs!$H$23=TRUE,BS7,M7))) -> 109.7600174 | FN7: =+IF($B7="","",IF(Inputs!$H$11=FALSE,0,IF(Inputs!$H$23=TRUE,BT7,N7))) -> 109.7600174 | FO7: =+IF($B7="","",IF(Inputs!$H$11=FALSE,0,IF(Inputs!$H$23=TRUE,BU7,O7))) -> 109.7600174 | FP7: =+IF($B7="","",IF(Inputs!$H$11=FALSE,0,IF(Inputs!$H$23=TRUE,BV7,P7))) -> 109.7600174 | FQ7: =+IF($B7="","",IF(Inputs!$H$11=FALSE,0,IF(Inputs!$H$23=TRUE,BW7,Q7))) -> 109.7600174 | FR7: =+IF($B7="","",IF(Inputs!$H$11=FALSE,F7,IF(Inputs!$H$23=TRUE,BX7,Y7))) -> 5.84960272 | FS7: =+IF($B7="","",IF(Inputs!$H$11=FALSE,0,IF(Inputs!$H$23=TRUE,BY7,Z7))) -> 5.84960272 | FT7: =+IF($B7="","",IF(Inputs!$H$11=FALSE,0,IF(Inputs!$H$23=TRUE,BZ7,AA7))) -> 5.84960272 | FU7: =+IF($B7="","",IF(Inputs!$H$11=FALSE,0,IF(Inputs!$H$23=TRUE,CA7,AB7))) -> 5.84960272 | FV7: =+IF($B7="","",IF(Inputs!$H$11=FALSE,0,IF(Inputs!$H$23=TRUE,CB7,AC7))) -> 5.84960272 | FW7: =+IF($B7="","",IF(Inputs!$H$11=FALSE,G7,IF(Inputs!$H$23=TRUE,CC7,AD7))) -> 248.7219517 | FX7: =+IF($B7="","",IF(Inputs!$H$11=FALSE,0,IF(Inputs!$H$23=TRUE,CD7,AE7))) -> 248.7219517 | FY7: =+IF($B7="","",IF(Inputs!$H$11=FALSE,0,IF(Inputs!$H$23=TRUE,CE7,AF7))) -> 248.7219517 | FZ7: =+IF($B7="","",IF(Inputs!$H$11=FALSE,0,IF(Inputs!$H$23=TRUE,CF7,AG7))) -> 248.7219517 | GA7: =+IF($B7="","",IF(Inputs!$H$11=FALSE,0,IF(Inputs!$H$23=TRUE,CG7,AH7))) -> 248.7219517 | GF7: =+IF($B7="","",IF(FM7=0,0,IF($B7<3,0,EXP('Equations - Parameters'!$F$32+'Equations - Parameters'!$G$32/$B7 + 'Equations - Parameters'!$H$32*LN($C7)+'Equations - Parameters'!$I$32/Inputs!$J$18 + 'Equations - Parameters'!$J$32*LN(FH7) + 'Equations - Parameters'!$K$32*LN(FH7)/$B7 + 'Equations - Parameters'!$L$32*LN(FM7))))) -> 3305.388743 | GG7: =+IF($B7="","",IF(Inputs!$H$11=FALSE,0,IF(FN7=0,0,IF($B7<3,0,EXP('Equations - Parameters'!$F$32+'Equations - Parameters'!$G$32/$B7+'Equations - Parameters'!$H$32*LN($C7)+'Equations - Parameters'!$I$32/Inputs!$J$18+'Equations - Parameters'!$J$32*LN(FI7)+'Equations - Parameters'!$K$32*LN(FI7)/$B7+'Equations - Parameters'!$L$32*LN(FN7)))))) -> 3305.388743 | GH7: =+IF($B7="","",IF(Inputs!$H$11=FALSE,0,IF(FO7=0,0,IF($B7<3,0,EXP('Equations - Parameters'!$F$32+'Equations - Parameters'!$G$32/$B7+'Equations - Parameters'!$H$32*LN($C7)+'Equations - Parameters'!$I$32/Inputs!$J$18+'Equations - Parameters'!$J$32*LN(FJ7)+'Equations - Parameters'!$K$32*LN(FJ7)/$B7+'Equations - Parameters'!$L$32*LN(FO7)))))) -> 3305.388743 | GI7: =+IF($B7="","",IF(Inputs!$H$11=FALSE,0,IF(FP7=0,0,IF($B7<3,0,EXP('Equations - Parameters'!$F$32+'Equations - Parameters'!$G$32/$B7+'Equations - Parameters'!$H$32*LN($C7)+'Equations - Parameters'!$I$32/Inputs!$J$18+'Equations - Parameters'!$J$32*LN(FK7)+'Equations - Parameters'!$K$32*LN(FK7)/$B7+'Equations - Parameters'!$L$32*LN(FP7)))))) -> 3305.388743 | GJ7: =+IF($B7="","",IF(Inputs!$H$11=FALSE,0,IF(FQ7=0,0,IF($B7<3,0,EXP('Equations - Parameters'!$F$32+'Equations - Parameters'!$G$32/$B7+'Equations - Parameters'!$H$32*LN($C7)+'Equations - Parameters'!$I$32/Inputs!$J$18+'Equations - Parameters'!$J$32*LN(FL7)+'Equations - Parameters'!$K$32*LN(FL7)/$B7+'Equations - Parameters'!$L$32*LN(FQ7)))))) -> 3305.388743 | GK7: =+IF($B7="","",IF(FM7=0,0,IF($B7<3,0,EXP('Equations - Parameters'!$F$33+'Equations - Parameters'!$G$33/$B7 + 'Equations - Parameters'!$H$33*LN($C7)+'Equations - Parameters'!$I$33/Inputs!$J$18 + 'Equations - Parameters'!$J$33*LN(FH7) + 'Equations - Parameters'!$K$33*LN(FH7)/$B7 + 'Equations - Parameters'!$L$33*LN(FM7))))) -> 2476.2505 | GL7: =+IF($B7="","",IF(Inputs!$H$11=FALSE,0,IF(FN7=0,0,IF($B7<3,0,EXP('Equations - Parameters'!$F$33+'Equations - Parameters'!$G$33/$B7+'Equations - Parameters'!$H$33*LN($C7)+'Equations - Parameters'!$I$33/Inputs!$J$18+'Equations - Parameters'!$J$33*LN(FI7)+'Equations - Parameters'!$K$33*LN(FI7)/$B7+'Equations - Parameters'!$L$33*LN(FN7)))))) -> 2476.2505 | GM7: =+IF($B7="","",IF(Inputs!$H$11=FALSE,0,IF(FO7=0,0,IF($B7<3,0,EXP('Equations - Parameters'!$F$33+'Equations - Parameters'!$G$33/$B7+'Equations - Parameters'!$H$33*LN($C7)+'Equations - Parameters'!$I$33/Inputs!$J$18+'Equations - Parameters'!$J$33*LN(FJ7)+'Equations - Parameters'!$K$33*LN(FJ7)/$B7+'Equations - Parameters'!$L$33*LN(FO7)))))) -> 2476.2505 | GN7: =+IF($B7="","",IF(Inputs!$H$11=FALSE,0,IF(FP7=0,0,IF($B7<3,0,EXP('Equations - Parameters'!$F$33+'Equations - Parameters'!$G$33/$B7+'Equations - Parameters'!$H$33*LN($C7)+'Equations - Parameters'!$I$33/Inputs!$J$18+'Equations - Parameters'!$J$33*LN(FK7)+'Equations - Parameters'!$K$33*LN(FK7)/$B7+'Equations - Parameters'!$L$33*LN(FP7)))))) -> 2476.2505 | GO7: =+IF($B7="","",IF(Inputs!$H$11=FALSE,0,IF(FQ7=0,0,IF($B7<3,0,EXP('Equations - Parameters'!$F$33+'Equations - Parameters'!$G$33/$B7+'Equations - Parameters'!$H$33*LN($C7)+'Equations - Parameters'!$I$33/Inputs!$J$18+'Equations - Parameters'!$J$33*LN(FL7)+'Equations - Parameters'!$K$33*LN(FL7)/$B7+'Equations - Parameters'!$L$33*LN(FQ7)))))) -> 2476.2505 | GP7: 0 | GQ7: 0 | GR7: 0 | GS7: 0 | GT7: 0 | GU7: 0 | GV7: =+IF($B7="","",IF(Inputs!$H$11=FALSE,0,IF(AND(Inputs!$H$22=TRUE,$B7=Inputs!$B$30),$B7,IF(AND(Inputs!$H$23=TRUE,$B7<>Inputs!$B$6),CN7,0)))) -> 0 | GW7: =+IF($B7="","",IF(Inputs!$H$11=FALSE,0,IF(AND(Inputs!$H$22=TRUE,$B7<>Inputs!$B$6),GV7+AO7,IF(AND(Inputs!$H$23=TRUE,$B7<>Inputs!$B$6),GV7+CU7,0)))) -> 0 | GX7: =+IF($B7="","",IF(Inputs!$H$11=FALSE,0,IF(AND(Inputs!$H$22=TRUE,$B7<>Inputs!$B$6),GW7+AR7,IF(AND(Inputs!$H$23=TRUE,$B7<>Inputs!$B$6),GW7+DB7,0)))) -> 0 | GY7: =+IF($B7="","",IF(Inputs!$H$11=FALSE,0,IF(AND(Inputs!$H$22=TRUE,$B7<>Inputs!$B$6),GX7+AU7,IF(AND(Inputs!$H$23=TRUE,$B7<>Inputs!$B$6),GX7+DI7,0)))) -> 0 | GZ7: =+IF($B7="","",IF(B7=Inputs!$B$6,FM7,0)) -> 0 | HA7: =+IF($B7="","",IF(FN7=0,0,IF(B7=Inputs!$B$6,FN7,IF(AND(Inputs!$H$22=TRUE,B7<>Inputs!$B$6),S7,IF(AND(Inputs!$H$23=TRUE,B7<>Inputs!$B$6),CM7,0))))) -> 0 | HB7: =+IF($B7="","",IF(FO7=0,0,IF(B7=Inputs!$B$6,FO7,IF(AND(Inputs!$H$22=TRUE,B7<>Inputs!$B$6),HA7+T7,IF(AND(Inputs!$H$23=TRUE,B7<>Inputs!$B$6),HA7+CT7,0))))) -> 0 | HC7: =+IF($B7="","",IF(FP7=0,0,IF(B7=Inputs!$B$6,FP7,IF(AND(Inputs!$H$22=TRUE,B7<>Inputs!$B$6),HB7+U7,IF(AND(Inputs!$H$23=TRUE,B7<>Inputs!$B$6),HB7+DA7,0))))) -> 0 | HD7: =+IF($B7="","",IF(FQ7=0,0,IF(B7=Inputs!$B$6,FQ7,IF(AND(Inputs!$H$22=TRUE,B7<>Inputs!$B$6),HC7+V7,IF(AND(Inputs!$H$23=TRUE,B7<>Inputs!$B$6),HC7+DH7,0))))) -> 0 | HE7: 0 | HF7: 0 | HG7: 0 | HH7: 0 | HI7: 0 | HJ7: 0 | HK7: 0 | HL7: 0 | HM7: 0 | HN7: 0 | HO7: =+IF($B7="","",IF(B7=Inputs!$B$6,FH7,0)) -> 0 | HP7: =+IF($B7="","",IF(B7=Inputs!$B$6,FI7,IF(HA7=0,0,FH7-FI7))) -> 0 | HQ7: =+IF($B7="","",IF(B7=Inputs!$B$6,FJ7,IF(HB7=0,0,HP7+FI7-FJ7))) -> 0 | HR7: =+IF($B7="","",IF(B7=Inputs!$B$6,FK7,IF(HC7=0,0,HQ7+FJ7-FK7))) -> 0 | HS7: =+IF($B7="","",IF(B7=Inputs!$B$6,FL7,IF(HD7=0,0,HR7+FK7-FL7))) -> 0 | HT7: 0 | HU7: 0 | HV7: 0 | HW7: 0 | HX7: 0 | HY7: 0 | HZ7: 0 | IA7: 0 | IB7: 0 | IC7: 0 | ID7: =+IF($B7="","",IF($B7=Inputs!$B$6,GF7,0)) -> 0 | IE7: =+IF($B7="","",IF($B7=Inputs!$B$6,GG7,IF(HA7=0,0,GF7-GG7))) -> 0 | IF7: =+IF($B7="","",IF($B7=Inputs!$B$6,GH7,IF(HB7=0,0,IE7+GG7-GH7))) -> 0 | IG7: =+IF($B7="","",IF($B7=Inputs!$B$6,GI7,IF(HC7=0,0,IF7+GH7-GI7))) -> 0 | IH7: =+IF($B7="","",IF($B7=Inputs!$B$6,GJ7,IF(HD7=0,0,IG7+GI7-GJ7))) -> 0 | II7: 0 | IJ7: 0 | IK7: 0 | IL7: 0 | IM7: 0 | IN7: 0 | IO7: 0 | IP7: 0 | IQ7: 0 | IR7: 0 | IS7: =+IF($B7="","",IF($B7=Inputs!$B$6,GK7,0)) -> 0 | IT7: =+IF($B7="","",IF($B7=Inputs!$B$6,GL7,IF(HP7=0,0,GK7-GL7))) -> 0 | IU7: =+IF($B7="","",IF($B7=Inputs!$B$6,GM7,IF(HQ7=0,0,IT7+GL7-GM7))) -> 0 | IV7: =+IF($B7="","",IF($B7=Inputs!$B$6,GN7,IF(HR7=0,0,IU7+GM7-GN7))) -> 0 | IW7: =+IF($B7="","",IF($B7=Inputs!$B$6,GO7,IF(HS7=0,0,IV7+GN7-GO7))) -> 0 | IX7: 0 | IY7: 0 | IZ7: 0 | JA7: 0 | JB7: 0 | JC7: 0 | JD7: 0 | JE7: 0 | JF7: 0 | JG7: 0 | JH7: 0 | JI7: 0 | JJ7: 0 | JK7: 0 | JL7: 0 | JM7: =+IF($B7="","",IF($B7<2,0,GF7*EXP(('Equations - Parameters'!$H$48*('Equations - Parameters'!$F$155*2.54/(FR7*2.54))^'Equations - Parameters'!$I$48)+('Equations - Parameters'!$J$48*((FH7*2.47109)^'Equations - Parameters'!$K$48)*(('Equations - Parameters'!$G$155*2.54)/(FR7*2.54))^'Equations - Parameters'!$L$48)))) -> 1.0142103e-08 | JN7: =+IF($B7="","",IF($B7<2,0,GK7*EXP(('Equations - Parameters'!$H$48*('Equations - Parameters'!$F$156*2.54/(FR7*2.54))^'Equations - Parameters'!$I$48)+('Equations - Parameters'!$J$48*((FH7*2.47109)^'Equations - Parameters'!$K$48)*(('Equations - Parameters'!$G$156*2.54)/(FR7*2.54))^'Equations - Parameters'!$L$48))-KQ7)) -> 35.27559583 | JO7: =+IF($B7="","",IF($B7<2,0,GK7*EXP(('Equations - Parameters'!$H$48*('Equations - Parameters'!$F$157*2.54/(FR7*2.54))^'Equations - Parameters'!$I$48)+('Equations - Parameters'!$J$48*((FH7*2.47109)^'Equations - Parameters'!$K$48)*(('Equations - Parameters'!$G$157*2.54)/(FR7*2.54))^'Equations - Parameters'!$L$48))-KR7-KQ7)) -> 744.8951479 | JP7: =+IF($B7="","",IF(GG7=0,0,IF($B7<2,0,IF(Inputs!$H$11=FALSE,0,GG7*EXP(('Equations - Parameters'!$H$48*('Equations - Parameters'!$F$155*2.54/(FS7*2.54))^'Equations - Parameters'!$I$48)+('Equations - Parameters'!$J$48*((FI7*2.47109)^'Equations - Parameters'!$K$48)*(('Equations - Parameters'!$G$155*2.54)/(FS7*2.54))^'Equations - Parameters'!$L$48)))))) -> 1.0142103e-08 | JQ7: =+IF($B7="","",IF(GG7=0,0,IF($B7<2,0,IF(Inputs!$H$11=FALSE,0,GL7*EXP(('Equations - Parameters'!$H$48*('Equations - Parameters'!$F$156*2.54/(FS7*2.54))^'Equations - Parameters'!$I$48)+('Equations - Parameters'!$J$48*((FI7*2.47109)^'Equations - Parameters'!$K$48)*(('Equations - Parameters'!$G$156*2.54)/(FS7*2.54))^'Equations - Parameters'!$L$48))-JP7)))) -> 35.27559583 | JR7: =+IF($B7="","",IF(GG7=0,0,IF($B7<2,0,IF(Inputs!$H$11=FALSE,0,GL7*EXP(('Equations - Parameters'!$H$48*('Equations - Parameters'!$F$157*2.54/(FS7*2.54))^'Equations - Parameters'!$I$48)+('Equations - Parameters'!$J$48*((FI7*2.47109)^'Equations - Parameters'!$K$48)*(('Equations - Parameters'!$G$157*2.54)/(FS7*2.54))^'Equations - Parameters'!$L$48))-JP7-JQ7)))) -> 743.3323554 | JS7: =+IF($B7="","",IF(GH7=0,0,IF($B7<2,0,IF(Inputs!$H$11=FALSE,0,GH7*EXP(('Equations - Parameters'!$H$48*('Equations - Parameters'!$F$155*2.54/(FT7*2.54))^'Equations - Parameters'!$I$48)+('Equations - Parameters'!$J$48*((FJ7*2.47109)^'Equations - Parameters'!$K$48)*(('Equations - Parameters'!$G$155*2.54)/(FT7*2.54))^'Equations - Parameters'!$L$48)))))) -> 1.0142103e-08 | JT7: =+IF($B7="","",IF(GH7=0,0,IF($B7<2,0,IF(Inputs!$H$11=FALSE,0,GM7*EXP(('Equations - Parameters'!$H$48*('Equations - Parameters'!$F$156*2.54/(FT7*2.54))^'Equations - Parameters'!$I$48)+('Equations - Parameters'!$J$48*((FJ7*2.47109)^'Equations - Parameters'!$K$48)*(('Equations - Parameters'!$G$156*2.54)/(FT7*2.54))^'Equations - Parameters'!$L$48))-JS7)))) -> 35.27559583 | JU7: =+IF($B7="","",IF(GH7=0,0,IF($B7<2,0,IF(Inputs!$H$11=FALSE,0,GM7*EXP(('Equations - Parameters'!$H$48*('Equations - Parameters'!$F$157*2.54/(FT7*2.54))^'Equations - Parameters'!$I$48)+('Equations - Parameters'!$J$48*((FJ7*2.47109)^'Equations - Parameters'!$K$48)*(('Equations - Parameters'!$G$157*2.54)/(FT7*2.54))^'Equations - Parameters'!$L$48))-JS7-JT7)))) -> 743.3323554 | JV7: =+IF($B7="","",IF(GI7=0,0,IF($B7<2,0,IF(Inputs!$H$11=FALSE,0,GI7*EXP(('Equations - Parameters'!$H$48*('Equations - Parameters'!$F$155*2.54/(FU7*2.54))^'Equations - Parameters'!$I$48)+('Equations - Parameters'!$J$48*((FK7*2.47109)^'Equations - Parameters'!$K$48)*(('Equations - Parameters'!$G$155*2.54)/(FU7*2.54))^'Equations - Parameters'!$L$48)))))) -> 1.0142103e-08 | JW7: =+IF($B7="","",IF(GI7=0,0,IF($B7<2,0,IF(Inputs!$H$11=FALSE,0,GN7*EXP(('Equations - Parameters'!$H$48*('Equations - Parameters'!$F$156*2.54/(FU7*2.54))^'Equations - Parameters'!$I$48)+('Equations - Parameters'!$J$48*((FK7*2.47109)^'Equations - Parameters'!$K$48)*(('Equations - Parameters'!$G$156*2.54)/(FU7*2.54))^'Equations - Parameters'!$L$48))-JV7)))) -> 35.27559583 | JX7: =+IF($B7="","",IF(GI7=0,0,IF($B7<2,0,IF(Inputs!$H$11=FALSE,0,GN7*EXP(('Equations - Parameters'!$H$48*('Equations - Parameters'!$F$157*2.54/(FU7*2.54))^'Equations - Parameters'!$I$48)+('Equations - Parameters'!$J$48*((FK7*2.47109)^'Equations - Parameters'!$K$48)*(('Equations - Parameters'!$G$157*2.54)/(FU7*2.54))^'Equations - Parameters'!$L$48))-JV7-JW7)))) -> 743.3323554 | JY7: =+IF($B7="","",IF(GJ7=0,0,IF($B7<2,0,IF(Inputs!$H$11=FALSE,0,GJ7*EXP(('Equations - Parameters'!$H$48*('Equations - Parameters'!$F$155*2.54/(FV7*2.54))^'Equations - Parameters'!$I$48)+('Equations - Parameters'!$J$48*((FL7*2.47109)^'Equations - Parameters'!$K$48)*(('Equations - Parameters'!$G$155*2.54)/(FV7*2.54))^'Equations - Parameters'!$L$48)))))) -> 1.0142103e-08 | JZ7: =+IF($B7="","",IF(GJ7=0,0,IF($B7<2,0,IF(Inputs!$H$11=FALSE,0,GO7*EXP(('Equations - Parameters'!$H$48*('Equations - Parameters'!$F$156*2.54/(FV7*2.54))^'Equations - Parameters'!$I$48)+('Equations - Parameters'!$J$48*((FL7*2.47109)^'Equations - Parameters'!$K$48)*(('Equations - Parameters'!$G$156*2.54)/(FV7*2.54))^'Equations - Parameters'!$L$48))-JY7)))) -> 35.27559583 | KA7: =+IF($B7="","",IF(GJ7=0,0,IF($B7<2,0,IF(Inputs!$H$11=FALSE,0,GO7*EXP(('Equations - Parameters'!$H$48*('Equations - Parameters'!$F$157*2.54/(FV7*2.54))^'Equations - Parameters'!$I$48)+('Equations - Parameters'!$J$48*((FL7*2.47109)^'Equations - Parameters'!$K$48)*(('Equations - Parameters'!$G$157*2.54)/(FV7*2.54))^'Equations - Parameters'!$L$48))-JY7-JZ7)))) -> 743.3323554 | KB7: =+IF($B7="","",IF(ID7=0,0,ID7*EXP('Equations - Parameters'!$H$48*('Equations - Parameters'!$F$155/(JH7))^'Equations - Parameters'!$I$48+'Equations - Parameters'!$J$48*(HO7*2.47105)^'Equations - Parameters'!$K$48*('Equations - Parameters'!$G$155/(JH7))^'Equations - Parameters'!$L$48))) -> 0 | KC7: =+IF($B7="","",IF(ID7=0,0,ID7*EXP('Equations - Parameters'!$H$48*('Equations - Parameters'!$F$156/(JH7))^'Equations - Parameters'!$I$48+'Equations - Parameters'!$J$48*(HO7*2.47105)^'Equations - Parameters'!$K$48*('Equations - Parameters'!$G$156/(JH7))^'Equations - Parameters'!$L$48)-KB7)) -> 0 | KD7: =+IF($B7="","",IF(ID7=0,0,ID7*EXP('Equations - Parameters'!$H$48*('Equations - Parameters'!$F$157/(JH7))^'Equations - Parameters'!$I$48+'Equations - Parameters'!$J$48*(HO7*2.47105)^'Equations - Parameters'!$K$48*('Equations - Parameters'!$G$157/(JH7))^'Equations - Parameters'!$L$48)-KB7-KC7)) -> 0 | KE7: =+IF($B7="","",IF(IE7=0,0,IE7*EXP('Equations - Parameters'!$H$48*('Equations - Parameters'!$F$155/(JI7))^'Equations - Parameters'!$I$48+'Equations - Parameters'!$J$48*(HP7*2.47105)^'Equations - Parameters'!$K$48*('Equations - Parameters'!$G$155/(JI7))^'Equations - Parameters'!$L$48))) -> 0 | KF7: =+IF($B7="","",IF(IE7=0,0,IE7*EXP('Equations - Parameters'!$H$48*('Equations - Parameters'!$F$156/(JI7))^'Equations - Parameters'!$I$48+'Equations - Parameters'!$J$48*(HP7*2.47105)^'Equations - Parameters'!$K$48*('Equations - Parameters'!$G$156/(JI7))^'Equations - Parameters'!$L$48)-KE7)) -> 0 | KG7: =+IF($B7="","",IF(IE7=0,0,IE7*EXP('Equations - Parameters'!$H$48*('Equations - Parameters'!$F$157/(JI7))^'Equations - Parameters'!$I$48+'Equations - Parameters'!$J$48*(HP7*2.47105)^'Equations - Parameters'!$K$48*('Equations - Parameters'!$G$157/(JI7))^'Equations - Parameters'!$L$48)-KE7-KF7)) -> 0 | KH7: =+IF($B7="","",IF(IF7=0,0,IF7*EXP('Equations - Parameters'!$H$48*('Equations - Parameters'!$F$155/(JJ7))^'Equations - Parameters'!$I$48+'Equations - Parameters'!$J$48*(HQ7*2.47105)^'Equations - Parameters'!$K$48*('Equations - Parameters'!$G$155/(JJ7))^'Equations - Parameters'!$L$48))) -> 0 | KI7: =+IF($B7="","",IF(IF7=0,0,IF7*EXP('Equations - Parameters'!$H$48*('Equations - Parameters'!$F$156/(JJ7))^'Equations - Parameters'!$I$48+'Equations - Parameters'!$J$48*(HQ7*2.47105)^'Equations - Parameters'!$K$48*('Equations - Parameters'!$G$156/(JJ7))^'Equations - Parameters'!$L$48)-KH7)) -> 0 | KJ7: =+IF($B7="","",IF(IF7=0,0,IF7*EXP('Equations - Parameters'!$H$48*('Equations - Parameters'!$F$157/(JJ7))^'Equations - Parameters'!$I$48+'Equations - Parameters'!$J$48*(HQ7*2.47105)^'Equations - Parameters'!$K$48*('Equations - Parameters'!$G$157/(JJ7))^'Equations - Parameters'!$L$48)-KH7-KI7)) -> 0 | KK7: =+IF($B7="","",IF(IG7=0,0,IG7*EXP('Equations - Parameters'!$H$48*('Equations - Parameters'!$F$155/(JK7))^'Equations - Parameters'!$I$48+'Equations - Parameters'!$J$48*(HR7*2.47105)^'Equations - Parameters'!$K$48*('Equations - Parameters'!$G$155/(JK7))^'Equations - Parameters'!$L$48))) -> 0 | KL7: =+IF($B7="","",IF(IG7=0,0,IG7*EXP('Equations - Parameters'!$H$48*('Equations - Parameters'!$F$156/(JK7))^'Equations - Parameters'!$I$48+'Equations - Parameters'!$J$48*(HR7*2.47105)^'Equations - Parameters'!$K$48*('Equations - Parameters'!$G$156/(JK7))^'Equations - Parameters'!$L$48)-KK7)) -> 0 | KM7: =+IF($B7="","",IF(IG7=0,0,IG7*EXP('Equations - Parameters'!$H$48*('Equations - Parameters'!$F$157/(JK7))^'Equations - Parameters'!$I$48+'Equations - Parameters'!$J$48*(HR7*2.47105)^'Equations - Parameters'!$K$48*('Equations - Parameters'!$G$157/(JK7))^'Equations - Parameters'!$L$48)-KK7-KL7)) -> 0 | KN7: =+IF($B7="","",IF(IH7=0,0,IH7*EXP('Equations - Parameters'!$H$48*('Equations - Parameters'!$F$155/(JL7))^'Equations - Parameters'!$I$48+'Equations - Parameters'!$J$48*(HS7*2.47105)^'Equations - Parameters'!$K$48*('Equations - Parameters'!$G$155/(JL7))^'Equations - Parameters'!$L$48))) -> 0 | KO7: =+IF($B7="","",IF(IH7=0,0,IH7*EXP('Equations - Parameters'!$H$48*('Equations - Parameters'!$F$156/(JL7))^'Equations - Parameters'!$I$48+'Equations - Parameters'!$J$48*(HS7*2.47105)^'Equations - Parameters'!$K$48*('Equations - Parameters'!$G$156/(JL7))^'Equations - Parameters'!$L$48)-KN7)) -> 0 | KP7: =+IF($B7="","",IF(IH7=0,0,IH7*EXP('Equations - Parameters'!$H$48*('Equations - Parameters'!$F$157/(JL7))^'Equations - Parameters'!$I$48+'Equations - Parameters'!$J$48*(HS7*2.47105)^'Equations - Parameters'!$K$48*('Equations - Parameters'!$G$157/(JL7))^'Equations - Parameters'!$L$48)-KN7-KO7)) -> 0 | KQ7: =+IF($B7="","",IF($B7<2,0,GK7*EXP(('Equations - Parameters'!$H$49*('Equations - Parameters'!$F$155*2.54/(FR7*2.54))^'Equations - Parameters'!$I$49)+('Equations - Parameters'!$J$49*((FH7*2.47109)^'Equations - Parameters'!$K$49)*(('Equations - Parameters'!$G$155*2.54)/(FR7*2.54))^'Equations - Parameters'!$L$49)))) -> 5.430171153e-09 | KR7: =+IF($B7="","",IF($B7<2,0,GK7*EXP(('Equations - Parameters'!$H$49*('Equations - Parameters'!$F$156*2.54/(FR7*2.54))^'Equations - Parameters'!$I$49)+('Equations - Parameters'!$J$49*((FH7*2.47109)^'Equations - Parameters'!$K$49)*(('Equations - Parameters'!$G$156*2.54)/(FR7*2.54))^'Equations - Parameters'!$L$49))-KQ7)) -> 33.71280335 | KS7: =+IF($B7="","",IF($B7<2,0,GK7*EXP(('Equations - Parameters'!$H$49*('Equations - Parameters'!$F$157*2.54/(FR7*2.54))^'Equations - Parameters'!$I$49)+('Equations - Parameters'!$J$49*((FH7*2.47109)^'Equations - Parameters'!$K$49)*(('Equations - Parameters'!$G$157*2.54)/(FR7*2.54))^'Equations - Parameters'!$L$49))-KR7-KQ7)) -> 731.838045 | KT7: =+IF($B7="","",IF(GL7=0,0,IF(Inputs!$H$11=FALSE,0,IF($B7<2,0,GL7*EXP(('Equations - Parameters'!$H$49*('Equations - Parameters'!$F$155/(FS7))^'Equations - Parameters'!$I$49)+('Equations - Parameters'!$J$49*((FI7*2.47109)^'Equations - Parameters'!$K$49)*('Equations - Parameters'!$G$155/(FS7))^'Equations - Parameters'!$L$49)))))) -> 5.430171153e-09 | KU7: =+IF($B7="","",IF(GL7=0,0,IF(Inputs!$H$11=FALSE,0,IF($B7<2,0,GL7*EXP('Equations - Parameters'!$H$49*('Equations - Parameters'!$F$156/(FS7))^'Equations - Parameters'!$I$49+'Equations - Parameters'!$J$49*((FI7*2.47109)^'Equations - Parameters'!$K$49)*('Equations - Parameters'!$G$156/(FS7))^'Equations - Parameters'!$L$49)-KT7)))) -> 33.71280335 | KV7: =+IF($B7="","",IF(GL7=0,0,IF(Inputs!$H$11=FALSE,0,IF(B7<2,0,GL7*EXP('Equations - Parameters'!$H$49*('Equations - Parameters'!$F$157/(FS7))^'Equations - Parameters'!$I$49+'Equations - Parameters'!$J$49*((FI7*2.47109)^'Equations - Parameters'!$K$49)*('Equations - Parameters'!$G$157/(FS7))^'Equations - Parameters'!$L$49)-KU7-KT7)))) -> 731.838045 | KW7: =+IF($B7="","",IF(GM7=0,0,IF(Inputs!$H$11=FALSE,0,IF($B7<2,0,GM7*EXP(('Equations - Parameters'!$H$49*('Equations - Parameters'!$F$155/(FT7))^'Equations - Parameters'!$I$49)+('Equations - Parameters'!$J$49*((FJ7*2.47109)^'Equations - Parameters'!$K$49)*('Equations - Parameters'!$G$155/(FT7))^'Equations - Parameters'!$L$49)))))) -> 5.430171153e-09 | KX7: =+IF($B7="","",IF(GM7=0,0,IF(Inputs!$H$11=FALSE,0,IF($B7<2,0,GM7*EXP('Equations - Parameters'!$H$49*('Equations - Parameters'!$F$156/(FT7))^'Equations - Parameters'!$I$49+'Equations - Parameters'!$J$49*((FJ7*2.47109)^'Equations - Parameters'!$K$49)*('Equations - Parameters'!$G$156/(FT7))^'Equations - Parameters'!$L$49)-KW7)))) -> 33.71280335 | KY7: =+IF($B7="","",IF(GM7=0,0,IF(Inputs!$H$11=FALSE,0,IF(B7<2,0,GM7*EXP('Equations - Parameters'!$H$49*('Equations - Parameters'!$F$157/(FT7))^'Equations - Parameters'!$I$49+'Equations - Parameters'!$J$49*((FJ7*2.47109)^'Equations - Parameters'!$K$49)*('Equations - Parameters'!$G$157/(FT7))^'Equations - Parameters'!$L$49)-KX7-KW7)))) -> 731.838045 | KZ7: =+IF($B7="","",IF(GN7=0,0,IF(Inputs!$H$11=FALSE,0,IF($B7<2,0,GN7*EXP(('Equations - Parameters'!$H$49*('Equations - Parameters'!$F$155/(FU7))^'Equations - Parameters'!$I$49)+('Equations - Parameters'!$J$49*((FK7*2.47109)^'Equations - Parameters'!$K$49)*('Equations - Parameters'!$G$155/(FU7))^'Equations - Parameters'!$L$49)))))) -> 5.430171153e-09 | LA7: =+IF($B7="","",IF(GN7=0,0,IF(Inputs!$H$11=FALSE,0,IF($B7<2,0,GN7*EXP('Equations - Parameters'!$H$49*('Equations - Parameters'!$F$156/(FU7))^'Equations - Parameters'!$I$49+'Equations - Parameters'!$J$49*((FK7*2.47109)^'Equations - Parameters'!$K$49)*('Equations - Parameters'!$G$156/(FU7))^'Equations - Parameters'!$L$49)-KZ7)))) -> 33.71280335 | LB7: =+IF($B7="","",IF(GN7=0,0,IF(Inputs!$H$11=FALSE,0,IF(B7<2,0,GN7*EXP('Equations - Parameters'!$H$49*('Equations - Parameters'!$F$157/(FU7))^'Equations - Parameters'!$I$49+'Equations - Parameters'!$J$49*((FK7*2.47109)^'Equations - Parameters'!$K$49)*('Equations - Parameters'!$G$157/(FU7))^'Equations - Parameters'!$L$49)-LA7-KZ7)))) -> 731.838045 | LC7: =+IF($B7="","",IF(GO7=0,0,IF(Inputs!$H$11=FALSE,0,IF($B7<2,0,GO7*EXP(('Equations - Parameters'!$H$49*('Equations - Parameters'!$F$155/(FV7))^'Equations - Parameters'!$I$49)+('Equations - Parameters'!$J$49*((FL7*2.47109)^'Equations - Parameters'!$K$49)*('Equations - Parameters'!$G$155/(FV7))^'Equations - Parameters'!$L$49)))))) -> 5.430171153e-09 | LD7: =+IF($B7="","",IF(GO7=0,0,IF(Inputs!$H$11=FALSE,0,IF($B7<2,0,GO7*EXP('Equations - Parameters'!$H$49*('Equations - Parameters'!$F$156/(FV7))^'Equations - Parameters'!$I$49+'Equations - Parameters'!$J$49*((FL7*2.47109)^'Equations - Parameters'!$K$49)*('Equations - Parameters'!$G$156/(FV7))^'Equations - Parameters'!$L$49)-LC7)))) -> 33.71280335 | LE7: =+IF($B7="","",IF(GO7=0,0,IF(Inputs!$H$11=FALSE,0,IF(B7<2,0,GO7*EXP('Equations - Parameters'!$H$49*('Equations - Parameters'!$F$157/(FV7))^'Equations - Parameters'!$I$49+'Equations - Parameters'!$J$49*((FL7*2.47109)^'Equations - Parameters'!$K$49)*('Equations - Parameters'!$G$157/(FV7))^'Equations - Parameters'!$L$49)-LD7-LC7)))) -> 731.838045 | LF7: =+IF($B7="","",IF(IS7=0,0,IS7*EXP('Equations - Parameters'!$H$49*('Equations - Parameters'!$F$155/(JH7))^'Equations - Parameters'!$I$49+'Equations - Parameters'!$J$49*(HO7*2.47105)^'Equations - Parameters'!$K$49*('Equations - Parameters'!$G$155/(JH7))^'Equations - Parameters'!$L$49))) -> 0 | LG7: =+IF($B7="","",IF(IS7=0,0,IS7*EXP('Equations - Parameters'!$H$49*('Equations - Parameters'!$F$156/(JH7))^'Equations - Parameters'!$I$49+'Equations - Parameters'!$J$49*(HO7*2.47105)^'Equations - Parameters'!$K$49*('Equations - Parameters'!$G$156/(JH7))^'Equations - Parameters'!$L$49)-LF7)) -> 0 | LH7: =+IF($B7="","",IF(IS7=0,0,IS7*EXP('Equations - Parameters'!$H$49*('Equations - Parameters'!$F$157/(JH7))^'Equations - Parameters'!$I$49+'Equations - Parameters'!$J$49*(HO7*2.47105)^'Equations - Parameters'!$K$49*('Equations - Parameters'!$G$157/(JH7))^'Equations - Parameters'!$L$49)-LG7-LF7)) -> 0 | LI7: =+IF($B7="","",IF(IT7=0,0,IT7*EXP('Equations - Parameters'!$H$49*('Equations - Parameters'!$F$155/(JI7))^'Equations - Parameters'!$I$49+'Equations - Parameters'!$J$49*(HP7*2.47105)^'Equations - Parameters'!$K$49*('Equations - Parameters'!$G$155/(JI7))^'Equations - Parameters'!$L$49))) -> 0 | LJ7: =+IF($B7="","",IF(IT7=0,0,IT7*EXP('Equations - Parameters'!$H$49*('Equations - Parameters'!$F$156/(JI7))^'Equations - Parameters'!$I$49+'Equations - Parameters'!$J$49*(HP7*2.47105)^'Equations - Parameters'!$K$49*('Equations - Parameters'!$G$156/(JI7))^'Equations - Parameters'!$L$49)-LI7)) -> 0 | LK7: =+IF($B7="","",IF(IT7=0,0,IT7*EXP('Equations - Parameters'!$H$49*('Equations - Parameters'!$F$157/(JI7))^'Equations - Parameters'!$I$49+'Equations - Parameters'!$J$49*(HP7*2.47105)^'Equations - Parameters'!$K$49*('Equations - Parameters'!$G$157/(JI7))^'Equations - Parameters'!$L$49)-LJ7-LI7)) -> 0 | LL7: =+IF($B7="","",IF(IU7=0,0,IU7*EXP('Equations - Parameters'!$H$49*('Equations - Parameters'!$F$155/(JJ7))^'Equations - Parameters'!$I$49+'Equations - Parameters'!$J$49*(HQ7*2.47105)^'Equations - Parameters'!$K$49*('Equations - Parameters'!$G$155/(JJ7))^'Equations - Parameters'!$L$49))) -> 0 | LM7: =+IF($B7="","",IF(IU7=0,0,IU7*EXP('Equations - Parameters'!$H$49*('Equations - Parameters'!$F$156/(JJ7))^'Equations - Parameters'!$I$49+'Equations - Parameters'!$J$49*(HQ7*2.47105)^'Equations - Parameters'!$K$49*('Equations - Parameters'!$G$156/(JJ7))^'Equations - Parameters'!$L$49)-LL7)) -> 0 | LN7: =+IF($B7="","",IF(IU7=0,0,IU7*EXP('Equations - Parameters'!$H$49*('Equations - Parameters'!$F$157/(JJ7))^'Equations - Parameters'!$I$49+'Equations - Parameters'!$J$49*(HQ7*2.47105)^'Equations - Parameters'!$K$49*('Equations - Parameters'!$G$157/(JJ7))^'Equations - Parameters'!$L$49)-LM7-LL7)) -> 0 | LO7: =+IF($B7="","",IF(IV7=0,0,IV7*EXP('Equations - Parameters'!$H$49*('Equations - Parameters'!$F$155/(JK7))^'Equations - Parameters'!$I$49+'Equations - Parameters'!$J$49*(HR7*2.47105)^'Equations - Parameters'!$K$49*('Equations - Parameters'!$G$155/(JK7))^'Equations - Parameters'!$L$49))) -> 0 | LP7: =+IF($B7="","",IF(IV7=0,0,IV7*EXP('Equations - Parameters'!$H$49*('Equations - Parameters'!$F$156/(JK7))^'Equations - Parameters'!$I$49+'Equations - Parameters'!$J$49*(HR7*2.47105)^'Equations - Parameters'!$K$49*('Equations - Parameters'!$G$156/(JK7))^'Equations - Parameters'!$L$49)-LO7)) -> 0 | LQ7: =+IF($B7="","",IF(IV7=0,0,IV7*EXP('Equations - Parameters'!$H$49*('Equations - Parameters'!$F$157/(JK7))^'Equations - Parameters'!$I$49+'Equations - Parameters'!$J$49*(HR7*2.47105)^'Equations - Parameters'!$K$49*('Equations - Parameters'!$G$157/(JK7))^'Equations - Parameters'!$L$49)-LP7-LO7)) -> 0 | LR7: =+IF($B7="","",IF(IW7=0,0,IW7*EXP('Equations - Parameters'!$H$49*('Equations - Parameters'!$F$155/(JL7))^'Equations - Parameters'!$I$49+'Equations - Parameters'!$J$49*(HS7*2.47105)^'Equations - Parameters'!$K$49*('Equations - Parameters'!$G$155/(JL7))^'Equations - Parameters'!$L$49))) -> 0 | LS7: =+IF($B7="","",IF(IW7=0,0,IW7*EXP('Equations - Parameters'!$H$49*('Equations - Parameters'!$F$156/(JL7))^'Equations - Parameters'!$I$49+'Equations - Parameters'!$J$49*(HS7*2.47105)^'Equations - Parameters'!$K$49*('Equations - Parameters'!$G$156/(JL7))^'Equations - Parameters'!$L$49)-LR7)) -> 0 | LT7: =+IF($B7="","",IF(IW7=0,0,IW7*EXP('Equations - Parameters'!$H$49*('Equations - Parameters'!$F$157/(JL7))^'Equations - Parameters'!$I$49+'Equations - Parameters'!$J$49*(HS7*2.47105)^'Equations - Parameters'!$K$49*('Equations - Parameters'!$G$157/(JL7))^'Equations - Parameters'!$L$49)-LS7-LR7)) -> 0
